Workbook

Sheet Supplemental Spreadsheet
A1: Commercial Rent Tax - Quarterly (CRT) - Finance Supplemental Spreadsheet
A2: Instructions: If you wish to report more than three Premises/subtenants, and choose to use a spreadsheet, you must use this spreadsheet. Print a copy for your records and attach the excel spreadsheet to your e-Services filing. If filing by the traditional paper method, then print and attach to Form NYC-CR-Q, and mail to the address on the form. To enter your subtenant information, use the separate "Subtenants" worksheet that can be found by clicking the green "Subtenants" tab at the bottom of this page.
A3: EACH LINE MUST BE ACCURATELY COMPLETED AND ALL PREMISES MUST BE FILLED OUT IN ORDER. YOUR DEDUCTION WILL BE DISALLOWED IF INACCURATE INFORMATION IS SUBMITTED OR IF COLUMNS ARE SKIPPED.
A4: Name
A5: EIN# or SS#:
A6: Reporting Period From (mm-dd-yy):
A7: Reporting Period To (mm-dd-yy):
A8: Preparer Phone #:
A9: Note: To print, select the number of pages from the Print Dialogue Window (from 1-84)
B10: Premises Number | F10: 1 | G10: =F10+1 -> 2 | H10: =G10+1 -> 3 | I10: 4 | J10: 5 | K10: 6 | L10: 7 | M10: 8 | N10: 9 | O10: 10 | P10: 11 | Q10: 12 | R10: 13 | S10: 14 | T10: 15 | U10: 16 | V10: 17 | W10: 18 | X10: 19 | Y10: 20 | Z10: 21 | AA10: 22 | AB10: 23 | AC10: 24 | AD10: 25 | AE10: 26 | AF10: 27 | AG10: 28 | AH10: 29 | AI10: 30 | AJ10: 31 | AK10: 32 | AL10: 33 | AM10: 34 | AN10: 35 | AO10: 36 | AP10: 37 | AQ10: 38 | AR10: 39 | AS10: 40 | AT10: 41 | AU10: 42 | AV10: 43 | AW10: 44 | AX10: 45 | AY10: 46 | AZ10: 47 | BA10: 48 | BB10: 49 | BC10: 50 | BD10: 51 | BE10: 52 | BF10: 53 | BG10: 54 | BH10: 55 | BI10: 56 | BJ10: 57 | BK10: 58 | BL10: 59 | BM10: 60 | BN10: 61 | BO10: 62 | BP10: 63 | BQ10: 64 | BR10: 65 | BS10: 66 | BT10: =BS10+1 -> 67 | BU10: 68 | BV10: 69 | BW10: 70 | BX10: 71 | BY10: 72 | BZ10: 73 | CA10: 74 | CB10: 75 | CC10: 76 | CD10: 77 | CE10: 78 | CF10: 79 | CG10: 80 | CH10: 81 | CI10: 82 | CJ10: 83 | CK10: 84 | CL10: 85 | CM10: 86 | CN10: 87 | CO10: 88 | CP10: 89 | CQ10: 90 | CR10: 91 | CS10: 92 | CT10: 93 | CU10: 94 | CV10: 95 | CW10: 96 | CX10: 97 | CY10: 98 | CZ10: 99 | DA10: 100 | DB10: 101 | DC10: 102 | DD10: 103 | DE10: 104 | DF10: 105 | DG10: 106 | DH10: 107 | DI10: 108 | DJ10: 109 | DK10: 110 | DL10: 111 | DM10: 112 | DN10: 113 | DO10: 114 | DP10: 115 | DQ10: 116 | DR10: 117 | DS10: 118 | DT10: 119 | DU10: 120 | DV10: 121 | DW10: 122 | DX10: 123 | DY10: 124 | DZ10: 125 | EA10: 126 | EB10: 127 | EC10: 128 | ED10: 129 | EE10: 130 | EF10: =EE10+1 -> 131 | EG10: 132 | EH10: 133 | EI10: 134 | EJ10: 135 | EK10: 136 | EL10: 137 | EM10: 138 | EN10: 139 | EO10: 140 | EP10: 141 | EQ10: 142 | ER10: 143 | ES10: 144 | ET10: 145 | EU10: 146 | EV10: 147 | EW10: 148 | EX10: 149 | EY10: 150 | EZ10: 151 | FA10: 152 | FB10: 153 | FC10: 154 | FD10: 155 | FE10: 156 | FF10: 157 | FG10: 158 | FH10: 159 | FI10: 160 | FJ10: 161 | FK10: 162 | FL10: 163 | FM10: 164 | FN10: 165 | FO10: 166 | FP10: 167 | FQ10: 168 | FR10: 169 | FS10: 170 | FT10: 171 | FU10: 172 | FV10: 173 | FW10: 174 | FX10: 175 | FY10: 176 | FZ10: 177 | GA10: 178 | GB10: 179 | GC10: 180 | GD10: 181 | GE10: 182 | GF10: 183 | GG10: 184 | GH10: 185 | GI10: 186 | GJ10: 187 | GK10: 188 | GL10: 189 | GM10: 190 | GN10: 191 | GO10: 192 | GP10: 193 | GQ10: 194 | GR10: =GQ10+1 -> 195 | GS10: 196 | GT10: 197 | GU10: 198 | GV10: 199 | GW10: 200 | GX10: 201 | GY10: 202 | GZ10: 203 | HA10: 204 | HB10: 205 | HC10: 206 | HD10: 207 | HE10: 208 | HF10: 209 | HG10: 210 | HH10: 211 | HI10: 212 | HJ10: 213 | HK10: 214 | HL10: 215 | HM10: 216 | HN10: 217 | HO10: 218 | HP10: 219 | HQ10: 220 | HR10: 221 | HS10: 222 | HT10: 223 | HU10: 224 | HV10: 225 | HW10: 226 | HX10: 227 | HY10: 228 | HZ10: 229 | IA10: 230 | IB10: 231 | IC10: 232 | ID10: 233 | IE10: 234 | IF10: 235 | IG10: 236 | IH10: 237 | II10: 238 | IJ10: 239 | IK10: 240 | IL10: 241 | IM10: 242 | IN10: 243 | IO10: 244 | IP10: 245 | IQ10: 246 | IR10: 247 | IS10: 248 | IT10: 249 | IU10: 250 | IV10: 251 | IW10: 252 | IX10: 253 | IY10: 254 | IZ10: 255 | JA10: 256 | JB10: 257 | JC10: 258 | JD10: =JC10+1 -> 259 | JE10: 260 | JF10: 261 | JG10: 262 | JH10: 263 | JI10: 264 | JJ10: 265 | JK10: 266 | JL10: 267 | JM10: 268 | JN10: 269 | JO10: 270 | JP10: 271 | JQ10: 272 | JR10: 273 | JS10: 274 | JT10: 275 | JU10: 276 | JV10: 277 | JW10: 278 | JX10: 279 | JY10: 280 | JZ10: 281 | KA10: 282 | KB10: 283 | KC10: 284 | KD10: 285 | KE10: 286 | KF10: 287 | KG10: 288 | KH10: 289 | KI10: 290 | KJ10: 291 | KK10: 292 | KL10: 293 | KM10: 294 | KN10: 295 | KO10: 296 | KP10: 297 | KQ10: 298 | KR10: 299 | KS10: 300 | KT10: 301 | KU10: 302 | KV10: 303 | KW10: 304 | KX10: 305 | KY10: 306 | KZ10: 307 | LA10: 308 | LB10: 309 | LC10: 310 | LD10: 311 | LE10: 312 | LF10: 313 | LG10: 314 | LH10: 315 | LI10: 316 | LJ10: 317 | LK10: 318 | LL10: 319 | LM10: 320 | LN10: 321 | LO10: 322 | LP10: =LO10+1 -> 323 | LQ10: 324 | LR10: 325 | LS10: 326 | LT10: 327 | LU10: 328 | LV10: 329 | LW10: 330 | LX10: 331 | LY10: 332 | LZ10: 333 | MA10: 334 | MB10: 335 | MC10: 336 | MD10: 337 | ME10: 338 | MF10: 339 | MG10: 340 | MH10: 341 | MI10: 342 | MJ10: 343 | MK10: 344 | ML10: 345 | MM10: 346 | MN10: 347 | MO10: 348 | MP10: 349 | MQ10: 350 | MR10: 351 | MS10: 352 | MT10: 353 | MU10: 354 | MV10: 355 | MW10: 356 | MX10: 357 | MY10: 358 | MZ10: 359 | NA10: 360 | NB10: 361 | NC10: 362 | ND10: 363 | NE10: 364 | NF10: 365 | NG10: 366 | NH10: 367 | NI10: 368 | NJ10: 369 | NK10: 370 | NL10: 371 | NM10: 372 | NN10: 373 | NO10: 374 | NP10: 375 | NQ10: 376 | NR10: 377 | NS10: 378 | NT10: 379 | NU10: 380 | NV10: 381 | NW10: 382 | NX10: 383 | NY10: 384 | NZ10: 385 | OA10: 386 | OB10: =OA10+1 -> 387 | OC10: 388 | OD10: 389 | OE10: 390 | OF10: 391 | OG10: 392 | OH10: 393 | OI10: 394 | OJ10: 395 | OK10: 396 | OL10: 397 | OM10: 398 | ON10: 399 | OO10: 400 | OP10: 401 | OQ10: 402 | OR10: 403 | OS10: 404 | OT10: 405 | OU10: 406 | OV10: 407 | OW10: 408 | OX10: 409 | OY10: 410 | OZ10: 411 | PA10: 412 | PB10: 413 | PC10: 414 | PD10: 415 | PE10: 416 | PF10: 417 | PG10: 418 | PH10: 419 | PI10: 420 | PJ10: 421 | PK10: 422 | PL10: 423 | PM10: 424 | PN10: 425 | PO10: 426 | PP10: 427 | PQ10: 428 | PR10: 429 | PS10: 430 | PT10: 431 | PU10: 432 | PV10: 433 | PW10: 434 | PX10: 435 | PY10: 436 | PZ10: 437 | QA10: 438 | QB10: 439 | QC10: 440 | QD10: 441 | QE10: 442 | QF10: 443 | QG10: 444 | QH10: 445 | QI10: 446 | QJ10: 447 | QK10: 448 | QL10: 449 | QM10: 450 | QN10: =QM10+1 -> 451 | QO10: 452 | QP10: 453 | QQ10: 454 | QR10: 455 | QS10: 456 | QT10: 457 | QU10: 458 | QV10: 459 | QW10: 460 | QX10: 461 | QY10: 462 | QZ10: 463 | RA10: 464 | RB10: 465 | RC10: 466 | RD10: 467 | RE10: 468 | RF10: 469 | RG10: 470 | RH10: 471 | RI10: 472 | RJ10: 473 | RK10: 474 | RL10: 475 | RM10: 476 | RN10: 477 | RO10: 478 | RP10: 479 | RQ10: 480 | RR10: 481 | RS10: 482 | RT10: 483 | RU10: 484 | RV10: 485 | RW10: 486 | RX10: 487 | RY10: 488 | RZ10: 489 | SA10: 490 | SB10: 491 | SC10: 492 | SD10: 493 | SE10: 494 | SF10: 495 | SG10: 496 | SH10: 497 | SI10: 498 | SJ10: 499 | SK10: 500 | SL10: 501 | SM10: 502 | SN10: 503 | SO10: 504 | SP10: 505 | SQ10: 506 | SR10: 507 | SS10: 508 | ST10: 509 | SU10: 510 | SV10: 511 | SW10: 512 | SX10: 513 | SY10: 514 | SZ10: =SY10+1 -> 515 | TA10: 516 | TB10: 517 | TC10: 518 | TD10: 519 | TE10: 520 | TF10: 521 | TG10: 522 | TH10: 523 | TI10: 524 | TJ10: 525 | TK10: 526 | TL10: 527 | TM10: 528 | TN10: 529 | TO10: 530 | TP10: 531 | TQ10: 532 | TR10: 533 | TS10: 534 | TT10: 535 | TU10: 536 | TV10: 537 | TW10: 538 | TX10: 539 | TY10: 540 | TZ10: 541 | UA10: 542 | UB10: 543 | UC10: 544 | UD10: 545 | UE10: 546 | UF10: 547 | UG10: 548 | UH10: 549 | UI10: 550 | UJ10: 551 | UK10: 552 | UL10: 553 | UM10: 554 | UN10: 555 | UO10: 556 | UP10: 557 | UQ10: 558 | UR10: 559 | US10: 560 | UT10: 561 | UU10: 562 | UV10: 563 | UW10: 564 | UX10: 565 | UY10: 566 | UZ10: 567 | VA10: 568 | VB10: 569 | VC10: 570 | VD10: 571 | VE10: 572 | VF10: 573 | VG10: 574 | VH10: 575 | VI10: 576 | VJ10: 577 | VK10: 578 | VL10: =VK10+1 -> 579 | VM10: 580 | VN10: 581 | VO10: 582 | VP10: 583 | VQ10: 584 | VR10: 585 | VS10: 586 | VT10: 587 | VU10: 588 | VV10: 589 | VW10: 590 | VX10: 591 | VY10: 592 | VZ10: 593 | WA10: 594 | WB10: 595 | WC10: 596 | WD10: 597 | WE10: 598 | WF10: 599 | WG10: 600 | WH10: 601 | WI10: 602 | WJ10: 603 | WK10: 604 | WL10: 605 | WM10: 606 | WN10: 607 | WO10: 608 | WP10: 609 | WQ10: 610 | WR10: 611 | WS10: 612 | WT10: 613 | WU10: 614 | WV10: 615 | WW10: 616 | WX10: 617 | WY10: 618 | WZ10: 619 | XA10: 620 | XB10: 621 | XC10: 622 | XD10: 623 | XE10: 624 | XF10: 625 | XG10: 626 | XH10: 627 | XI10: 628 | XJ10: 629 | XK10: 630 | XL10: 631 | XM10: 632 | XN10: 633 | XO10: 634 | XP10: 635 | XQ10: 636 | XR10: 637 | XS10: 638 | XT10: 639 | XU10: 640 | XV10: 641 | XW10: 642 | XX10: =XW10+1 -> 643 | XY10: 644 | XZ10: 645 | YA10: 646 | YB10: 647 | YC10: 648 | YD10: 649 | YE10: 650 | YF10: 651 | YG10: 652 | YH10: 653 | YI10: 654 | YJ10: 655 | YK10: 656 | YL10: 657 | YM10: 658 | YN10: 659 | YO10: 660 | YP10: 661 | YQ10: 662 | YR10: 663 | YS10: 664 | YT10: 665 | YU10: 666 | YV10: 667 | YW10: 668 | YX10: 669 | YY10: 670 | YZ10: 671 | ZA10: 672 | ZB10: 673 | ZC10: 674 | ZD10: 675 | ZE10: 676 | ZF10: 677 | ZG10: 678 | ZH10: 679 | ZI10: 680 | ZJ10: 681 | ZK10: 682 | ZL10: 683 | ZM10: 684 | ZN10: 685 | ZO10: 686 | ZP10: 687 | ZQ10: 688 | ZR10: 689 | ZS10: 690 | ZT10: 691 | ZU10: 692 | ZV10: 693 | ZW10: 694 | ZX10: 695 | ZY10: 696 | ZZ10: 697 | AAA10: 698 | AAB10: 699 | AAC10: 700 | AAD10: 701 | AAE10: 702 | AAF10: 703 | AAG10: 704 | AAH10: 705 | AAI10: 706 | AAJ10: =AAI10+1 -> 707 | AAK10: 708 | AAL10: 709 | AAM10: 710 | AAN10: 711 | AAO10: 712 | AAP10: 713 | AAQ10: 714 | AAR10: 715 | AAS10: 716 | AAT10: 717 | AAU10: 718 | AAV10: 719 | AAW10: 720 | AAX10: 721 | AAY10: 722 | AAZ10: 723 | ABA10: 724 | ABB10: 725 | ABC10: 726 | ABD10: 727 | ABE10: 728 | ABF10: 729 | ABG10: 730 | ABH10: 731 | ABI10: 732 | ABJ10: 733 | ABK10: 734 | ABL10: 735 | ABM10: 736 | ABN10: 737 | ABO10: 738 | ABP10: 739 | ABQ10: 740 | ABR10: 741 | ABS10: 742 | ABT10: 743 | ABU10: 744 | ABV10: 745 | ABW10: 746 | ABX10: 747 | ABY10: 748 | ABZ10: 749 | ACA10: 750 | ACB10: 751 | ACC10: 752 | ACD10: 753 | ACE10: 754 | ACF10: 755 | ACG10: 756 | ACH10: 757 | ACI10: 758 | ACJ10: 759 | ACK10: 760 | ACL10: 761 | ACM10: 762 | ACN10: 763 | ACO10: 764 | ACP10: 765 | ACQ10: 766 | ACR10: 767 | ACS10: 768 | ACT10: 769 | ACU10: 770 | ACV10: =ACU10+1 -> 771 | ACW10: 772 | ACX10: 773 | ACY10: 774 | ACZ10: 775 | ADA10: 776 | ADB10: 777 | ADC10: 778 | ADD10: 779 | ADE10: 780 | ADF10: 781 | ADG10: 782 | ADH10: 783 | ADI10: 784 | ADJ10: 785 | ADK10: 786 | ADL10: 787 | ADM10: 788 | ADN10: 789 | ADO10: 790 | ADP10: 791 | ADQ10: 792 | ADR10: 793 | ADS10: 794 | ADT10: 795 | ADU10: 796 | ADV10: 797 | ADW10: 798 | ADX10: 799 | ADY10: 800 | ADZ10: 801 | AEA10: 802 | AEB10: 803 | AEC10: 804 | AED10: 805 | AEE10: 806 | AEF10: 807 | AEG10: 808 | AEH10: 809 | AEI10: 810 | AEJ10: 811 | AEK10: 812 | AEL10: 813 | AEM10: 814 | AEN10: 815 | AEO10: 816 | AEP10: 817 | AEQ10: 818 | AER10: 819 | AES10: 820 | AET10: 821 | AEU10: 822 | AEV10: 823 | AEW10: 824 | AEX10: 825 | AEY10: 826 | AEZ10: 827 | AFA10: 828 | AFB10: 829 | AFC10: 830 | AFD10: 831 | AFE10: 832 | AFF10: 833 | AFG10: 834 | AFH10: =AFG10+1 -> 835 | AFI10: 836 | AFJ10: 837 | AFK10: 838 | AFL10: 839 | AFM10: 840 | AFN10: 841 | AFO10: 842 | AFP10: 843 | AFQ10: 844 | AFR10: 845 | AFS10: 846 | AFT10: 847 | AFU10: 848 | AFV10: 849 | AFW10: 850 | AFX10: 851 | AFY10: 852 | AFZ10: 853 | AGA10: 854 | AGB10: 855 | AGC10: 856 | AGD10: 857 | AGE10: 858 | AGF10: 859 | AGG10: 860 | AGH10: 861 | AGI10: 862 | AGJ10: 863 | AGK10: 864 | AGL10: 865 | AGM10: 866 | AGN10: 867 | AGO10: 868 | AGP10: 869 | AGQ10: 870 | AGR10: 871 | AGS10: 872 | AGT10: 873 | AGU10: 874 | AGV10: 875 | AGW10: 876 | AGX10: 877 | AGY10: 878 | AGZ10: 879 | AHA10: 880 | AHB10: 881 | AHC10: 882 | AHD10: 883 | AHE10: 884 | AHF10: 885 | AHG10: 886 | AHH10: 887 | AHI10: 888 | AHJ10: 889 | AHK10: 890 | AHL10: 891 | AHM10: 892 | AHN10: 893 | AHO10: 894 | AHP10: 895 | AHQ10: 896 | AHR10: 897 | AHS10: 898 | AHT10: =AHS10+1 -> 899 | AHU10: 900 | AHV10: 901 | AHW10: 902 | AHX10: 903 | AHY10: 904 | AHZ10: 905 | AIA10: 906 | AIB10: 907 | AIC10: 908 | AID10: 909 | AIE10: 910 | AIF10: 911 | AIG10: 912 | AIH10: 913 | AII10: 914 | AIJ10: 915 | AIK10: 916 | AIL10: 917 | AIM10: 918 | AIN10: 919 | AIO10: 920 | AIP10: 921 | AIQ10: 922 | AIR10: 923 | AIS10: 924 | AIT10: 925 | AIU10: 926 | AIV10: 927 | AIW10: 928 | AIX10: 929 | AIY10: 930 | AIZ10: 931 | AJA10: 932 | AJB10: 933 | AJC10: 934 | AJD10: 935 | AJE10: 936 | AJF10: 937 | AJG10: 938 | AJH10: 939 | AJI10: 940 | AJJ10: 941 | AJK10: 942 | AJL10: 943 | AJM10: 944 | AJN10: 945 | AJO10: 946 | AJP10: 947 | AJQ10: 948 | AJR10: 949 | AJS10: 950 | AJT10: 951 | AJU10: 952 | AJV10: 953 | AJW10: 954 | AJX10: 955 | AJY10: 956 | AJZ10: 957 | AKA10: 958 | AKB10: 959 | AKC10: 960 | AKD10: 961 | AKE10: 962 | AKF10: =AKE10+1 -> 963 | AKG10: 964 | AKH10: 965 | AKI10: 966 | AKJ10: 967 | AKK10: 968 | AKL10: 969 | AKM10: 970 | AKN10: 971 | AKO10: 972 | AKP10: 973 | AKQ10: 974 | AKR10: 975 | AKS10: 976 | AKT10: 977 | AKU10: 978 | AKV10: 979 | AKW10: 980 | AKX10: 981 | AKY10: 982 | AKZ10: 983 | ALA10: 984 | ALB10: 985 | ALC10: 986 | ALD10: 987 | ALE10: 988 | ALF10: 989 | ALG10: 990 | ALH10: 991 | ALI10: 992 | ALJ10: 993 | ALK10: 994 | ALL10: 995 | ALM10: 996 | ALN10: 997 | ALO10: 998 | ALP10: 999 | ALQ10: 1000 | ALR10: 1001 | ALS10: 1002 | ALT10: 1003 | ALU10: 1004 | ALV10: 1005 | ALW10: 1006 | ALX10: 1007 | ALY10: 1008 | ALZ10: 1009 | AMA10: 1010 | AMB10: 1011 | AMC10: 1012 | AMD10: 1013 | AME10: 1014 | AMF10: 1015 | AMG10: 1016 | AMH10: 1017 | AMI10: 1018 | AMJ10: 1019 | AMK10: 1020 | AML10: 1021 | AMM10: 1022 | AMN10: 1023 | AMO10: 1024 | AMP10: 1025 | AMQ10: 1026 | AMR10: =AMQ10+1 -> 1027 | AMS10: 1028 | AMT10: 1029 | AMU10: 1030 | AMV10: 1031 | AMW10: 1032 | AMX10: 1033 | AMY10: 1034 | AMZ10: 1035 | ANA10: 1036 | ANB10: 1037 | ANC10: 1038 | AND10: 1039 | ANE10: 1040 | ANF10: 1041 | ANG10: 1042 | ANH10: 1043 | ANI10: 1044 | ANJ10: 1045 | ANK10: 1046 | ANL10: 1047 | ANM10: 1048 | ANN10: 1049 | ANO10: 1050 | ANP10: 1051 | ANQ10: 1052 | ANR10: 1053 | ANS10: 1054 | ANT10: 1055 | ANU10: 1056 | ANV10: 1057 | ANW10: 1058 | ANX10: 1059 | ANY10: 1060 | ANZ10: 1061 | AOA10: 1062 | AOB10: 1063 | AOC10: 1064 | AOD10: 1065 | AOE10: 1066 | AOF10: 1067 | AOG10: 1068 | AOH10: 1069 | AOI10: 1070 | AOJ10: 1071 | AOK10: 1072 | AOL10: 1073 | AOM10: 1074 | AON10: 1075 | AOO10: 1076 | AOP10: 1077 | AOQ10: 1078 | AOR10: 1079 | AOS10: 1080 | AOT10: 1081 | AOU10: 1082 | AOV10: 1083 | AOW10: 1084 | AOX10: 1085 | AOY10: 1086 | AOZ10: 1087 | APA10: 1088 | APB10: 1089 | APC10: 1090 | APD10: =APC10+1 -> 1091 | APE10: 1092 | APF10: 1093 | APG10: 1094 | APH10: 1095 | API10: 1096 | APJ10: 1097 | APK10: 1098 | APL10: 1099 | APM10: 1100 | APN10: 1101 | APO10: 1102 | APP10: 1103 | APQ10: 1104 | APR10: 1105 | APS10: 1106 | APT10: 1107 | APU10: 1108 | APV10: 1109 | APW10: 1110 | APX10: 1111 | APY10: 1112 | APZ10: 1113 | AQA10: 1114 | AQB10: 1115 | AQC10: 1116 | AQD10: 1117 | AQE10: 1118 | AQF10: 1119 | AQG10: 1120 | AQH10: 1121 | AQI10: 1122 | AQJ10: 1123 | AQK10: 1124 | AQL10: 1125 | AQM10: 1126 | AQN10: 1127 | AQO10: 1128 | AQP10: 1129 | AQQ10: 1130 | AQR10: 1131 | AQS10: 1132 | AQT10: 1133 | AQU10: 1134 | AQV10: 1135 | AQW10: 1136 | AQX10: 1137 | AQY10: 1138 | AQZ10: 1139 | ARA10: 1140 | ARB10: 1141 | ARC10: 1142 | ARD10: 1143 | ARE10: 1144 | ARF10: 1145 | ARG10: 1146 | ARH10: 1147 | ARI10: 1148 | ARJ10: 1149 | ARK10: 1150 | ARL10: 1151 | ARM10: 1152 | ARN10: 1153 | ARO10: 1154 | ARP10: =ARO10+1 -> 1155 | ARQ10: 1156 | ARR10: 1157 | ARS10: 1158 | ART10: 1159 | ARU10: 1160 | ARV10: 1161 | ARW10: 1162 | ARX10: 1163 | ARY10: 1164 | ARZ10: 1165 | ASA10: 1166 | ASB10: 1167 | ASC10: 1168 | ASD10: 1169 | ASE10: 1170 | ASF10: 1171 | ASG10: 1172 | ASH10: 1173 | ASI10: 1174 | ASJ10: 1175 | ASK10: 1176 | ASL10: 1177 | ASM10: 1178 | ASN10: 1179 | ASO10: 1180 | ASP10: 1181 | ASQ10: 1182 | ASR10: 1183 | ASS10: 1184 | AST10: 1185 | ASU10: 1186 | ASV10: 1187 | ASW10: 1188 | ASX10: 1189 | ASY10: 1190 | ASZ10: 1191 | ATA10: 1192 | ATB10: 1193 | ATC10: 1194 | ATD10: 1195 | ATE10: 1196 | ATF10: 1197 | ATG10: 1198 | ATH10: 1199 | ATI10: 1200 | ATJ10: 1201 | ATK10: 1202 | ATL10: 1203 | ATM10: 1204 | ATN10: 1205 | ATO10: 1206 | ATP10: 1207 | ATQ10: 1208 | ATR10: 1209 | ATS10: 1210 | ATT10: 1211 | ATU10: 1212 | ATV10: 1213 | ATW10: 1214 | ATX10: 1215 | ATY10: 1216 | ATZ10: 1217 | AUA10: 1218 | AUB10: =AUA10+1 -> 1219 | AUC10: 1220 | AUD10: 1221 | AUE10: 1222 | AUF10: 1223 | AUG10: 1224 | AUH10: 1225 | AUI10: 1226 | AUJ10: 1227 | AUK10: 1228 | AUL10: 1229 | AUM10: 1230 | AUN10: 1231 | AUO10: 1232 | AUP10: 1233 | AUQ10: 1234 | AUR10: 1235 | AUS10: 1236 | AUT10: 1237 | AUU10: 1238 | AUV10: 1239 | AUW10: 1240 | AUX10: 1241 | AUY10: 1242 | AUZ10: 1243 | AVA10: 1244 | AVB10: 1245 | AVC10: 1246 | AVD10: 1247 | AVE10: 1248 | AVF10: 1249 | AVG10: 1250 | AVH10: 1251 | AVI10: 1252 | AVJ10: 1253 | AVK10: 1254 | AVL10: 1255 | AVM10: 1256 | AVN10: 1257 | AVO10: 1258 | AVP10: 1259 | AVQ10: 1260 | AVR10: 1261 | AVS10: 1262 | AVT10: 1263 | AVU10: 1264 | AVV10: 1265 | AVW10: 1266 | AVX10: 1267 | AVY10: 1268 | AVZ10: 1269 | AWA10: 1270 | AWB10: 1271 | AWC10: 1272 | AWD10: 1273 | AWE10: 1274 | AWF10: 1275 | AWG10: 1276 | AWH10: 1277 | AWI10: 1278 | AWJ10: 1279 | AWK10: 1280 | AWL10: 1281 | AWM10: 1282 | AWN10: =AWM10+1 -> 1283 | AWO10: 1284 | AWP10: 1285 | AWQ10: 1286 | AWR10: 1287 | AWS10: 1288 | AWT10: 1289 | AWU10: 1290 | AWV10: 1291 | AWW10: 1292 | AWX10: 1293 | AWY10: 1294 | AWZ10: 1295 | AXA10: 1296 | AXB10: 1297 | AXC10: 1298 | AXD10: 1299 | AXE10: 1300 | AXF10: 1301 | AXG10: 1302 | AXH10: 1303 | AXI10: 1304 | AXJ10: 1305 | AXK10: 1306 | AXL10: 1307 | AXM10: 1308 | AXN10: 1309 | AXO10: 1310 | AXP10: 1311 | AXQ10: 1312 | AXR10: 1313 | AXS10: 1314 | AXT10: 1315 | AXU10: 1316 | AXV10: 1317 | AXW10: 1318 | AXX10: 1319 | AXY10: 1320 | AXZ10: 1321 | AYA10: 1322 | AYB10: 1323 | AYC10: 1324 | AYD10: 1325 | AYE10: 1326 | AYF10: 1327 | AYG10: 1328 | AYH10: 1329 | AYI10: 1330 | AYJ10: 1331 | AYK10: 1332 | AYL10: 1333 | AYM10: 1334 | AYN10: 1335 | AYO10: 1336 | AYP10: 1337 | AYQ10: 1338 | AYR10: 1339 | AYS10: 1340 | AYT10: 1341 | AYU10: 1342 | AYV10: 1343 | AYW10: 1344 | AYX10: 1345 | AYY10: 1346 | AYZ10: =AYY10+1 -> 1347 | AZA10: 1348 | AZB10: 1349 | AZC10: 1350 | AZD10: 1351 | AZE10: 1352 | AZF10: 1353 | AZG10: 1354 | AZH10: 1355 | AZI10: 1356 | AZJ10: 1357 | AZK10: 1358 | AZL10: 1359 | AZM10: 1360 | AZN10: 1361 | AZO10: 1362 | AZP10: 1363 | AZQ10: 1364 | AZR10: 1365 | AZS10: 1366 | AZT10: 1367 | AZU10: 1368 | AZV10: 1369 | AZW10: 1370 | AZX10: 1371 | AZY10: 1372 | AZZ10: 1373 | BAA10: 1374 | BAB10: 1375 | BAC10: 1376 | BAD10: 1377 | BAE10: 1378 | BAF10: 1379 | BAG10: 1380 | BAH10: 1381 | BAI10: 1382 | BAJ10: 1383 | BAK10: 1384 | BAL10: 1385 | BAM10: 1386 | BAN10: 1387 | BAO10: 1388 | BAP10: 1389 | BAQ10: 1390 | BAR10: 1391 | BAS10: 1392 | BAT10: 1393 | BAU10: 1394 | BAV10: 1395 | BAW10: 1396 | BAX10: 1397 | BAY10: 1398 | BAZ10: 1399 | BBA10: 1400 | BBB10: 1401 | BBC10: 1402 | BBD10: 1403 | BBE10: 1404 | BBF10: 1405 | BBG10: 1406 | BBH10: 1407 | BBI10: 1408 | BBJ10: 1409 | BBK10: 1410 | BBL10: =BBK10+1 -> 1411 | BBM10: 1412 | BBN10: 1413 | BBO10: 1414 | BBP10: 1415 | BBQ10: 1416 | BBR10: 1417 | BBS10: 1418 | BBT10: 1419 | BBU10: 1420 | BBV10: 1421 | BBW10: 1422 | BBX10: 1423 | BBY10: 1424 | BBZ10: 1425 | BCA10: 1426 | BCB10: 1427 | BCC10: 1428 | BCD10: 1429 | BCE10: 1430 | BCF10: 1431 | BCG10: 1432 | BCH10: 1433 | BCI10: 1434 | BCJ10: 1435 | BCK10: 1436 | BCL10: 1437 | BCM10: 1438 | BCN10: 1439 | BCO10: 1440 | BCP10: 1441 | BCQ10: 1442 | BCR10: 1443 | BCS10: 1444 | BCT10: 1445 | BCU10: 1446 | BCV10: 1447 | BCW10: 1448 | BCX10: 1449 | BCY10: 1450 | BCZ10: 1451 | BDA10: 1452 | BDB10: 1453 | BDC10: 1454 | BDD10: 1455 | BDE10: 1456 | BDF10: 1457 | BDG10: 1458 | BDH10: 1459 | BDI10: 1460 | BDJ10: 1461 | BDK10: 1462 | BDL10: 1463 | BDM10: 1464 | BDN10: 1465 | BDO10: 1466 | BDP10: 1467 | BDQ10: 1468 | BDR10: 1469 | BDS10: 1470 | BDT10: 1471 | BDU10: 1472 | BDV10: 1473 | BDW10: 1474 | BDX10: =BDW10+1 -> 1475 | BDY10: 1476 | BDZ10: 1477 | BEA10: 1478 | BEB10: 1479 | BEC10: 1480 | BED10: 1481 | BEE10: 1482 | BEF10: 1483 | BEG10: 1484 | BEH10: 1485 | BEI10: 1486 | BEJ10: 1487 | BEK10: 1488 | BEL10: 1489 | BEM10: 1490 | BEN10: 1491 | BEO10: 1492 | BEP10: 1493 | BEQ10: 1494 | BER10: 1495 | BES10: 1496 | BET10: 1497 | BEU10: 1498 | BEV10: 1499 | BEW10: 1500 | BEX10: 1501 | BEY10: 1502 | BEZ10: 1503 | BFA10: 1504 | BFB10: 1505 | BFC10: 1506 | BFD10: 1507 | BFE10: 1508 | BFF10: 1509 | BFG10: 1510 | BFH10: 1511 | BFI10: 1512 | BFJ10: 1513 | BFK10: 1514 | BFL10: 1515 | BFM10: 1516 | BFN10: 1517 | BFO10: 1518 | BFP10: 1519 | BFQ10: 1520 | BFR10: 1521 | BFS10: 1522 | BFT10: 1523 | BFU10: 1524 | BFV10: 1525 | BFW10: 1526 | BFX10: 1527 | BFY10: 1528 | BFZ10: 1529 | BGA10: 1530 | BGB10: 1531 | BGC10: 1532 | BGD10: 1533 | BGE10: 1534 | BGF10: 1535 | BGG10: 1536 | BGH10: 1537 | BGI10: 1538 | BGJ10: =BGI10+1 -> 1539 | BGK10: 1540 | BGL10: 1541 | BGM10: 1542 | BGN10: 1543 | BGO10: 1544 | BGP10: 1545 | BGQ10: 1546 | BGR10: 1547 | BGS10: 1548 | BGT10: 1549 | BGU10: 1550 | BGV10: 1551 | BGW10: 1552 | BGX10: 1553 | BGY10: 1554 | BGZ10: 1555 | BHA10: 1556 | BHB10: 1557 | BHC10: 1558 | BHD10: 1559 | BHE10: 1560 | BHF10: 1561 | BHG10: 1562 | BHH10: 1563 | BHI10: 1564 | BHJ10: 1565 | BHK10: 1566 | BHL10: 1567 | BHM10: 1568 | BHN10: 1569 | BHO10: 1570 | BHP10: 1571 | BHQ10: 1572 | BHR10: 1573 | BHS10: 1574 | BHT10: 1575 | BHU10: 1576 | BHV10: 1577 | BHW10: 1578 | BHX10: 1579 | BHY10: 1580 | BHZ10: 1581 | BIA10: 1582 | BIB10: 1583 | BIC10: 1584 | BID10: 1585 | BIE10: 1586 | BIF10: 1587 | BIG10: 1588 | BIH10: 1589 | BII10: 1590 | BIJ10: 1591 | BIK10: 1592 | BIL10: 1593 | BIM10: 1594 | BIN10: 1595 | BIO10: 1596 | BIP10: 1597 | BIQ10: 1598 | BIR10: 1599 | BIS10: 1600 | BIT10: 1601 | BIU10: 1602 | BIV10: =BIU10+1 -> 1603 | BIW10: 1604 | BIX10: 1605 | BIY10: 1606 | BIZ10: 1607 | BJA10: 1608 | BJB10: 1609 | BJC10: 1610 | BJD10: 1611 | BJE10: 1612 | BJF10: 1613 | BJG10: 1614 | BJH10: 1615 | BJI10: 1616 | BJJ10: 1617 | BJK10: 1618 | BJL10: 1619 | BJM10: 1620 | BJN10: 1621 | BJO10: 1622 | BJP10: 1623 | BJQ10: 1624 | BJR10: 1625 | BJS10: 1626 | BJT10: 1627 | BJU10: 1628 | BJV10: 1629 | BJW10: 1630 | BJX10: 1631 | BJY10: 1632 | BJZ10: 1633 | BKA10: 1634 | BKB10: 1635 | BKC10: 1636 | BKD10: 1637 | BKE10: 1638 | BKF10: 1639 | BKG10: 1640 | BKH10: 1641 | BKI10: 1642 | BKJ10: 1643 | BKK10: 1644 | BKL10: 1645 | BKM10: 1646 | BKN10: 1647 | BKO10: 1648 | BKP10: 1649 | BKQ10: 1650 | BKR10: 1651 | BKS10: 1652 | BKT10: 1653 | BKU10: 1654 | BKV10: 1655 | BKW10: 1656 | BKX10: 1657 | BKY10: 1658 | BKZ10: 1659 | BLA10: 1660 | BLB10: 1661 | BLC10: 1662 | BLD10: 1663 | BLE10: 1664 | BLF10: 1665 | BLG10: 1666 | BLH10: =BLG10+1 -> 1667 | BLI10: 1668 | BLJ10: 1669 | BLK10: 1670 | BLL10: 1671 | BLM10: 1672 | BLN10: 1673 | BLO10: 1674 | BLP10: 1675 | BLQ10: 1676 | BLR10: 1677 | BLS10: 1678 | BLT10: 1679 | BLU10: 1680 | BLV10: 1681 | BLW10: 1682 | BLX10: 1683 | BLY10: 1684 | BLZ10: 1685 | BMA10: 1686 | BMB10: 1687 | BMC10: 1688 | BMD10: 1689 | BME10: 1690 | BMF10: 1691 | BMG10: 1692 | BMH10: 1693 | BMI10: 1694 | BMJ10: 1695 | BMK10: 1696 | BML10: 1697 | BMM10: 1698 | BMN10: 1699 | BMO10: 1700 | BMP10: 1701 | BMQ10: 1702 | BMR10: 1703 | BMS10: 1704 | BMT10: 1705 | BMU10: 1706 | BMV10: 1707 | BMW10: 1708 | BMX10: 1709 | BMY10: 1710 | BMZ10: 1711 | BNA10: 1712 | BNB10: 1713 | BNC10: 1714 | BND10: 1715 | BNE10: 1716 | BNF10: 1717 | BNG10: 1718 | BNH10: 1719 | BNI10: 1720 | BNJ10: 1721 | BNK10: 1722 | BNL10: 1723 | BNM10: 1724 | BNN10: 1725 | BNO10: 1726 | BNP10: 1727 | BNQ10: 1728 | BNR10: 1729 | BNS10: 1730 | BNT10: =BNS10+1 -> 1731 | BNU10: 1732 | BNV10: 1733 | BNW10: 1734 | BNX10: 1735 | BNY10: 1736 | BNZ10: 1737 | BOA10: 1738 | BOB10: 1739 | BOC10: 1740 | BOD10: 1741 | BOE10: 1742 | BOF10: 1743 | BOG10: 1744 | BOH10: 1745 | BOI10: 1746 | BOJ10: 1747 | BOK10: 1748 | BOL10: 1749 | BOM10: 1750 | BON10: 1751 | BOO10: 1752 | BOP10: 1753 | BOQ10: 1754 | BOR10: 1755 | BOS10: 1756 | BOT10: 1757 | BOU10: 1758 | BOV10: 1759 | BOW10: 1760 | BOX10: 1761 | BOY10: 1762 | BOZ10: 1763 | BPA10: 1764 | BPB10: 1765 | BPC10: 1766 | BPD10: 1767 | BPE10: 1768 | BPF10: 1769 | BPG10: 1770 | BPH10: 1771 | BPI10: 1772 | BPJ10: 1773 | BPK10: 1774 | BPL10: 1775 | BPM10: 1776 | BPN10: 1777 | BPO10: 1778 | BPP10: 1779 | BPQ10: 1780 | BPR10: 1781 | BPS10: 1782 | BPT10: 1783 | BPU10: 1784 | BPV10: 1785 | BPW10: 1786 | BPX10: 1787 | BPY10: 1788 | BPZ10: 1789 | BQA10: 1790 | BQB10: 1791 | BQC10: 1792 | BQD10: 1793 | BQE10: 1794 | BQF10: =BQE10+1 -> 1795 | BQG10: 1796 | BQH10: 1797 | BQI10: 1798 | BQJ10: 1799 | BQK10: 1800 | BQL10: 1801 | BQM10: 1802 | BQN10: 1803 | BQO10: 1804 | BQP10: 1805 | BQQ10: 1806 | BQR10: 1807 | BQS10: 1808 | BQT10: 1809 | BQU10: 1810 | BQV10: 1811 | BQW10: 1812 | BQX10: 1813 | BQY10: 1814 | BQZ10: 1815 | BRA10: 1816 | BRB10: 1817 | BRC10: 1818 | BRD10: 1819 | BRE10: 1820 | BRF10: 1821 | BRG10: 1822 | BRH10: 1823 | BRI10: 1824 | BRJ10: 1825 | BRK10: 1826 | BRL10: 1827 | BRM10: 1828 | BRN10: 1829 | BRO10: 1830 | BRP10: 1831 | BRQ10: 1832 | BRR10: 1833 | BRS10: 1834 | BRT10: 1835 | BRU10: 1836 | BRV10: 1837 | BRW10: 1838 | BRX10: 1839 | BRY10: 1840 | BRZ10: 1841 | BSA10: 1842 | BSB10: 1843 | BSC10: 1844 | BSD10: 1845 | BSE10: 1846 | BSF10: 1847 | BSG10: 1848 | BSH10: 1849 | BSI10: 1850 | BSJ10: 1851 | BSK10: 1852 | BSL10: 1853 | BSM10: 1854 | BSN10: 1855 | BSO10: 1856 | BSP10: 1857 | BSQ10: 1858 | BSR10: =BSQ10+1 -> 1859 | BSS10: 1860 | BST10: 1861 | BSU10: 1862 | BSV10: 1863 | BSW10: 1864 | BSX10: 1865 | BSY10: 1866 | BSZ10: 1867 | BTA10: 1868 | BTB10: 1869 | BTC10: 1870 | BTD10: 1871 | BTE10: 1872 | BTF10: 1873 | BTG10: 1874 | BTH10: 1875 | BTI10: 1876 | BTJ10: 1877 | BTK10: 1878 | BTL10: 1879 | BTM10: 1880 | BTN10: 1881 | BTO10: 1882 | BTP10: 1883 | BTQ10: 1884 | BTR10: 1885 | BTS10: 1886 | BTT10: 1887 | BTU10: 1888 | BTV10: 1889 | BTW10: 1890 | BTX10: 1891 | BTY10: 1892 | BTZ10: 1893 | BUA10: 1894 | BUB10: 1895 | BUC10: 1896 | BUD10: 1897 | BUE10: 1898 | BUF10: 1899 | BUG10: 1900 | BUH10: 1901 | BUI10: 1902 | BUJ10: 1903 | BUK10: 1904 | BUL10: 1905 | BUM10: 1906 | BUN10: 1907 | BUO10: 1908 | BUP10: 1909 | BUQ10: 1910 | BUR10: 1911 | BUS10: 1912 | BUT10: 1913 | BUU10: 1914 | BUV10: 1915 | BUW10: 1916 | BUX10: 1917 | BUY10: 1918 | BUZ10: 1919 | BVA10: 1920 | BVB10: 1921 | BVC10: 1922 | BVD10: =BVC10+1 -> 1923 | BVE10: 1924 | BVF10: 1925 | BVG10: 1926 | BVH10: 1927 | BVI10: 1928 | BVJ10: 1929 | BVK10: 1930 | BVL10: 1931 | BVM10: 1932 | BVN10: 1933 | BVO10: 1934 | BVP10: 1935 | BVQ10: 1936 | BVR10: 1937 | BVS10: 1938 | BVT10: 1939 | BVU10: 1940 | BVV10: 1941 | BVW10: 1942 | BVX10: 1943 | BVY10: 1944 | BVZ10: 1945 | BWA10: 1946 | BWB10: 1947 | BWC10: 1948 | BWD10: 1949 | BWE10: 1950 | BWF10: 1951 | BWG10: 1952 | BWH10: 1953 | BWI10: 1954 | BWJ10: 1955 | BWK10: 1956 | BWL10: 1957 | BWM10: 1958 | BWN10: 1959 | BWO10: 1960 | BWP10: 1961 | BWQ10: 1962 | BWR10: 1963 | BWS10: 1964 | BWT10: 1965 | BWU10: 1966 | BWV10: 1967 | BWW10: 1968 | BWX10: 1969 | BWY10: 1970 | BWZ10: 1971 | BXA10: 1972 | BXB10: 1973 | BXC10: 1974 | BXD10: 1975 | BXE10: 1976 | BXF10: 1977 | BXG10: 1978 | BXH10: 1979 | BXI10: 1980 | BXJ10: 1981 | BXK10: 1982 | BXL10: 1983 | BXM10: 1984 | BXN10: 1985 | BXO10: 1986 | BXP10: =BXO10+1 -> 1987 | BXQ10: 1988 | BXR10: 1989 | BXS10: 1990 | BXT10: 1991 | BXU10: 1992 | BXV10: 1993 | BXW10: 1994 | BXX10: 1995 | BXY10: 1996 | BXZ10: 1997 | BYA10: 1998 | BYB10: 1999 | BYC10: 2000 | BYD10: 2001 | BYE10: 2002 | BYF10: 2003 | BYG10: 2004 | BYH10: 2005 | BYI10: 2006 | BYJ10: 2007 | BYK10: 2008 | BYL10: 2009 | BYM10: 2010 | BYN10: 2011 | BYO10: 2012 | BYP10: 2013 | BYQ10: 2014 | BYR10: 2015 | BYS10: 2016 | BYT10: 2017 | BYU10: 2018 | BYV10: 2019 | BYW10: 2020 | BYX10: 2021 | BYY10: 2022 | BYZ10: 2023 | BZA10: 2024 | BZB10: 2025 | BZC10: 2026 | BZD10: 2027 | BZE10: 2028 | BZF10: 2029 | BZG10: 2030 | BZH10: 2031 | BZI10: 2032 | BZJ10: 2033 | BZK10: 2034 | BZL10: 2035 | BZM10: 2036 | BZN10: 2037 | BZO10: 2038 | BZP10: 2039 | BZQ10: 2040 | BZR10: 2041 | BZS10: 2042 | BZT10: 2043 | BZU10: 2044 | BZV10: 2045 | BZW10: 2046 | BZX10: 2047 | BZY10: 2048 | BZZ10: 2049 | CAA10: 2050 | CAB10: =CAA10+1 -> 2051 | CAC10: 2052 | CAD10: 2053 | CAE10: 2054 | CAF10: 2055 | CAG10: 2056 | CAH10: 2057 | CAI10: 2058 | CAJ10: 2059 | CAK10: 2060 | CAL10: 2061 | CAM10: 2062 | CAN10: 2063 | CAO10: 2064 | CAP10: 2065 | CAQ10: 2066 | CAR10: 2067 | CAS10: 2068 | CAT10: 2069 | CAU10: 2070 | CAV10: 2071 | CAW10: 2072 | CAX10: 2073 | CAY10: 2074 | CAZ10: 2075 | CBA10: 2076 | CBB10: 2077 | CBC10: 2078 | CBD10: 2079 | CBE10: 2080 | CBF10: 2081 | CBG10: 2082 | CBH10: 2083 | CBI10: 2084 | CBJ10: 2085 | CBK10: 2086 | CBL10: 2087 | CBM10: 2088 | CBN10: 2089 | CBO10: 2090 | CBP10: 2091 | CBQ10: 2092 | CBR10: 2093 | CBS10: 2094 | CBT10: 2095 | CBU10: 2096 | CBV10: 2097 | CBW10: 2098 | CBX10: 2099 | CBY10: 2100 | CBZ10: 2101 | CCA10: 2102 | CCB10: 2103 | CCC10: 2104 | CCD10: 2105 | CCE10: 2106 | CCF10: 2107 | CCG10: 2108 | CCH10: 2109 | CCI10: 2110 | CCJ10: 2111 | CCK10: 2112 | CCL10: 2113 | CCM10: 2114 | CCN10: =CCM10+1 -> 2115 | CCO10: 2116 | CCP10: 2117 | CCQ10: 2118 | CCR10: 2119 | CCS10: 2120 | CCT10: 2121 | CCU10: 2122 | CCV10: 2123 | CCW10: 2124 | CCX10: 2125 | CCY10: 2126 | CCZ10: 2127 | CDA10: 2128 | CDB10: 2129 | CDC10: 2130 | CDD10: 2131 | CDE10: 2132 | CDF10: 2133 | CDG10: 2134 | CDH10: 2135 | CDI10: 2136 | CDJ10: 2137 | CDK10: 2138 | CDL10: 2139 | CDM10: 2140 | CDN10: 2141 | CDO10: 2142 | CDP10: 2143 | CDQ10: 2144 | CDR10: 2145 | CDS10: 2146 | CDT10: 2147 | CDU10: 2148 | CDV10: 2149 | CDW10: 2150 | CDX10: 2151 | CDY10: 2152 | CDZ10: 2153 | CEA10: 2154 | CEB10: 2155 | CEC10: 2156 | CED10: 2157 | CEE10: 2158 | CEF10: 2159 | CEG10: 2160 | CEH10: 2161 | CEI10: 2162 | CEJ10: 2163 | CEK10: 2164 | CEL10: 2165 | CEM10: 2166 | CEN10: 2167 | CEO10: 2168 | CEP10: 2169 | CEQ10: 2170 | CER10: 2171 | CES10: 2172 | CET10: 2173 | CEU10: 2174 | CEV10: 2175 | CEW10: 2176 | CEX10: 2177 | CEY10: 2178 | CEZ10: =CEY10+1 -> 2179 | CFA10: 2180 | CFB10: 2181 | CFC10: 2182 | CFD10: 2183 | CFE10: 2184 | CFF10: 2185 | CFG10: 2186 | CFH10: 2187 | CFI10: 2188 | CFJ10: 2189 | CFK10: 2190 | CFL10: 2191 | CFM10: 2192 | CFN10: 2193 | CFO10: 2194 | CFP10: 2195 | CFQ10: 2196 | CFR10: 2197 | CFS10: 2198 | CFT10: 2199 | CFU10: 2200 | CFV10: 2201 | CFW10: 2202 | CFX10: 2203 | CFY10: 2204 | CFZ10: 2205 | CGA10: 2206 | CGB10: 2207 | CGC10: 2208 | CGD10: 2209 | CGE10: 2210 | CGF10: 2211 | CGG10: 2212 | CGH10: 2213 | CGI10: 2214 | CGJ10: 2215 | CGK10: 2216 | CGL10: 2217 | CGM10: 2218 | CGN10: 2219 | CGO10: 2220 | CGP10: 2221 | CGQ10: 2222 | CGR10: 2223 | CGS10: 2224 | CGT10: 2225 | CGU10: 2226 | CGV10: 2227 | CGW10: 2228 | CGX10: 2229 | CGY10: 2230 | CGZ10: 2231 | CHA10: 2232 | CHB10: 2233 | CHC10: 2234 | CHD10: 2235 | CHE10: 2236 | CHF10: 2237 | CHG10: 2238 | CHH10: 2239 | CHI10: 2240 | CHJ10: 2241 | CHK10: 2242 | CHL10: =CHK10+1 -> 2243 | CHM10: 2244 | CHN10: 2245 | CHO10: 2246 | CHP10: 2247 | CHQ10: 2248 | CHR10: 2249 | CHS10: 2250 | CHT10: 2251 | CHU10: 2252 | CHV10: 2253 | CHW10: 2254 | CHX10: 2255 | CHY10: 2256 | CHZ10: 2257 | CIA10: 2258 | CIB10: 2259 | CIC10: 2260 | CID10: 2261 | CIE10: 2262 | CIF10: 2263 | CIG10: 2264 | CIH10: 2265 | CII10: 2266 | CIJ10: 2267 | CIK10: 2268 | CIL10: 2269 | CIM10: 2270 | CIN10: 2271 | CIO10: 2272 | CIP10: 2273 | CIQ10: 2274 | CIR10: 2275 | CIS10: 2276 | CIT10: 2277 | CIU10: 2278 | CIV10: 2279 | CIW10: 2280 | CIX10: 2281 | CIY10: 2282 | CIZ10: 2283 | CJA10: 2284 | CJB10: 2285 | CJC10: 2286 | CJD10: 2287 | CJE10: 2288 | CJF10: 2289 | CJG10: 2290 | CJH10: 2291 | CJI10: 2292 | CJJ10: 2293 | CJK10: 2294 | CJL10: 2295 | CJM10: 2296 | CJN10: 2297 | CJO10: 2298 | CJP10: 2299 | CJQ10: 2300 | CJR10: 2301 | CJS10: 2302 | CJT10: 2303 | CJU10: 2304 | CJV10: 2305 | CJW10: 2306 | CJX10: =CJW10+1 -> 2307 | CJY10: 2308 | CJZ10: 2309 | CKA10: 2310 | CKB10: 2311 | CKC10: 2312 | CKD10: 2313 | CKE10: 2314 | CKF10: 2315 | CKG10: 2316 | CKH10: 2317 | CKI10: 2318 | CKJ10: 2319 | CKK10: 2320 | CKL10: 2321 | CKM10: 2322 | CKN10: 2323 | CKO10: 2324 | CKP10: 2325 | CKQ10: 2326 | CKR10: 2327 | CKS10: 2328 | CKT10: 2329 | CKU10: 2330 | CKV10: 2331 | CKW10: 2332 | CKX10: 2333 | CKY10: 2334 | CKZ10: 2335 | CLA10: 2336 | CLB10: 2337 | CLC10: 2338 | CLD10: 2339 | CLE10: 2340 | CLF10: 2341 | CLG10: 2342 | CLH10: 2343 | CLI10: 2344 | CLJ10: 2345 | CLK10: 2346 | CLL10: 2347 | CLM10: 2348 | CLN10: 2349 | CLO10: 2350 | CLP10: 2351 | CLQ10: 2352 | CLR10: 2353 | CLS10: 2354 | CLT10: 2355 | CLU10: 2356 | CLV10: 2357 | CLW10: 2358 | CLX10: 2359 | CLY10: 2360 | CLZ10: 2361 | CMA10: 2362 | CMB10: 2363 | CMC10: 2364 | CMD10: 2365 | CME10: 2366 | CMF10: 2367 | CMG10: 2368 | CMH10: 2369 | CMI10: 2370 | CMJ10: =CMI10+1 -> 2371 | CMK10: 2372 | CML10: 2373 | CMM10: 2374 | CMN10: 2375 | CMO10: 2376 | CMP10: 2377 | CMQ10: 2378 | CMR10: 2379 | CMS10: 2380 | CMT10: 2381 | CMU10: 2382 | CMV10: 2383 | CMW10: 2384 | CMX10: 2385 | CMY10: 2386 | CMZ10: 2387 | CNA10: 2388 | CNB10: 2389 | CNC10: 2390 | CND10: 2391 | CNE10: 2392 | CNF10: 2393 | CNG10: 2394 | CNH10: 2395 | CNI10: 2396 | CNJ10: 2397 | CNK10: 2398 | CNL10: 2399 | CNM10: 2400 | CNN10: 2401 | CNO10: 2402 | CNP10: 2403 | CNQ10: 2404 | CNR10: 2405 | CNS10: 2406 | CNT10: 2407 | CNU10: 2408 | CNV10: 2409 | CNW10: 2410 | CNX10: 2411 | CNY10: 2412 | CNZ10: 2413 | COA10: 2414 | COB10: 2415 | COC10: 2416 | COD10: 2417 | COE10: 2418 | COF10: 2419 | COG10: 2420 | COH10: 2421 | COI10: 2422 | COJ10: 2423 | COK10: 2424 | COL10: 2425 | COM10: 2426 | CON10: 2427 | COO10: 2428 | COP10: 2429 | COQ10: 2430 | COR10: 2431 | COS10: 2432 | COT10: 2433 | COU10: 2434 | COV10: =COU10+1 -> 2435 | COW10: 2436 | COX10: 2437 | COY10: 2438 | COZ10: 2439 | CPA10: 2440 | CPB10: 2441 | CPC10: 2442 | CPD10: 2443 | CPE10: 2444 | CPF10: 2445 | CPG10: 2446 | CPH10: 2447 | CPI10: 2448 | CPJ10: 2449 | CPK10: 2450 | CPL10: 2451 | CPM10: 2452 | CPN10: 2453 | CPO10: 2454 | CPP10: 2455 | CPQ10: 2456 | CPR10: 2457 | CPS10: 2458 | CPT10: 2459 | CPU10: 2460 | CPV10: 2461 | CPW10: 2462 | CPX10: 2463 | CPY10: 2464 | CPZ10: 2465 | CQA10: 2466 | CQB10: 2467 | CQC10: 2468 | CQD10: 2469 | CQE10: 2470 | CQF10: 2471 | CQG10: 2472 | CQH10: 2473 | CQI10: 2474 | CQJ10: 2475 | CQK10: 2476 | CQL10: 2477 | CQM10: 2478 | CQN10: 2479 | CQO10: 2480 | CQP10: 2481 | CQQ10: 2482 | CQR10: 2483 | CQS10: 2484 | CQT10: 2485 | CQU10: 2486 | CQV10: 2487 | CQW10: 2488 | CQX10: 2489 | CQY10: 2490 | CQZ10: 2491 | CRA10: 2492 | CRB10: 2493 | CRC10: 2494 | CRD10: 2495 | CRE10: 2496 | CRF10: 2497 | CRG10: 2498 | CRH10: =CRG10+1 -> 2499 | CRI10: 2500 | CRJ10: 2501 | CRK10: 2502 | CRL10: 2503 | CRM10: 2504 | CRN10: 2505 | CRO10: 2506 | CRP10: 2507 | CRQ10: 2508 | CRR10: 2509 | CRS10: 2510 | CRT10: 2511 | CRU10: 2512 | CRV10: 2513 | CRW10: 2514 | CRX10: 2515 | CRY10: 2516 | CRZ10: 2517 | CSA10: 2518 | CSB10: 2519 | CSC10: 2520 | CSD10: 2521 | CSE10: 2522 | CSF10: 2523 | CSG10: 2524 | CSH10: 2525 | CSI10: 2526 | CSJ10: 2527 | CSK10: 2528 | CSL10: 2529 | CSM10: 2530 | CSN10: 2531 | CSO10: 2532 | CSP10: 2533 | CSQ10: 2534 | CSR10: 2535 | CSS10: 2536 | CST10: 2537 | CSU10: 2538 | CSV10: 2539 | CSW10: 2540 | CSX10: 2541 | CSY10: 2542 | CSZ10: 2543 | CTA10: 2544 | CTB10: 2545 | CTC10: 2546 | CTD10: 2547 | CTE10: 2548 | CTF10: 2549 | CTG10: 2550 | CTH10: 2551 | CTI10: 2552 | CTJ10: 2553 | CTK10: 2554 | CTL10: 2555 | CTM10: 2556 | CTN10: 2557 | CTO10: 2558 | CTP10: 2559 | CTQ10: 2560 | CTR10: 2561 | CTS10: 2562 | CTT10: =CTS10+1 -> 2563 | CTU10: 2564 | CTV10: 2565 | CTW10: 2566 | CTX10: 2567 | CTY10: 2568 | CTZ10: 2569 | CUA10: 2570 | CUB10: 2571 | CUC10: 2572 | CUD10: 2573 | CUE10: 2574 | CUF10: 2575 | CUG10: 2576 | CUH10: 2577 | CUI10: 2578 | CUJ10: 2579 | CUK10: 2580 | CUL10: 2581 | CUM10: 2582 | CUN10: 2583 | CUO10: 2584 | CUP10: 2585 | CUQ10: 2586 | CUR10: 2587 | CUS10: 2588 | CUT10: 2589 | CUU10: 2590 | CUV10: 2591 | CUW10: 2592 | CUX10: 2593 | CUY10: 2594 | CUZ10: 2595 | CVA10: 2596 | CVB10: 2597 | CVC10: 2598 | CVD10: 2599 | CVE10: 2600 | CVF10: 2601 | CVG10: 2602 | CVH10: 2603 | CVI10: 2604 | CVJ10: 2605 | CVK10: 2606 | CVL10: 2607 | CVM10: 2608 | CVN10: 2609 | CVO10: 2610 | CVP10: 2611 | CVQ10: 2612 | CVR10: 2613 | CVS10: 2614 | CVT10: 2615 | CVU10: 2616 | CVV10: 2617 | CVW10: 2618 | CVX10: 2619 | CVY10: 2620 | CVZ10: 2621 | CWA10: 2622 | CWB10: 2623 | CWC10: 2624 | CWD10: 2625 | CWE10: 2626 | CWF10: =CWE10+1 -> 2627 | CWG10: 2628 | CWH10: 2629 | CWI10: 2630 | CWJ10: 2631 | CWK10: 2632 | CWL10: 2633 | CWM10: 2634 | CWN10: 2635 | CWO10: 2636 | CWP10: 2637 | CWQ10: 2638 | CWR10: 2639 | CWS10: 2640 | CWT10: 2641 | CWU10: 2642 | CWV10: 2643 | CWW10: 2644 | CWX10: 2645 | CWY10: 2646 | CWZ10: 2647 | CXA10: 2648 | CXB10: 2649 | CXC10: 2650 | CXD10: 2651 | CXE10: 2652 | CXF10: 2653 | CXG10: 2654 | CXH10: 2655 | CXI10: 2656 | CXJ10: 2657 | CXK10: 2658 | CXL10: 2659 | CXM10: 2660 | CXN10: 2661 | CXO10: 2662 | CXP10: 2663 | CXQ10: 2664 | CXR10: 2665 | CXS10: 2666 | CXT10: 2667 | CXU10: 2668 | CXV10: 2669 | CXW10: 2670 | CXX10: 2671 | CXY10: 2672 | CXZ10: 2673 | CYA10: 2674 | CYB10: 2675 | CYC10: 2676 | CYD10: 2677 | CYE10: 2678 | CYF10: 2679 | CYG10: 2680 | CYH10: 2681 | CYI10: 2682 | CYJ10: 2683 | CYK10: 2684 | CYL10: 2685 | CYM10: 2686 | CYN10: 2687 | CYO10: 2688 | CYP10: 2689 | CYQ10: 2690 | CYR10: =CYQ10+1 -> 2691 | CYS10: 2692 | CYT10: 2693 | CYU10: 2694 | CYV10: 2695 | CYW10: 2696 | CYX10: 2697 | CYY10: 2698 | CYZ10: 2699 | CZA10: 2700 | CZB10: 2701 | CZC10: 2702 | CZD10: 2703 | CZE10: 2704 | CZF10: 2705 | CZG10: 2706 | CZH10: 2707 | CZI10: 2708 | CZJ10: 2709 | CZK10: 2710 | CZL10: 2711 | CZM10: 2712 | CZN10: 2713 | CZO10: 2714 | CZP10: 2715 | CZQ10: 2716 | CZR10: 2717 | CZS10: 2718 | CZT10: 2719 | CZU10: 2720 | CZV10: 2721 | CZW10: 2722 | CZX10: 2723 | CZY10: 2724 | CZZ10: 2725 | DAA10: 2726 | DAB10: 2727 | DAC10: 2728 | DAD10: 2729 | DAE10: 2730 | DAF10: 2731 | DAG10: 2732 | DAH10: 2733 | DAI10: 2734 | DAJ10: 2735 | DAK10: 2736 | DAL10: 2737 | DAM10: 2738 | DAN10: 2739 | DAO10: 2740 | DAP10: 2741 | DAQ10: 2742 | DAR10: 2743 | DAS10: 2744 | DAT10: 2745 | DAU10: 2746 | DAV10: 2747 | DAW10: 2748 | DAX10: 2749 | DAY10: 2750 | DAZ10: 2751 | DBA10: 2752 | DBB10: 2753 | DBC10: 2754 | DBD10: =DBC10+1 -> 2755 | DBE10: 2756 | DBF10: 2757 | DBG10: 2758 | DBH10: 2759 | DBI10: 2760 | DBJ10: 2761 | DBK10: 2762 | DBL10: 2763 | DBM10: 2764 | DBN10: 2765 | DBO10: 2766 | DBP10: 2767 | DBQ10: 2768 | DBR10: 2769 | DBS10: 2770 | DBT10: 2771 | DBU10: 2772 | DBV10: 2773 | DBW10: 2774 | DBX10: 2775 | DBY10: 2776 | DBZ10: 2777 | DCA10: 2778 | DCB10: 2779 | DCC10: 2780 | DCD10: 2781 | DCE10: 2782 | DCF10: 2783 | DCG10: 2784 | DCH10: 2785 | DCI10: 2786 | DCJ10: 2787 | DCK10: 2788 | DCL10: 2789 | DCM10: 2790 | DCN10: 2791 | DCO10: 2792 | DCP10: 2793 | DCQ10: 2794 | DCR10: 2795 | DCS10: 2796 | DCT10: 2797 | DCU10: 2798 | DCV10: 2799 | DCW10: 2800 | DCX10: 2801 | DCY10: 2802 | DCZ10: 2803 | DDA10: 2804 | DDB10: 2805 | DDC10: 2806 | DDD10: 2807 | DDE10: 2808 | DDF10: 2809 | DDG10: 2810 | DDH10: 2811 | DDI10: 2812 | DDJ10: 2813 | DDK10: 2814 | DDL10: 2815 | DDM10: 2816 | DDN10: 2817 | DDO10: 2818 | DDP10: =DDO10+1 -> 2819 | DDQ10: 2820 | DDR10: 2821 | DDS10: 2822 | DDT10: 2823 | DDU10: 2824 | DDV10: 2825 | DDW10: 2826 | DDX10: 2827 | DDY10: 2828 | DDZ10: 2829 | DEA10: 2830 | DEB10: 2831 | DEC10: 2832 | DED10: 2833 | DEE10: 2834 | DEF10: 2835 | DEG10: 2836 | DEH10: 2837 | DEI10: 2838 | DEJ10: 2839 | DEK10: 2840 | DEL10: 2841 | DEM10: 2842 | DEN10: 2843 | DEO10: 2844 | DEP10: 2845 | DEQ10: 2846 | DER10: 2847 | DES10: 2848 | DET10: 2849 | DEU10: 2850 | DEV10: 2851 | DEW10: 2852 | DEX10: 2853 | DEY10: 2854 | DEZ10: 2855 | DFA10: 2856 | DFB10: 2857 | DFC10: 2858 | DFD10: 2859 | DFE10: 2860 | DFF10: 2861 | DFG10: 2862 | DFH10: 2863 | DFI10: 2864 | DFJ10: 2865 | DFK10: 2866 | DFL10: 2867 | DFM10: 2868 | DFN10: 2869 | DFO10: 2870 | DFP10: 2871 | DFQ10: 2872 | DFR10: 2873 | DFS10: 2874 | DFT10: 2875 | DFU10: 2876 | DFV10: 2877 | DFW10: 2878 | DFX10: 2879 | DFY10: 2880 | DFZ10: 2881 | DGA10: 2882 | DGB10: =DGA10+1 -> 2883 | DGC10: 2884 | DGD10: 2885 | DGE10: 2886 | DGF10: 2887 | DGG10: 2888 | DGH10: 2889 | DGI10: 2890 | DGJ10: 2891 | DGK10: 2892 | DGL10: 2893 | DGM10: 2894 | DGN10: 2895 | DGO10: 2896 | DGP10: 2897 | DGQ10: 2898 | DGR10: 2899 | DGS10: 2900 | DGT10: 2901 | DGU10: 2902 | DGV10: 2903 | DGW10: 2904 | DGX10: 2905 | DGY10: 2906 | DGZ10: 2907 | DHA10: 2908 | DHB10: 2909 | DHC10: 2910 | DHD10: 2911 | DHE10: 2912 | DHF10: 2913 | DHG10: 2914 | DHH10: 2915 | DHI10: 2916 | DHJ10: 2917 | DHK10: 2918 | DHL10: 2919 | DHM10: 2920 | DHN10: 2921 | DHO10: 2922 | DHP10: 2923 | DHQ10: 2924 | DHR10: 2925 | DHS10: 2926 | DHT10: 2927 | DHU10: 2928 | DHV10: 2929 | DHW10: 2930 | DHX10: 2931 | DHY10: 2932 | DHZ10: 2933 | DIA10: 2934 | DIB10: 2935 | DIC10: 2936 | DID10: 2937 | DIE10: 2938 | DIF10: 2939 | DIG10: 2940 | DIH10: 2941 | DII10: 2942 | DIJ10: 2943 | DIK10: 2944 | DIL10: 2945 | DIM10: 2946 | DIN10: =DIM10+1 -> 2947 | DIO10: 2948 | DIP10: 2949 | DIQ10: 2950 | DIR10: 2951 | DIS10: 2952 | DIT10: 2953 | DIU10: 2954 | DIV10: 2955 | DIW10: 2956 | DIX10: 2957 | DIY10: 2958 | DIZ10: 2959 | DJA10: 2960 | DJB10: 2961 | DJC10: 2962 | DJD10: 2963 | DJE10: 2964 | DJF10: 2965 | DJG10: 2966 | DJH10: 2967 | DJI10: 2968 | DJJ10: 2969 | DJK10: 2970 | DJL10: 2971 | DJM10: 2972 | DJN10: 2973 | DJO10: 2974 | DJP10: 2975 | DJQ10: 2976 | DJR10: 2977 | DJS10: 2978 | DJT10: 2979 | DJU10: 2980 | DJV10: 2981 | DJW10: 2982 | DJX10: 2983 | DJY10: 2984 | DJZ10: 2985 | DKA10: 2986 | DKB10: 2987 | DKC10: 2988 | DKD10: 2989 | DKE10: 2990 | DKF10: 2991 | DKG10: 2992 | DKH10: 2993 | DKI10: 2994 | DKJ10: 2995 | DKK10: 2996 | DKL10: 2997 | DKM10: 2998 | DKN10: 2999 | DKO10: 3000 | DKP10: 3001 | DKQ10: 3002 | DKR10: 3003 | DKS10: 3004 | DKT10: 3005 | DKU10: 3006 | DKV10: 3007 | DKW10: 3008 | DKX10: 3009 | DKY10: 3010 | DKZ10: =DKY10+1 -> 3011 | DLA10: 3012 | DLB10: 3013 | DLC10: 3014 | DLD10: 3015 | DLE10: 3016 | DLF10: 3017 | DLG10: 3018 | DLH10: 3019 | DLI10: 3020 | DLJ10: 3021 | DLK10: 3022 | DLL10: 3023 | DLM10: 3024 | DLN10: 3025 | DLO10: 3026 | DLP10: 3027 | DLQ10: 3028 | DLR10: 3029 | DLS10: 3030 | DLT10: 3031 | DLU10: 3032 | DLV10: 3033 | DLW10: 3034 | DLX10: 3035 | DLY10: 3036 | DLZ10: 3037 | DMA10: 3038 | DMB10: 3039 | DMC10: 3040 | DMD10: 3041 | DME10: 3042 | DMF10: 3043 | DMG10: 3044 | DMH10: 3045 | DMI10: 3046 | DMJ10: 3047 | DMK10: 3048 | DML10: 3049 | DMM10: 3050 | DMN10: 3051 | DMO10: 3052 | DMP10: 3053 | DMQ10: 3054 | DMR10: 3055 | DMS10: 3056 | DMT10: 3057 | DMU10: 3058 | DMV10: 3059 | DMW10: 3060 | DMX10: 3061 | DMY10: 3062 | DMZ10: 3063 | DNA10: 3064 | DNB10: 3065 | DNC10: 3066 | DND10: 3067 | DNE10: 3068 | DNF10: 3069 | DNG10: 3070 | DNH10: 3071 | DNI10: 3072 | DNJ10: 3073 | DNK10: 3074 | DNL10: =DNK10+1 -> 3075 | DNM10: 3076 | DNN10: 3077 | DNO10: 3078 | DNP10: 3079 | DNQ10: 3080 | DNR10: 3081 | DNS10: 3082 | DNT10: 3083 | DNU10: 3084 | DNV10: 3085 | DNW10: 3086 | DNX10: 3087 | DNY10: 3088 | DNZ10: 3089 | DOA10: 3090 | DOB10: 3091 | DOC10: 3092 | DOD10: 3093 | DOE10: 3094 | DOF10: 3095 | DOG10: 3096 | DOH10: 3097 | DOI10: 3098 | DOJ10: 3099 | DOK10: 3100 | DOL10: 3101 | DOM10: 3102 | DON10: 3103 | DOO10: 3104 | DOP10: 3105 | DOQ10: 3106 | DOR10: 3107 | DOS10: 3108 | DOT10: 3109 | DOU10: 3110 | DOV10: 3111 | DOW10: 3112 | DOX10: 3113 | DOY10: 3114 | DOZ10: 3115 | DPA10: 3116 | DPB10: 3117 | DPC10: 3118 | DPD10: 3119 | DPE10: 3120 | DPF10: 3121 | DPG10: 3122 | DPH10: 3123 | DPI10: 3124 | DPJ10: 3125 | DPK10: 3126 | DPL10: 3127 | DPM10: 3128 | DPN10: 3129 | DPO10: 3130 | DPP10: 3131 | DPQ10: 3132 | DPR10: 3133 | DPS10: 3134 | DPT10: 3135 | DPU10: 3136 | DPV10: 3137 | DPW10: 3138 | DPX10: =DPW10+1 -> 3139 | DPY10: 3140 | DPZ10: 3141 | DQA10: 3142 | DQB10: 3143 | DQC10: 3144 | DQD10: 3145 | DQE10: 3146 | DQF10: 3147 | DQG10: 3148 | DQH10: 3149 | DQI10: 3150 | DQJ10: 3151 | DQK10: 3152 | DQL10: 3153 | DQM10: 3154 | DQN10: 3155 | DQO10: 3156 | DQP10: 3157 | DQQ10: 3158 | DQR10: 3159 | DQS10: 3160 | DQT10: 3161 | DQU10: 3162 | DQV10: 3163 | DQW10: 3164 | DQX10: 3165 | DQY10: 3166 | DQZ10: 3167 | DRA10: 3168 | DRB10: 3169 | DRC10: 3170 | DRD10: 3171 | DRE10: 3172 | DRF10: 3173 | DRG10: 3174 | DRH10: 3175 | DRI10: 3176 | DRJ10: 3177 | DRK10: 3178 | DRL10: 3179 | DRM10: 3180 | DRN10: 3181 | DRO10: 3182 | DRP10: 3183 | DRQ10: 3184 | DRR10: 3185 | DRS10: 3186 | DRT10: 3187 | DRU10: 3188 | DRV10: 3189 | DRW10: 3190 | DRX10: 3191 | DRY10: 3192 | DRZ10: 3193 | DSA10: 3194 | DSB10: 3195 | DSC10: 3196 | DSD10: 3197 | DSE10: 3198 | DSF10: 3199 | DSG10: 3200 | DSH10: 3201 | DSI10: 3202 | DSJ10: =DSI10+1 -> 3203 | DSK10: 3204 | DSL10: 3205 | DSM10: 3206 | DSN10: 3207 | DSO10: 3208 | DSP10: 3209 | DSQ10: 3210 | DSR10: 3211 | DSS10: 3212 | DST10: 3213 | DSU10: 3214 | DSV10: 3215 | DSW10: 3216 | DSX10: 3217 | DSY10: 3218 | DSZ10: 3219 | DTA10: 3220 | DTB10: 3221 | DTC10: 3222 | DTD10: 3223 | DTE10: 3224 | DTF10: 3225 | DTG10: 3226 | DTH10: 3227 | DTI10: 3228 | DTJ10: 3229 | DTK10: 3230 | DTL10: 3231 | DTM10: 3232 | DTN10: 3233 | DTO10: 3234 | DTP10: 3235 | DTQ10: 3236 | DTR10: 3237 | DTS10: 3238 | DTT10: 3239 | DTU10: 3240 | DTV10: 3241 | DTW10: 3242 | DTX10: 3243 | DTY10: 3244 | DTZ10: 3245 | DUA10: 3246 | DUB10: 3247 | DUC10: 3248 | DUD10: 3249 | DUE10: 3250 | DUF10: 3251 | DUG10: 3252 | DUH10: 3253 | DUI10: 3254 | DUJ10: 3255 | DUK10: 3256 | DUL10: 3257 | DUM10: 3258 | DUN10: 3259 | DUO10: 3260 | DUP10: 3261 | DUQ10: 3262 | DUR10: 3263 | DUS10: 3264 | DUT10: 3265 | DUU10: 3266 | DUV10: =DUU10+1 -> 3267 | DUW10: 3268 | DUX10: 3269 | DUY10: 3270 | DUZ10: 3271 | DVA10: 3272 | DVB10: 3273 | DVC10: 3274 | DVD10: 3275 | DVE10: 3276 | DVF10: 3277 | DVG10: 3278 | DVH10: 3279 | DVI10: 3280 | DVJ10: 3281 | DVK10: 3282 | DVL10: 3283 | DVM10: 3284 | DVN10: 3285 | DVO10: 3286 | DVP10: 3287 | DVQ10: 3288 | DVR10: 3289 | DVS10: 3290 | DVT10: 3291 | DVU10: 3292 | DVV10: 3293 | DVW10: 3294 | DVX10: 3295 | DVY10: 3296 | DVZ10: 3297 | DWA10: 3298 | DWB10: 3299 | DWC10: 3300 | DWD10: 3301 | DWE10: 3302 | DWF10: 3303 | DWG10: 3304 | DWH10: 3305 | DWI10: 3306 | DWJ10: 3307 | DWK10: 3308 | DWL10: 3309 | DWM10: 3310 | DWN10: 3311 | DWO10: 3312 | DWP10: 3313 | DWQ10: 3314 | DWR10: 3315 | DWS10: 3316 | DWT10: 3317 | DWU10: 3318 | DWV10: 3319 | DWW10: 3320 | DWX10: 3321 | DWY10: 3322 | DWZ10: 3323 | DXA10: 3324 | DXB10: 3325 | DXC10: 3326 | DXD10: 3327 | DXE10: 3328 | DXF10: 3329 | DXG10: 3330 | DXH10: =DXG10+1 -> 3331 | DXI10: 3332 | DXJ10: 3333 | DXK10: 3334 | DXL10: 3335 | DXM10: 3336 | DXN10: 3337 | DXO10: 3338 | DXP10: 3339 | DXQ10: 3340 | DXR10: 3341 | DXS10: 3342 | DXT10: 3343 | DXU10: 3344 | DXV10: 3345 | DXW10: 3346 | DXX10: 3347 | DXY10: 3348 | DXZ10: 3349 | DYA10: 3350 | DYB10: 3351 | DYC10: 3352 | DYD10: 3353 | DYE10: 3354 | DYF10: 3355 | DYG10: 3356 | DYH10: 3357 | DYI10: 3358 | DYJ10: 3359 | DYK10: 3360 | DYL10: 3361 | DYM10: 3362 | DYN10: 3363 | DYO10: 3364 | DYP10: 3365 | DYQ10: 3366 | DYR10: 3367 | DYS10: 3368 | DYT10: 3369 | DYU10: 3370 | DYV10: 3371 | DYW10: 3372 | DYX10: 3373 | DYY10: 3374 | DYZ10: 3375 | DZA10: 3376 | DZB10: 3377 | DZC10: 3378 | DZD10: 3379 | DZE10: 3380 | DZF10: 3381 | DZG10: 3382 | DZH10: 3383 | DZI10: 3384 | DZJ10: 3385 | DZK10: 3386 | DZL10: 3387 | DZM10: 3388 | DZN10: 3389 | DZO10: 3390 | DZP10: 3391 | DZQ10: 3392 | DZR10: 3393 | DZS10: 3394 | DZT10: =DZS10+1 -> 3395 | DZU10: 3396 | DZV10: 3397 | DZW10: 3398 | DZX10: 3399 | DZY10: 3400 | DZZ10: 3401 | EAA10: 3402 | EAB10: 3403 | EAC10: 3404 | EAD10: 3405 | EAE10: 3406 | EAF10: 3407 | EAG10: 3408 | EAH10: 3409 | EAI10: 3410 | EAJ10: 3411 | EAK10: 3412 | EAL10: 3413 | EAM10: 3414 | EAN10: 3415 | EAO10: 3416 | EAP10: 3417 | EAQ10: 3418 | EAR10: 3419 | EAS10: 3420 | EAT10: 3421 | EAU10: 3422 | EAV10: 3423 | EAW10: 3424 | EAX10: 3425 | EAY10: 3426 | EAZ10: 3427 | EBA10: 3428 | EBB10: 3429 | EBC10: 3430 | EBD10: 3431 | EBE10: 3432 | EBF10: 3433 | EBG10: 3434 | EBH10: 3435 | EBI10: 3436 | EBJ10: 3437 | EBK10: 3438 | EBL10: 3439 | EBM10: 3440 | EBN10: 3441 | EBO10: 3442 | EBP10: 3443 | EBQ10: 3444 | EBR10: 3445 | EBS10: 3446 | EBT10: 3447 | EBU10: 3448 | EBV10: 3449 | EBW10: 3450 | EBX10: 3451 | EBY10: 3452 | EBZ10: 3453 | ECA10: 3454 | ECB10: 3455 | ECC10: 3456 | ECD10: 3457 | ECE10: 3458 | ECF10: =ECE10+1 -> 3459 | ECG10: 3460 | ECH10: 3461 | ECI10: 3462 | ECJ10: 3463 | ECK10: 3464 | ECL10: 3465 | ECM10: 3466 | ECN10: 3467 | ECO10: 3468 | ECP10: 3469 | ECQ10: 3470 | ECR10: 3471 | ECS10: 3472 | ECT10: 3473 | ECU10: 3474 | ECV10: 3475 | ECW10: 3476 | ECX10: 3477 | ECY10: 3478 | ECZ10: 3479 | EDA10: 3480 | EDB10: 3481 | EDC10: 3482 | EDD10: 3483 | EDE10: 3484 | EDF10: 3485 | EDG10: 3486 | EDH10: 3487 | EDI10: 3488 | EDJ10: 3489 | EDK10: 3490 | EDL10: 3491 | EDM10: 3492 | EDN10: 3493 | EDO10: 3494 | EDP10: 3495 | EDQ10: 3496 | EDR10: 3497 | EDS10: 3498 | EDT10: 3499 | EDU10: 3500 | EDV10: 3501 | EDW10: 3502 | EDX10: 3503 | EDY10: 3504 | EDZ10: 3505 | EEA10: 3506 | EEB10: 3507 | EEC10: 3508 | EED10: 3509 | EEE10: 3510 | EEF10: 3511 | EEG10: 3512 | EEH10: 3513 | EEI10: 3514 | EEJ10: 3515 | EEK10: 3516 | EEL10: 3517 | EEM10: 3518 | EEN10: 3519 | EEO10: 3520 | EEP10: 3521 | EEQ10: 3522 | EER10: =EEQ10+1 -> 3523 | EES10: 3524 | EET10: 3525 | EEU10: 3526 | EEV10: 3527 | EEW10: 3528 | EEX10: 3529 | EEY10: 3530 | EEZ10: 3531 | EFA10: 3532 | EFB10: 3533 | EFC10: 3534 | EFD10: 3535 | EFE10: 3536 | EFF10: 3537 | EFG10: 3538 | EFH10: 3539 | EFI10: 3540 | EFJ10: 3541 | EFK10: 3542 | EFL10: 3543 | EFM10: 3544 | EFN10: 3545 | EFO10: 3546 | EFP10: 3547 | EFQ10: 3548 | EFR10: 3549 | EFS10: 3550 | EFT10: 3551 | EFU10: 3552 | EFV10: 3553 | EFW10: 3554 | EFX10: 3555 | EFY10: 3556 | EFZ10: 3557 | EGA10: 3558 | EGB10: 3559 | EGC10: 3560 | EGD10: 3561 | EGE10: 3562 | EGF10: 3563 | EGG10: 3564 | EGH10: 3565 | EGI10: 3566 | EGJ10: 3567 | EGK10: 3568 | EGL10: 3569 | EGM10: 3570 | EGN10: 3571 | EGO10: 3572 | EGP10: 3573 | EGQ10: 3574 | EGR10: 3575 | EGS10: 3576 | EGT10: 3577 | EGU10: 3578 | EGV10: 3579 | EGW10: 3580 | EGX10: 3581 | EGY10: 3582 | EGZ10: 3583 | EHA10: 3584 | EHB10: 3585 | EHC10: 3586 | EHD10: =EHC10+1 -> 3587 | EHE10: 3588 | EHF10: 3589 | EHG10: 3590 | EHH10: 3591 | EHI10: 3592 | EHJ10: 3593 | EHK10: 3594 | EHL10: 3595 | EHM10: 3596 | EHN10: 3597 | EHO10: 3598 | EHP10: 3599 | EHQ10: 3600 | EHR10: 3601 | EHS10: 3602 | EHT10: 3603 | EHU10: 3604 | EHV10: 3605 | EHW10: 3606 | EHX10: 3607 | EHY10: 3608 | EHZ10: 3609 | EIA10: 3610 | EIB10: 3611 | EIC10: 3612 | EID10: 3613 | EIE10: 3614 | EIF10: 3615 | EIG10: 3616 | EIH10: 3617 | EII10: 3618 | EIJ10: 3619 | EIK10: 3620 | EIL10: 3621 | EIM10: 3622 | EIN10: 3623 | EIO10: 3624 | EIP10: 3625 | EIQ10: 3626 | EIR10: 3627 | EIS10: 3628 | EIT10: 3629 | EIU10: 3630 | EIV10: 3631 | EIW10: 3632 | EIX10: 3633 | EIY10: 3634 | EIZ10: 3635 | EJA10: 3636 | EJB10: 3637 | EJC10: 3638 | EJD10: 3639 | EJE10: 3640 | EJF10: 3641 | EJG10: 3642 | EJH10: 3643 | EJI10: 3644 | EJJ10: 3645 | EJK10: 3646 | EJL10: 3647 | EJM10: 3648 | EJN10: 3649 | EJO10: 3650 | EJP10: =EJO10+1 -> 3651 | EJQ10: 3652 | EJR10: 3653 | EJS10: 3654 | EJT10: 3655 | EJU10: 3656 | EJV10: 3657 | EJW10: 3658 | EJX10: 3659 | EJY10: 3660 | EJZ10: 3661 | EKA10: 3662 | EKB10: 3663 | EKC10: 3664 | EKD10: 3665 | EKE10: 3666 | EKF10: 3667 | EKG10: 3668 | EKH10: 3669 | EKI10: 3670 | EKJ10: 3671 | EKK10: 3672 | EKL10: 3673 | EKM10: 3674 | EKN10: 3675 | EKO10: 3676 | EKP10: 3677 | EKQ10: 3678 | EKR10: 3679 | EKS10: 3680 | EKT10: 3681 | EKU10: 3682 | EKV10: 3683 | EKW10: 3684 | EKX10: 3685 | EKY10: 3686 | EKZ10: 3687 | ELA10: 3688 | ELB10: 3689 | ELC10: 3690 | ELD10: 3691 | ELE10: 3692 | ELF10: 3693 | ELG10: 3694 | ELH10: 3695 | ELI10: 3696 | ELJ10: 3697 | ELK10: 3698 | ELL10: 3699 | ELM10: 3700 | ELN10: 3701 | ELO10: 3702 | ELP10: 3703 | ELQ10: 3704 | ELR10: 3705 | ELS10: 3706 | ELT10: 3707 | ELU10: 3708 | ELV10: 3709 | ELW10: 3710 | ELX10: 3711 | ELY10: 3712 | ELZ10: 3713 | EMA10: 3714 | EMB10: =EMA10+1 -> 3715 | EMC10: 3716 | EMD10: 3717 | EME10: 3718 | EMF10: 3719 | EMG10: 3720 | EMH10: 3721 | EMI10: 3722 | EMJ10: 3723 | EMK10: 3724 | EML10: 3725 | EMM10: 3726 | EMN10: 3727 | EMO10: 3728 | EMP10: 3729 | EMQ10: 3730 | EMR10: 3731 | EMS10: 3732 | EMT10: 3733 | EMU10: 3734 | EMV10: 3735 | EMW10: 3736 | EMX10: 3737 | EMY10: 3738 | EMZ10: 3739 | ENA10: 3740 | ENB10: 3741 | ENC10: 3742 | END10: 3743 | ENE10: 3744 | ENF10: 3745 | ENG10: 3746 | ENH10: 3747 | ENI10: 3748 | ENJ10: 3749 | ENK10: 3750 | ENL10: 3751 | ENM10: 3752 | ENN10: 3753 | ENO10: 3754 | ENP10: 3755 | ENQ10: 3756 | ENR10: 3757 | ENS10: 3758 | ENT10: 3759 | ENU10: 3760 | ENV10: 3761 | ENW10: 3762 | ENX10: 3763 | ENY10: 3764 | ENZ10: 3765 | EOA10: 3766 | EOB10: 3767 | EOC10: 3768 | EOD10: 3769 | EOE10: 3770 | EOF10: 3771 | EOG10: 3772 | EOH10: 3773 | EOI10: 3774 | EOJ10: 3775 | EOK10: 3776 | EOL10: 3777 | EOM10: 3778 | EON10: =EOM10+1 -> 3779 | EOO10: 3780 | EOP10: 3781 | EOQ10: 3782 | EOR10: 3783 | EOS10: 3784 | EOT10: 3785 | EOU10: 3786 | EOV10: 3787 | EOW10: 3788 | EOX10: 3789 | EOY10: 3790 | EOZ10: 3791 | EPA10: 3792 | EPB10: 3793 | EPC10: 3794 | EPD10: 3795 | EPE10: 3796 | EPF10: 3797 | EPG10: 3798 | EPH10: 3799 | EPI10: 3800 | EPJ10: 3801 | EPK10: 3802 | EPL10: 3803 | EPM10: 3804 | EPN10: 3805 | EPO10: 3806 | EPP10: 3807 | EPQ10: 3808 | EPR10: 3809 | EPS10: 3810 | EPT10: 3811 | EPU10: 3812 | EPV10: 3813 | EPW10: 3814 | EPX10: 3815 | EPY10: 3816 | EPZ10: 3817 | EQA10: 3818 | EQB10: 3819 | EQC10: 3820 | EQD10: 3821 | EQE10: 3822 | EQF10: 3823 | EQG10: 3824 | EQH10: 3825 | EQI10: 3826 | EQJ10: 3827 | EQK10: 3828 | EQL10: 3829 | EQM10: 3830 | EQN10: 3831 | EQO10: 3832 | EQP10: 3833 | EQQ10: 3834 | EQR10: 3835 | EQS10: 3836 | EQT10: 3837 | EQU10: 3838 | EQV10: 3839 | EQW10: 3840 | EQX10: 3841 | EQY10: 3842 | EQZ10: =EQY10+1 -> 3843 | ERA10: 3844 | ERB10: 3845 | ERC10: 3846 | ERD10: 3847 | ERE10: 3848 | ERF10: 3849 | ERG10: 3850 | ERH10: 3851 | ERI10: 3852 | ERJ10: 3853 | ERK10: 3854 | ERL10: 3855 | ERM10: 3856 | ERN10: 3857 | ERO10: 3858 | ERP10: 3859 | ERQ10: 3860 | ERR10: 3861 | ERS10: 3862 | ERT10: 3863 | ERU10: 3864 | ERV10: 3865 | ERW10: 3866 | ERX10: 3867 | ERY10: 3868 | ERZ10: 3869 | ESA10: 3870 | ESB10: 3871 | ESC10: 3872 | ESD10: 3873 | ESE10: 3874 | ESF10: 3875 | ESG10: 3876 | ESH10: 3877 | ESI10: 3878 | ESJ10: 3879 | ESK10: 3880 | ESL10: 3881 | ESM10: 3882 | ESN10: 3883 | ESO10: 3884 | ESP10: 3885 | ESQ10: 3886 | ESR10: 3887 | ESS10: 3888 | EST10: 3889 | ESU10: 3890 | ESV10: 3891 | ESW10: 3892 | ESX10: 3893 | ESY10: 3894 | ESZ10: 3895 | ETA10: 3896 | ETB10: 3897 | ETC10: 3898 | ETD10: 3899 | ETE10: 3900 | ETF10: 3901 | ETG10: 3902 | ETH10: 3903 | ETI10: 3904 | ETJ10: 3905 | ETK10: 3906 | ETL10: =ETK10+1 -> 3907 | ETM10: 3908 | ETN10: 3909 | ETO10: 3910 | ETP10: 3911 | ETQ10: 3912 | ETR10: 3913 | ETS10: 3914 | ETT10: 3915 | ETU10: 3916 | ETV10: 3917 | ETW10: 3918 | ETX10: 3919 | ETY10: 3920 | ETZ10: 3921 | EUA10: 3922 | EUB10: 3923 | EUC10: 3924 | EUD10: 3925 | EUE10: 3926 | EUF10: 3927 | EUG10: 3928 | EUH10: 3929 | EUI10: 3930 | EUJ10: 3931 | EUK10: 3932 | EUL10: 3933 | EUM10: 3934 | EUN10: 3935 | EUO10: 3936 | EUP10: 3937 | EUQ10: 3938 | EUR10: 3939 | EUS10: 3940 | EUT10: 3941 | EUU10: 3942 | EUV10: 3943 | EUW10: 3944 | EUX10: 3945 | EUY10: 3946 | EUZ10: 3947 | EVA10: 3948 | EVB10: 3949 | EVC10: 3950 | EVD10: 3951 | EVE10: 3952 | EVF10: 3953 | EVG10: 3954 | EVH10: 3955 | EVI10: 3956 | EVJ10: 3957 | EVK10: 3958 | EVL10: 3959 | EVM10: 3960 | EVN10: 3961 | EVO10: 3962 | EVP10: 3963 | EVQ10: 3964 | EVR10: 3965 | EVS10: 3966 | EVT10: 3967 | EVU10: 3968 | EVV10: 3969 | EVW10: 3970 | EVX10: =EVW10+1 -> 3971 | EVY10: 3972 | EVZ10: 3973 | EWA10: 3974 | EWB10: 3975 | EWC10: 3976 | EWD10: 3977 | EWE10: 3978 | EWF10: 3979 | EWG10: 3980 | EWH10: 3981 | EWI10: 3982 | EWJ10: 3983 | EWK10: 3984 | EWL10: 3985 | EWM10: 3986 | EWN10: 3987 | EWO10: 3988 | EWP10: 3989 | EWQ10: 3990 | EWR10: 3991 | EWS10: 3992 | EWT10: 3993 | EWU10: 3994 | EWV10: 3995 | EWW10: 3996 | EWX10: 3997 | EWY10: 3998 | EWZ10: 3999 | EXA10: 4000 | EXB10: 4001 | EXC10: 4002 | EXD10: 4003 | EXE10: 4004 | EXF10: 4005 | EXG10: 4006 | EXH10: 4007 | EXI10: 4008 | EXJ10: 4009 | EXK10: 4010 | EXL10: 4011 | EXM10: 4012 | EXN10: 4013 | EXO10: 4014 | EXP10: 4015 | EXQ10: 4016 | EXR10: 4017 | EXS10: 4018 | EXT10: 4019 | EXU10: 4020 | EXV10: 4021 | EXW10: 4022 | EXX10: 4023 | EXY10: 4024 | EXZ10: 4025 | EYA10: 4026 | EYB10: 4027 | EYC10: 4028 | EYD10: 4029 | EYE10: 4030 | EYF10: 4031 | EYG10: 4032 | EYH10: 4033 | EYI10: 4034 | EYJ10: =EYI10+1 -> 4035 | EYK10: 4036 | EYL10: 4037 | EYM10: 4038 | EYN10: 4039 | EYO10: 4040 | EYP10: 4041 | EYQ10: 4042 | EYR10: 4043 | EYS10: 4044 | EYT10: 4045 | EYU10: 4046 | EYV10: 4047 | EYW10: 4048 | EYX10: 4049 | EYY10: 4050 | EYZ10: 4051 | EZA10: 4052 | EZB10: 4053 | EZC10: 4054 | EZD10: 4055 | EZE10: 4056 | EZF10: 4057 | EZG10: 4058 | EZH10: 4059 | EZI10: 4060 | EZJ10: 4061 | EZK10: 4062 | EZL10: 4063 | EZM10: 4064 | EZN10: 4065 | EZO10: 4066 | EZP10: 4067 | EZQ10: 4068 | EZR10: 4069 | EZS10: 4070 | EZT10: 4071 | EZU10: 4072 | EZV10: 4073 | EZW10: 4074 | EZX10: 4075 | EZY10: 4076 | EZZ10: 4077 | FAA10: 4078 | FAB10: 4079 | FAC10: 4080 | FAD10: 4081 | FAE10: 4082 | FAF10: 4083 | FAG10: 4084 | FAH10: 4085 | FAI10: 4086 | FAJ10: 4087 | FAK10: 4088 | FAL10: 4089 | FAM10: 4090 | FAN10: 4091 | FAO10: 4092 | FAP10: 4093 | FAQ10: 4094 | FAR10: 4095 | FAS10: 4096 | FAT10: 4097 | FAU10: 4098 | FAV10: =FAU10+1 -> 4099 | FAW10: 4100 | FAX10: 4101 | FAY10: 4102 | FAZ10: 4103 | FBA10: 4104 | FBB10: 4105 | FBC10: 4106 | FBD10: 4107 | FBE10: 4108 | FBF10: 4109 | FBG10: 4110 | FBH10: 4111 | FBI10: 4112 | FBJ10: 4113 | FBK10: 4114 | FBL10: 4115 | FBM10: 4116 | FBN10: 4117 | FBO10: 4118 | FBP10: 4119 | FBQ10: 4120 | FBR10: 4121 | FBS10: 4122 | FBT10: 4123 | FBU10: 4124 | FBV10: 4125 | FBW10: 4126 | FBX10: 4127 | FBY10: 4128 | FBZ10: 4129 | FCA10: 4130 | FCB10: 4131 | FCC10: 4132 | FCD10: 4133 | FCE10: 4134 | FCF10: 4135 | FCG10: 4136 | FCH10: 4137 | FCI10: 4138 | FCJ10: 4139 | FCK10: 4140 | FCL10: 4141 | FCM10: 4142 | FCN10: 4143 | FCO10: 4144 | FCP10: 4145 | FCQ10: 4146 | FCR10: 4147 | FCS10: 4148 | FCT10: 4149 | FCU10: 4150 | FCV10: 4151 | FCW10: 4152 | FCX10: 4153 | FCY10: 4154 | FCZ10: 4155 | FDA10: 4156 | FDB10: 4157 | FDC10: 4158 | FDD10: 4159 | FDE10: 4160 | FDF10: 4161 | FDG10: 4162 | FDH10: =FDG10+1 -> 4163 | FDI10: 4164 | FDJ10: 4165 | FDK10: 4166 | FDL10: 4167 | FDM10: 4168 | FDN10: 4169 | FDO10: 4170 | FDP10: 4171 | FDQ10: 4172 | FDR10: 4173 | FDS10: 4174 | FDT10: 4175 | FDU10: 4176 | FDV10: 4177 | FDW10: 4178 | FDX10: 4179 | FDY10: 4180 | FDZ10: 4181 | FEA10: 4182 | FEB10: 4183 | FEC10: 4184 | FED10: 4185 | FEE10: 4186 | FEF10: 4187 | FEG10: 4188 | FEH10: 4189 | FEI10: 4190 | FEJ10: 4191 | FEK10: 4192 | FEL10: 4193 | FEM10: 4194 | FEN10: 4195 | FEO10: 4196 | FEP10: 4197 | FEQ10: 4198 | FER10: 4199 | FES10: 4200 | FET10: 4201 | FEU10: 4202 | FEV10: 4203 | FEW10: 4204 | FEX10: 4205 | FEY10: 4206 | FEZ10: 4207 | FFA10: 4208 | FFB10: 4209 | FFC10: 4210 | FFD10: 4211 | FFE10: 4212 | FFF10: 4213 | FFG10: 4214 | FFH10: 4215 | FFI10: 4216 | FFJ10: 4217 | FFK10: 4218 | FFL10: 4219 | FFM10: 4220 | FFN10: 4221 | FFO10: 4222 | FFP10: 4223 | FFQ10: 4224 | FFR10: 4225 | FFS10: 4226 | FFT10: =FFS10+1 -> 4227 | FFU10: 4228 | FFV10: 4229 | FFW10: 4230 | FFX10: 4231 | FFY10: 4232 | FFZ10: 4233 | FGA10: 4234 | FGB10: 4235 | FGC10: 4236 | FGD10: 4237 | FGE10: 4238 | FGF10: 4239 | FGG10: 4240 | FGH10: 4241 | FGI10: 4242 | FGJ10: 4243 | FGK10: 4244 | FGL10: 4245 | FGM10: 4246 | FGN10: 4247 | FGO10: 4248 | FGP10: 4249 | FGQ10: 4250 | FGR10: 4251 | FGS10: 4252 | FGT10: 4253 | FGU10: 4254 | FGV10: 4255 | FGW10: 4256 | FGX10: 4257 | FGY10: 4258 | FGZ10: 4259 | FHA10: 4260 | FHB10: 4261 | FHC10: 4262 | FHD10: 4263 | FHE10: 4264 | FHF10: 4265 | FHG10: 4266 | FHH10: 4267 | FHI10: 4268 | FHJ10: 4269 | FHK10: 4270 | FHL10: 4271 | FHM10: 4272 | FHN10: 4273 | FHO10: 4274 | FHP10: 4275 | FHQ10: 4276 | FHR10: 4277 | FHS10: 4278 | FHT10: 4279 | FHU10: 4280 | FHV10: 4281 | FHW10: 4282 | FHX10: 4283 | FHY10: 4284 | FHZ10: 4285 | FIA10: 4286 | FIB10: 4287 | FIC10: 4288 | FID10: 4289 | FIE10: 4290 | FIF10: =FIE10+1 -> 4291 | FIG10: 4292 | FIH10: 4293 | FII10: 4294 | FIJ10: 4295 | FIK10: 4296 | FIL10: 4297 | FIM10: 4298 | FIN10: 4299 | FIO10: 4300 | FIP10: 4301 | FIQ10: 4302 | FIR10: 4303 | FIS10: 4304 | FIT10: 4305 | FIU10: 4306 | FIV10: 4307 | FIW10: 4308 | FIX10: 4309 | FIY10: 4310 | FIZ10: 4311 | FJA10: 4312 | FJB10: 4313 | FJC10: 4314 | FJD10: 4315 | FJE10: 4316 | FJF10: 4317 | FJG10: 4318 | FJH10: 4319 | FJI10: 4320 | FJJ10: 4321 | FJK10: 4322 | FJL10: 4323 | FJM10: 4324 | FJN10: 4325 | FJO10: 4326 | FJP10: 4327 | FJQ10: 4328 | FJR10: 4329 | FJS10: 4330 | FJT10: 4331 | FJU10: 4332 | FJV10: 4333 | FJW10: 4334 | FJX10: 4335 | FJY10: 4336 | FJZ10: 4337 | FKA10: 4338 | FKB10: 4339 | FKC10: 4340 | FKD10: 4341 | FKE10: 4342 | FKF10: 4343 | FKG10: 4344 | FKH10: 4345 | FKI10: 4346 | FKJ10: 4347 | FKK10: 4348 | FKL10: 4349 | FKM10: 4350 | FKN10: 4351 | FKO10: 4352 | FKP10: 4353 | FKQ10: 4354 | FKR10: =FKQ10+1 -> 4355 | FKS10: 4356 | FKT10: 4357 | FKU10: 4358 | FKV10: 4359 | FKW10: 4360 | FKX10: 4361 | FKY10: 4362 | FKZ10: 4363 | FLA10: 4364 | FLB10: 4365 | FLC10: 4366 | FLD10: 4367 | FLE10: 4368 | FLF10: 4369 | FLG10: 4370 | FLH10: 4371 | FLI10: 4372 | FLJ10: 4373 | FLK10: 4374 | FLL10: 4375 | FLM10: 4376 | FLN10: 4377 | FLO10: 4378 | FLP10: 4379 | FLQ10: 4380 | FLR10: 4381 | FLS10: 4382 | FLT10: 4383 | FLU10: 4384 | FLV10: 4385 | FLW10: 4386 | FLX10: 4387 | FLY10: 4388 | FLZ10: 4389 | FMA10: 4390 | FMB10: 4391 | FMC10: 4392 | FMD10: 4393 | FME10: 4394 | FMF10: 4395 | FMG10: 4396 | FMH10: 4397 | FMI10: 4398 | FMJ10: 4399 | FMK10: 4400 | FML10: 4401 | FMM10: 4402 | FMN10: 4403 | FMO10: 4404 | FMP10: 4405 | FMQ10: 4406 | FMR10: 4407 | FMS10: 4408 | FMT10: 4409 | FMU10: 4410 | FMV10: 4411 | FMW10: 4412 | FMX10: 4413 | FMY10: 4414 | FMZ10: 4415 | FNA10: 4416 | FNB10: 4417 | FNC10: 4418 | FND10: =FNC10+1 -> 4419 | FNE10: 4420 | FNF10: 4421 | FNG10: 4422 | FNH10: 4423 | FNI10: 4424 | FNJ10: 4425 | FNK10: 4426 | FNL10: 4427 | FNM10: 4428 | FNN10: 4429 | FNO10: 4430 | FNP10: 4431 | FNQ10: 4432 | FNR10: 4433 | FNS10: 4434 | FNT10: 4435 | FNU10: 4436 | FNV10: 4437 | FNW10: 4438 | FNX10: 4439 | FNY10: 4440 | FNZ10: 4441 | FOA10: 4442 | FOB10: 4443 | FOC10: 4444 | FOD10: 4445 | FOE10: 4446 | FOF10: 4447 | FOG10: 4448 | FOH10: 4449 | FOI10: 4450 | FOJ10: 4451 | FOK10: 4452 | FOL10: 4453 | FOM10: 4454 | FON10: 4455 | FOO10: 4456 | FOP10: 4457 | FOQ10: 4458 | FOR10: 4459 | FOS10: 4460 | FOT10: 4461 | FOU10: 4462 | FOV10: 4463 | FOW10: 4464 | FOX10: 4465 | FOY10: 4466 | FOZ10: 4467 | FPA10: 4468 | FPB10: 4469 | FPC10: 4470 | FPD10: 4471 | FPE10: 4472 | FPF10: 4473 | FPG10: 4474 | FPH10: 4475 | FPI10: 4476 | FPJ10: 4477 | FPK10: 4478 | FPL10: 4479 | FPM10: 4480 | FPN10: 4481 | FPO10: 4482 | FPP10: =FPO10+1 -> 4483 | FPQ10: 4484 | FPR10: 4485 | FPS10: 4486 | FPT10: 4487 | FPU10: 4488 | FPV10: 4489 | FPW10: 4490 | FPX10: 4491 | FPY10: 4492 | FPZ10: 4493 | FQA10: 4494 | FQB10: 4495 | FQC10: 4496 | FQD10: 4497 | FQE10: 4498 | FQF10: 4499 | FQG10: 4500 | FQH10: 4501 | FQI10: 4502 | FQJ10: 4503 | FQK10: 4504 | FQL10: 4505 | FQM10: 4506 | FQN10: 4507 | FQO10: 4508 | FQP10: 4509 | FQQ10: 4510 | FQR10: 4511 | FQS10: 4512 | FQT10: 4513 | FQU10: 4514 | FQV10: 4515 | FQW10: 4516 | FQX10: 4517 | FQY10: 4518 | FQZ10: 4519 | FRA10: 4520 | FRB10: 4521 | FRC10: 4522 | FRD10: 4523 | FRE10: 4524 | FRF10: 4525 | FRG10: 4526 | FRH10: 4527 | FRI10: 4528 | FRJ10: 4529 | FRK10: 4530 | FRL10: 4531 | FRM10: 4532 | FRN10: 4533 | FRO10: 4534 | FRP10: 4535 | FRQ10: 4536 | FRR10: 4537 | FRS10: 4538 | FRT10: 4539 | FRU10: 4540 | FRV10: 4541 | FRW10: 4542 | FRX10: 4543 | FRY10: 4544 | FRZ10: 4545 | FSA10: 4546 | FSB10: =FSA10+1 -> 4547 | FSC10: 4548 | FSD10: 4549 | FSE10: 4550 | FSF10: 4551 | FSG10: 4552 | FSH10: 4553 | FSI10: 4554 | FSJ10: 4555 | FSK10: 4556 | FSL10: 4557 | FSM10: 4558 | FSN10: 4559 | FSO10: 4560 | FSP10: 4561 | FSQ10: 4562 | FSR10: 4563 | FSS10: 4564 | FST10: 4565 | FSU10: 4566 | FSV10: 4567 | FSW10: 4568 | FSX10: 4569 | FSY10: 4570 | FSZ10: 4571 | FTA10: 4572 | FTB10: 4573 | FTC10: 4574 | FTD10: 4575 | FTE10: 4576 | FTF10: 4577 | FTG10: 4578 | FTH10: 4579 | FTI10: 4580 | FTJ10: 4581 | FTK10: 4582 | FTL10: 4583 | FTM10: 4584 | FTN10: 4585 | FTO10: 4586 | FTP10: 4587 | FTQ10: 4588 | FTR10: 4589 | FTS10: 4590 | FTT10: 4591 | FTU10: 4592 | FTV10: 4593 | FTW10: 4594 | FTX10: 4595 | FTY10: 4596 | FTZ10: 4597 | FUA10: 4598 | FUB10: 4599 | FUC10: 4600 | FUD10: 4601 | FUE10: 4602 | FUF10: 4603 | FUG10: 4604 | FUH10: 4605 | FUI10: 4606 | FUJ10: 4607 | FUK10: 4608 | FUL10: 4609 | FUM10: 4610 | FUN10: =FUM10+1 -> 4611 | FUO10: 4612 | FUP10: 4613 | FUQ10: 4614 | FUR10: 4615 | FUS10: 4616 | FUT10: 4617 | FUU10: 4618 | FUV10: 4619 | FUW10: 4620 | FUX10: 4621 | FUY10: 4622 | FUZ10: 4623 | FVA10: 4624 | FVB10: 4625 | FVC10: 4626 | FVD10: 4627 | FVE10: 4628 | FVF10: 4629 | FVG10: 4630 | FVH10: 4631 | FVI10: 4632 | FVJ10: 4633 | FVK10: 4634 | FVL10: 4635 | FVM10: 4636 | FVN10: 4637 | FVO10: 4638 | FVP10: 4639 | FVQ10: 4640 | FVR10: 4641 | FVS10: 4642 | FVT10: 4643 | FVU10: 4644 | FVV10: 4645 | FVW10: 4646 | FVX10: 4647 | FVY10: 4648 | FVZ10: 4649 | FWA10: 4650 | FWB10: 4651 | FWC10: 4652 | FWD10: 4653 | FWE10: 4654 | FWF10: 4655 | FWG10: 4656 | FWH10: 4657 | FWI10: 4658 | FWJ10: 4659 | FWK10: 4660 | FWL10: 4661 | FWM10: 4662 | FWN10: 4663 | FWO10: 4664 | FWP10: 4665 | FWQ10: 4666 | FWR10: 4667 | FWS10: 4668 | FWT10: 4669 | FWU10: 4670 | FWV10: 4671 | FWW10: 4672 | FWX10: 4673 | FWY10: 4674 | FWZ10: =FWY10+1 -> 4675 | FXA10: 4676 | FXB10: 4677 | FXC10: 4678 | FXD10: 4679 | FXE10: 4680 | FXF10: 4681 | FXG10: 4682 | FXH10: 4683 | FXI10: 4684 | FXJ10: 4685 | FXK10: 4686 | FXL10: 4687 | FXM10: 4688 | FXN10: 4689 | FXO10: 4690 | FXP10: 4691 | FXQ10: 4692 | FXR10: 4693 | FXS10: 4694 | FXT10: 4695 | FXU10: 4696 | FXV10: 4697 | FXW10: 4698 | FXX10: 4699 | FXY10: 4700 | FXZ10: 4701 | FYA10: 4702 | FYB10: 4703 | FYC10: 4704 | FYD10: 4705 | FYE10: 4706 | FYF10: 4707 | FYG10: 4708 | FYH10: 4709 | FYI10: 4710 | FYJ10: 4711 | FYK10: 4712 | FYL10: 4713 | FYM10: 4714 | FYN10: 4715 | FYO10: 4716 | FYP10: 4717 | FYQ10: 4718 | FYR10: 4719 | FYS10: 4720 | FYT10: 4721 | FYU10: 4722 | FYV10: 4723 | FYW10: 4724 | FYX10: 4725 | FYY10: 4726 | FYZ10: 4727 | FZA10: 4728 | FZB10: 4729 | FZC10: 4730 | FZD10: 4731 | FZE10: 4732 | FZF10: 4733 | FZG10: 4734 | FZH10: 4735 | FZI10: 4736 | FZJ10: 4737 | FZK10: 4738 | FZL10: =FZK10+1 -> 4739 | FZM10: 4740 | FZN10: 4741 | FZO10: 4742 | FZP10: 4743 | FZQ10: 4744 | FZR10: 4745 | FZS10: 4746 | FZT10: 4747 | FZU10: 4748 | FZV10: 4749 | FZW10: 4750 | FZX10: 4751 | FZY10: 4752 | FZZ10: 4753 | GAA10: 4754 | GAB10: 4755 | GAC10: 4756 | GAD10: 4757 | GAE10: 4758 | GAF10: 4759 | GAG10: 4760 | GAH10: 4761 | GAI10: 4762 | GAJ10: 4763 | GAK10: 4764 | GAL10: 4765 | GAM10: 4766 | GAN10: 4767 | GAO10: 4768 | GAP10: 4769 | GAQ10: 4770 | GAR10: 4771 | GAS10: 4772 | GAT10: 4773 | GAU10: 4774 | GAV10: 4775 | GAW10: 4776 | GAX10: 4777 | GAY10: 4778 | GAZ10: 4779 | GBA10: 4780 | GBB10: 4781 | GBC10: 4782 | GBD10: 4783 | GBE10: 4784 | GBF10: 4785 | GBG10: 4786 | GBH10: 4787 | GBI10: 4788 | GBJ10: 4789 | GBK10: 4790 | GBL10: 4791 | GBM10: 4792 | GBN10: 4793 | GBO10: 4794 | GBP10: 4795 | GBQ10: 4796 | GBR10: 4797 | GBS10: 4798 | GBT10: 4799 | GBU10: 4800 | GBV10: 4801 | GBW10: 4802 | GBX10: =GBW10+1 -> 4803 | GBY10: 4804 | GBZ10: 4805 | GCA10: 4806 | GCB10: 4807 | GCC10: 4808 | GCD10: 4809 | GCE10: 4810 | GCF10: 4811 | GCG10: 4812 | GCH10: 4813 | GCI10: 4814 | GCJ10: 4815 | GCK10: 4816 | GCL10: 4817 | GCM10: 4818 | GCN10: 4819 | GCO10: 4820 | GCP10: 4821 | GCQ10: 4822 | GCR10: 4823 | GCS10: 4824 | GCT10: 4825 | GCU10: 4826 | GCV10: 4827 | GCW10: 4828 | GCX10: 4829 | GCY10: 4830 | GCZ10: 4831 | GDA10: 4832 | GDB10: 4833 | GDC10: 4834 | GDD10: 4835 | GDE10: 4836 | GDF10: 4837 | GDG10: 4838 | GDH10: 4839 | GDI10: 4840 | GDJ10: 4841 | GDK10: 4842 | GDL10: 4843 | GDM10: 4844 | GDN10: 4845 | GDO10: 4846 | GDP10: 4847 | GDQ10: 4848 | GDR10: 4849 | GDS10: 4850 | GDT10: 4851 | GDU10: 4852 | GDV10: 4853 | GDW10: 4854 | GDX10: 4855 | GDY10: 4856 | GDZ10: 4857 | GEA10: 4858 | GEB10: 4859 | GEC10: 4860 | GED10: 4861 | GEE10: 4862 | GEF10: 4863 | GEG10: 4864 | GEH10: 4865 | GEI10: 4866 | GEJ10: =GEI10+1 -> 4867 | GEK10: 4868 | GEL10: 4869 | GEM10: 4870 | GEN10: 4871 | GEO10: 4872 | GEP10: 4873 | GEQ10: 4874 | GER10: 4875 | GES10: 4876 | GET10: 4877 | GEU10: 4878 | GEV10: 4879 | GEW10: 4880 | GEX10: 4881 | GEY10: 4882 | GEZ10: 4883 | GFA10: 4884 | GFB10: 4885 | GFC10: 4886 | GFD10: 4887 | GFE10: 4888 | GFF10: 4889 | GFG10: 4890 | GFH10: 4891 | GFI10: 4892 | GFJ10: 4893 | GFK10: 4894 | GFL10: 4895 | GFM10: 4896 | GFN10: 4897 | GFO10: 4898 | GFP10: 4899 | GFQ10: 4900 | GFR10: 4901 | GFS10: 4902 | GFT10: 4903 | GFU10: 4904 | GFV10: 4905 | GFW10: 4906 | GFX10: 4907 | GFY10: 4908 | GFZ10: 4909 | GGA10: 4910 | GGB10: 4911 | GGC10: 4912 | GGD10: 4913 | GGE10: 4914 | GGF10: 4915 | GGG10: 4916 | GGH10: 4917 | GGI10: 4918 | GGJ10: 4919 | GGK10: 4920 | GGL10: 4921 | GGM10: 4922 | GGN10: 4923 | GGO10: 4924 | GGP10: 4925 | GGQ10: 4926 | GGR10: 4927 | GGS10: 4928 | GGT10: 4929 | GGU10: 4930 | GGV10: =GGU10+1 -> 4931 | GGW10: 4932 | GGX10: 4933 | GGY10: 4934 | GGZ10: 4935 | GHA10: 4936 | GHB10: 4937 | GHC10: 4938 | GHD10: 4939 | GHE10: 4940 | GHF10: 4941 | GHG10: 4942 | GHH10: 4943 | GHI10: 4944 | GHJ10: 4945 | GHK10: 4946 | GHL10: 4947 | GHM10: 4948 | GHN10: 4949 | GHO10: 4950 | GHP10: 4951 | GHQ10: 4952 | GHR10: 4953 | GHS10: 4954 | GHT10: 4955 | GHU10: 4956 | GHV10: 4957 | GHW10: 4958 | GHX10: 4959 | GHY10: 4960 | GHZ10: 4961 | GIA10: 4962 | GIB10: 4963 | GIC10: 4964 | GID10: 4965 | GIE10: 4966 | GIF10: 4967 | GIG10: 4968 | GIH10: 4969 | GII10: 4970 | GIJ10: 4971 | GIK10: 4972 | GIL10: 4973 | GIM10: 4974 | GIN10: 4975 | GIO10: 4976 | GIP10: 4977 | GIQ10: 4978 | GIR10: 4979 | GIS10: 4980 | GIT10: 4981 | GIU10: 4982 | GIV10: 4983 | GIW10: 4984 | GIX10: 4985 | GIY10: 4986 | GIZ10: 4987 | GJA10: 4988 | GJB10: 4989 | GJC10: 4990 | GJD10: 4991 | GJE10: 4992 | GJF10: 4993 | GJG10: 4994 | GJH10: =GJG10+1 -> 4995 | GJI10: 4996 | GJJ10: 4997 | GJK10: 4998 | GJL10: 4999 | GJM10: 5000 | GJN10: 5001 | GJO10: 5002 | GJP10: 5003 | GJQ10: 5004 | GJR10: 5005 | GJS10: 5006 | GJT10: 5007 | GJU10: 5008 | GJV10: 5009 | GJW10: 5010 | GJX10: 5011 | GJY10: 5012 | GJZ10: 5013 | GKA10: 5014 | GKB10: 5015 | GKC10: 5016 | GKD10: 5017 | GKE10: 5018 | GKF10: 5019 | GKG10: 5020 | GKH10: 5021 | GKI10: 5022 | GKJ10: 5023 | GKK10: 5024 | GKL10: 5025 | GKM10: 5026 | GKN10: 5027 | GKO10: 5028 | GKP10: 5029 | GKQ10: 5030 | GKR10: 5031 | GKS10: 5032 | GKT10: 5033 | GKU10: 5034 | GKV10: 5035 | GKW10: 5036 | GKX10: 5037 | GKY10: 5038 | GKZ10: 5039 | GLA10: 5040 | GLB10: 5041 | GLC10: 5042 | GLD10: 5043 | GLE10: 5044 | GLF10: 5045 | GLG10: 5046 | GLH10: 5047 | GLI10: 5048 | GLJ10: 5049 | GLK10: 5050 | GLL10: 5051 | GLM10: 5052 | GLN10: 5053 | GLO10: 5054 | GLP10: 5055 | GLQ10: 5056 | GLR10: 5057 | GLS10: 5058 | GLT10: =GLS10+1 -> 5059 | GLU10: 5060 | GLV10: 5061 | GLW10: 5062 | GLX10: 5063 | GLY10: 5064 | GLZ10: 5065 | GMA10: 5066 | GMB10: 5067 | GMC10: 5068 | GMD10: 5069 | GME10: 5070 | GMF10: 5071 | GMG10: 5072 | GMH10: 5073 | GMI10: 5074 | GMJ10: 5075 | GMK10: 5076 | GML10: 5077 | GMM10: 5078 | GMN10: 5079 | GMO10: 5080 | GMP10: 5081 | GMQ10: 5082 | GMR10: 5083 | GMS10: 5084 | GMT10: 5085 | GMU10: 5086 | GMV10: 5087 | GMW10: 5088 | GMX10: 5089 | GMY10: 5090 | GMZ10: 5091 | GNA10: 5092 | GNB10: 5093 | GNC10: 5094 | GND10: 5095 | GNE10: 5096 | GNF10: 5097 | GNG10: 5098 | GNH10: 5099 | GNI10: 5100 | GNJ10: 5101 | GNK10: 5102 | GNL10: 5103 | GNM10: 5104 | GNN10: 5105 | GNO10: 5106 | GNP10: 5107 | GNQ10: 5108 | GNR10: 5109 | GNS10: 5110 | GNT10: 5111 | GNU10: 5112 | GNV10: 5113 | GNW10: 5114 | GNX10: 5115 | GNY10: 5116 | GNZ10: 5117 | GOA10: 5118 | GOB10: 5119 | GOC10: 5120 | GOD10: 5121 | GOE10: 5122 | GOF10: =GOE10+1 -> 5123 | GOG10: 5124 | GOH10: 5125 | GOI10: 5126 | GOJ10: 5127 | GOK10: 5128 | GOL10: 5129 | GOM10: 5130 | GON10: 5131 | GOO10: 5132 | GOP10: 5133 | GOQ10: 5134 | GOR10: 5135 | GOS10: 5136 | GOT10: 5137 | GOU10: 5138 | GOV10: 5139 | GOW10: 5140 | GOX10: 5141 | GOY10: 5142 | GOZ10: 5143 | GPA10: 5144 | GPB10: 5145 | GPC10: 5146 | GPD10: 5147 | GPE10: 5148 | GPF10: 5149 | GPG10: 5150 | GPH10: 5151 | GPI10: 5152 | GPJ10: 5153 | GPK10: 5154 | GPL10: 5155 | GPM10: 5156 | GPN10: 5157 | GPO10: 5158 | GPP10: 5159 | GPQ10: 5160 | GPR10: 5161 | GPS10: 5162 | GPT10: 5163 | GPU10: 5164 | GPV10: 5165 | GPW10: 5166 | GPX10: 5167 | GPY10: 5168 | GPZ10: 5169 | GQA10: 5170 | GQB10: 5171 | GQC10: 5172 | GQD10: 5173 | GQE10: 5174 | GQF10: 5175 | GQG10: 5176 | GQH10: 5177 | GQI10: 5178 | GQJ10: 5179 | GQK10: 5180 | GQL10: 5181 | GQM10: 5182 | GQN10: 5183 | GQO10: 5184 | GQP10: 5185 | GQQ10: 5186 | GQR10: =GQQ10+1 -> 5187 | GQS10: 5188 | GQT10: 5189 | GQU10: 5190 | GQV10: 5191 | GQW10: 5192 | GQX10: 5193 | GQY10: 5194 | GQZ10: 5195 | GRA10: 5196 | GRB10: 5197 | GRC10: 5198 | GRD10: 5199 | GRE10: 5200 | GRF10: 5201 | GRG10: 5202 | GRH10: 5203 | GRI10: 5204 | GRJ10: 5205 | GRK10: 5206 | GRL10: 5207 | GRM10: 5208 | GRN10: 5209 | GRO10: 5210 | GRP10: 5211 | GRQ10: 5212 | GRR10: 5213 | GRS10: 5214 | GRT10: 5215 | GRU10: 5216 | GRV10: 5217 | GRW10: 5218 | GRX10: 5219 | GRY10: 5220 | GRZ10: 5221 | GSA10: 5222 | GSB10: 5223 | GSC10: 5224 | GSD10: 5225 | GSE10: 5226 | GSF10: 5227 | GSG10: 5228 | GSH10: 5229 | GSI10: 5230 | GSJ10: 5231 | GSK10: 5232 | GSL10: 5233 | GSM10: 5234 | GSN10: 5235 | GSO10: 5236 | GSP10: 5237 | GSQ10: 5238 | GSR10: 5239 | GSS10: 5240 | GST10: 5241 | GSU10: 5242 | GSV10: 5243 | GSW10: 5244 | GSX10: 5245 | GSY10: 5246 | GSZ10: 5247 | GTA10: 5248 | GTB10: 5249 | GTC10: 5250 | GTD10: =GTC10+1 -> 5251 | GTE10: 5252 | GTF10: 5253 | GTG10: 5254 | GTH10: 5255 | GTI10: 5256 | GTJ10: 5257 | GTK10: 5258 | GTL10: 5259 | GTM10: 5260 | GTN10: 5261 | GTO10: 5262 | GTP10: 5263 | GTQ10: 5264 | GTR10: 5265 | GTS10: 5266 | GTT10: 5267 | GTU10: 5268 | GTV10: 5269 | GTW10: 5270 | GTX10: 5271 | GTY10: 5272 | GTZ10: 5273 | GUA10: 5274 | GUB10: 5275 | GUC10: 5276 | GUD10: 5277 | GUE10: 5278 | GUF10: 5279 | GUG10: 5280 | GUH10: 5281 | GUI10: 5282 | GUJ10: 5283 | GUK10: 5284 | GUL10: 5285 | GUM10: 5286 | GUN10: 5287 | GUO10: 5288 | GUP10: 5289 | GUQ10: 5290 | GUR10: 5291 | GUS10: 5292 | GUT10: 5293 | GUU10: 5294 | GUV10: 5295 | GUW10: 5296 | GUX10: 5297 | GUY10: 5298 | GUZ10: 5299 | GVA10: 5300 | GVB10: 5301 | GVC10: 5302 | GVD10: 5303 | GVE10: 5304 | GVF10: 5305 | GVG10: 5306 | GVH10: 5307 | GVI10: 5308 | GVJ10: 5309 | GVK10: 5310 | GVL10: 5311 | GVM10: 5312 | GVN10: 5313 | GVO10: 5314 | GVP10: =GVO10+1 -> 5315 | GVQ10: 5316 | GVR10: 5317 | GVS10: 5318 | GVT10: 5319 | GVU10: 5320 | GVV10: 5321 | GVW10: 5322 | GVX10: 5323 | GVY10: 5324 | GVZ10: 5325 | GWA10: 5326 | GWB10: 5327 | GWC10: 5328 | GWD10: 5329 | GWE10: 5330 | GWF10: 5331 | GWG10: 5332 | GWH10: 5333 | GWI10: 5334 | GWJ10: 5335 | GWK10: 5336 | GWL10: 5337 | GWM10: 5338 | GWN10: 5339 | GWO10: 5340 | GWP10: 5341 | GWQ10: 5342 | GWR10: 5343 | GWS10: 5344 | GWT10: 5345 | GWU10: 5346 | GWV10: 5347 | GWW10: 5348 | GWX10: 5349 | GWY10: 5350 | GWZ10: 5351 | GXA10: 5352 | GXB10: 5353 | GXC10: 5354 | GXD10: 5355 | GXE10: 5356 | GXF10: 5357 | GXG10: 5358 | GXH10: 5359 | GXI10: 5360 | GXJ10: 5361 | GXK10: 5362 | GXL10: 5363 | GXM10: 5364 | GXN10: 5365 | GXO10: 5366 | GXP10: 5367 | GXQ10: 5368 | GXR10: 5369 | GXS10: 5370 | GXT10: 5371 | GXU10: 5372 | GXV10: 5373 | GXW10: 5374 | GXX10: 5375 | GXY10: 5376 | GXZ10: 5377 | GYA10: 5378 | GYB10: =GYA10+1 -> 5379 | GYC10: 5380 | GYD10: 5381 | GYE10: 5382 | GYF10: 5383 | GYG10: 5384 | GYH10: 5385 | GYI10: 5386 | GYJ10: 5387 | GYK10: 5388 | GYL10: 5389 | GYM10: 5390 | GYN10: 5391 | GYO10: 5392 | GYP10: 5393 | GYQ10: 5394 | GYR10: 5395 | GYS10: 5396 | GYT10: 5397 | GYU10: 5398 | GYV10: 5399 | GYW10: 5400 | GYX10: 5401 | GYY10: 5402 | GYZ10: 5403 | GZA10: 5404 | GZB10: 5405 | GZC10: 5406 | GZD10: 5407 | GZE10: 5408 | GZF10: 5409 | GZG10: 5410 | GZH10: 5411 | GZI10: 5412 | GZJ10: 5413 | GZK10: 5414 | GZL10: 5415 | GZM10: 5416 | GZN10: 5417 | GZO10: 5418 | GZP10: 5419 | GZQ10: 5420 | GZR10: 5421 | GZS10: 5422 | GZT10: 5423 | GZU10: 5424 | GZV10: 5425 | GZW10: 5426 | GZX10: 5427 | GZY10: 5428 | GZZ10: 5429 | HAA10: 5430 | HAB10: 5431 | HAC10: 5432 | HAD10: 5433 | HAE10: 5434 | HAF10: 5435 | HAG10: 5436 | HAH10: 5437 | HAI10: 5438 | HAJ10: 5439 | HAK10: 5440 | HAL10: 5441 | HAM10: 5442 | HAN10: =HAM10+1 -> 5443 | HAO10: 5444 | HAP10: 5445 | HAQ10: 5446 | HAR10: 5447 | HAS10: 5448 | HAT10: 5449 | HAU10: 5450 | HAV10: 5451 | HAW10: 5452 | HAX10: 5453 | HAY10: 5454 | HAZ10: 5455 | HBA10: 5456 | HBB10: 5457 | HBC10: 5458 | HBD10: 5459 | HBE10: 5460 | HBF10: 5461 | HBG10: 5462 | HBH10: 5463 | HBI10: 5464 | HBJ10: 5465 | HBK10: 5466 | HBL10: 5467 | HBM10: 5468 | HBN10: 5469 | HBO10: 5470 | HBP10: 5471 | HBQ10: 5472 | HBR10: 5473 | HBS10: 5474 | HBT10: 5475 | HBU10: 5476 | HBV10: 5477 | HBW10: 5478 | HBX10: 5479 | HBY10: 5480 | HBZ10: 5481 | HCA10: 5482 | HCB10: 5483 | HCC10: 5484 | HCD10: 5485 | HCE10: 5486 | HCF10: 5487 | HCG10: 5488 | HCH10: 5489 | HCI10: 5490 | HCJ10: 5491 | HCK10: 5492 | HCL10: 5493 | HCM10: 5494 | HCN10: 5495 | HCO10: 5496 | HCP10: 5497 | HCQ10: 5498 | HCR10: 5499 | HCS10: 5500 | HCT10: 5501 | HCU10: 5502 | HCV10: 5503 | HCW10: 5504 | HCX10: 5505 | HCY10: 5506 | HCZ10: =HCY10+1 -> 5507 | HDA10: 5508 | HDB10: 5509 | HDC10: 5510 | HDD10: 5511 | HDE10: 5512 | HDF10: 5513 | HDG10: 5514 | HDH10: 5515 | HDI10: 5516 | HDJ10: 5517 | HDK10: 5518 | HDL10: 5519 | HDM10: 5520 | HDN10: 5521 | HDO10: 5522 | HDP10: 5523 | HDQ10: 5524 | HDR10: 5525 | HDS10: 5526 | HDT10: 5527 | HDU10: 5528 | HDV10: 5529 | HDW10: 5530 | HDX10: 5531 | HDY10: 5532 | HDZ10: 5533 | HEA10: 5534 | HEB10: 5535 | HEC10: 5536 | HED10: 5537 | HEE10: 5538 | HEF10: 5539 | HEG10: 5540 | HEH10: 5541 | HEI10: 5542 | HEJ10: 5543 | HEK10: 5544 | HEL10: 5545 | HEM10: 5546 | HEN10: 5547 | HEO10: 5548 | HEP10: 5549 | HEQ10: 5550 | HER10: 5551 | HES10: 5552 | HET10: 5553 | HEU10: 5554 | HEV10: 5555 | HEW10: 5556 | HEX10: 5557 | HEY10: 5558 | HEZ10: 5559 | HFA10: 5560 | HFB10: 5561 | HFC10: 5562 | HFD10: 5563 | HFE10: 5564 | HFF10: 5565 | HFG10: 5566 | HFH10: 5567 | HFI10: 5568 | HFJ10: 5569 | HFK10: 5570 | HFL10: =HFK10+1 -> 5571 | HFM10: 5572 | HFN10: 5573 | HFO10: 5574 | HFP10: 5575 | HFQ10: 5576 | HFR10: 5577 | HFS10: 5578 | HFT10: 5579 | HFU10: 5580 | HFV10: 5581 | HFW10: 5582 | HFX10: 5583 | HFY10: 5584 | HFZ10: 5585 | HGA10: 5586 | HGB10: 5587 | HGC10: 5588 | HGD10: 5589 | HGE10: 5590 | HGF10: 5591 | HGG10: 5592 | HGH10: 5593 | HGI10: 5594 | HGJ10: 5595 | HGK10: 5596 | HGL10: 5597 | HGM10: 5598 | HGN10: 5599 | HGO10: 5600 | HGP10: 5601 | HGQ10: 5602 | HGR10: 5603 | HGS10: 5604 | HGT10: 5605 | HGU10: 5606 | HGV10: 5607 | HGW10: 5608 | HGX10: 5609 | HGY10: 5610 | HGZ10: 5611 | HHA10: 5612 | HHB10: 5613 | HHC10: 5614 | HHD10: 5615 | HHE10: 5616 | HHF10: 5617 | HHG10: 5618 | HHH10: 5619 | HHI10: 5620 | HHJ10: 5621 | HHK10: 5622 | HHL10: 5623 | HHM10: 5624 | HHN10: 5625 | HHO10: 5626 | HHP10: 5627 | HHQ10: 5628 | HHR10: 5629 | HHS10: 5630 | HHT10: 5631 | HHU10: 5632 | HHV10: 5633 | HHW10: 5634 | HHX10: =HHW10+1 -> 5635 | HHY10: 5636 | HHZ10: 5637 | HIA10: 5638 | HIB10: 5639 | HIC10: 5640 | HID10: 5641 | HIE10: 5642 | HIF10: 5643 | HIG10: 5644 | HIH10: 5645 | HII10: 5646 | HIJ10: 5647 | HIK10: 5648 | HIL10: 5649 | HIM10: 5650 | HIN10: 5651 | HIO10: 5652 | HIP10: 5653 | HIQ10: 5654 | HIR10: 5655 | HIS10: 5656 | HIT10: 5657 | HIU10: 5658 | HIV10: 5659 | HIW10: 5660 | HIX10: 5661 | HIY10: 5662 | HIZ10: 5663 | HJA10: 5664 | HJB10: 5665 | HJC10: 5666 | HJD10: 5667 | HJE10: 5668 | HJF10: 5669 | HJG10: 5670 | HJH10: 5671 | HJI10: 5672 | HJJ10: 5673 | HJK10: 5674 | HJL10: 5675 | HJM10: 5676 | HJN10: 5677 | HJO10: 5678 | HJP10: 5679 | HJQ10: 5680 | HJR10: 5681 | HJS10: 5682 | HJT10: 5683 | HJU10: 5684 | HJV10: 5685 | HJW10: 5686 | HJX10: 5687 | HJY10: 5688 | HJZ10: 5689 | HKA10: 5690 | HKB10: 5691 | HKC10: 5692 | HKD10: 5693 | HKE10: 5694 | HKF10: 5695 | HKG10: 5696 | HKH10: 5697 | HKI10: 5698 | HKJ10: =HKI10+1 -> 5699 | HKK10: 5700 | HKL10: 5701 | HKM10: 5702 | HKN10: 5703 | HKO10: 5704 | HKP10: 5705 | HKQ10: 5706 | HKR10: 5707 | HKS10: 5708 | HKT10: 5709 | HKU10: 5710 | HKV10: 5711 | HKW10: 5712 | HKX10: 5713 | HKY10: 5714 | HKZ10: 5715 | HLA10: 5716 | HLB10: 5717 | HLC10: 5718 | HLD10: 5719 | HLE10: 5720 | HLF10: 5721 | HLG10: 5722 | HLH10: 5723 | HLI10: 5724 | HLJ10: 5725 | HLK10: 5726 | HLL10: 5727 | HLM10: 5728 | HLN10: 5729 | HLO10: 5730 | HLP10: 5731 | HLQ10: 5732 | HLR10: 5733 | HLS10: 5734 | HLT10: 5735 | HLU10: 5736 | HLV10: 5737 | HLW10: 5738 | HLX10: 5739 | HLY10: 5740 | HLZ10: 5741 | HMA10: 5742 | HMB10: 5743 | HMC10: 5744 | HMD10: 5745 | HME10: 5746 | HMF10: 5747 | HMG10: 5748 | HMH10: 5749 | HMI10: 5750 | HMJ10: 5751 | HMK10: 5752 | HML10: 5753 | HMM10: 5754 | HMN10: 5755 | HMO10: 5756 | HMP10: 5757 | HMQ10: 5758 | HMR10: 5759 | HMS10: 5760 | HMT10: 5761 | HMU10: 5762 | HMV10: =HMU10+1 -> 5763 | HMW10: 5764 | HMX10: 5765 | HMY10: 5766 | HMZ10: 5767 | HNA10: 5768 | HNB10: 5769 | HNC10: 5770 | HND10: 5771 | HNE10: 5772 | HNF10: 5773 | HNG10: 5774 | HNH10: 5775 | HNI10: 5776 | HNJ10: 5777 | HNK10: 5778 | HNL10: 5779 | HNM10: 5780 | HNN10: 5781 | HNO10: 5782 | HNP10: 5783 | HNQ10: 5784 | HNR10: 5785 | HNS10: 5786 | HNT10: 5787 | HNU10: 5788 | HNV10: 5789 | HNW10: 5790 | HNX10: 5791 | HNY10: 5792 | HNZ10: 5793 | HOA10: 5794 | HOB10: 5795 | HOC10: 5796 | HOD10: 5797 | HOE10: 5798 | HOF10: 5799 | HOG10: 5800 | HOH10: 5801 | HOI10: 5802 | HOJ10: 5803 | HOK10: 5804 | HOL10: 5805 | HOM10: 5806 | HON10: 5807 | HOO10: 5808 | HOP10: 5809 | HOQ10: 5810 | HOR10: 5811 | HOS10: 5812 | HOT10: 5813 | HOU10: 5814 | HOV10: 5815 | HOW10: 5816 | HOX10: 5817 | HOY10: 5818 | HOZ10: 5819 | HPA10: 5820 | HPB10: 5821 | HPC10: 5822 | HPD10: 5823 | HPE10: 5824 | HPF10: 5825 | HPG10: 5826 | HPH10: =HPG10+1 -> 5827 | HPI10: 5828 | HPJ10: 5829 | HPK10: 5830 | HPL10: 5831 | HPM10: 5832 | HPN10: 5833 | HPO10: 5834 | HPP10: 5835 | HPQ10: 5836 | HPR10: 5837 | HPS10: 5838 | HPT10: 5839 | HPU10: 5840 | HPV10: 5841 | HPW10: 5842 | HPX10: 5843 | HPY10: 5844 | HPZ10: 5845 | HQA10: 5846 | HQB10: 5847 | HQC10: 5848 | HQD10: 5849 | HQE10: 5850 | HQF10: 5851 | HQG10: 5852 | HQH10: 5853 | HQI10: 5854 | HQJ10: 5855 | HQK10: 5856 | HQL10: 5857 | HQM10: 5858 | HQN10: 5859 | HQO10: 5860 | HQP10: 5861 | HQQ10: 5862 | HQR10: 5863 | HQS10: 5864 | HQT10: 5865 | HQU10: 5866 | HQV10: 5867 | HQW10: 5868 | HQX10: 5869 | HQY10: 5870 | HQZ10: 5871 | HRA10: 5872 | HRB10: 5873 | HRC10: 5874 | HRD10: 5875 | HRE10: 5876 | HRF10: 5877 | HRG10: 5878 | HRH10: 5879 | HRI10: 5880 | HRJ10: 5881 | HRK10: 5882 | HRL10: 5883 | HRM10: 5884 | HRN10: 5885 | HRO10: 5886 | HRP10: 5887 | HRQ10: 5888 | HRR10: 5889 | HRS10: 5890 | HRT10: =HRS10+1 -> 5891 | HRU10: 5892 | HRV10: 5893 | HRW10: 5894 | HRX10: 5895 | HRY10: 5896 | HRZ10: 5897 | HSA10: 5898 | HSB10: 5899 | HSC10: 5900 | HSD10: 5901 | HSE10: 5902 | HSF10: 5903 | HSG10: 5904 | HSH10: 5905 | HSI10: 5906 | HSJ10: 5907 | HSK10: 5908 | HSL10: 5909 | HSM10: 5910 | HSN10: 5911 | HSO10: 5912 | HSP10: 5913 | HSQ10: 5914 | HSR10: 5915 | HSS10: 5916 | HST10: 5917 | HSU10: 5918 | HSV10: 5919 | HSW10: 5920 | HSX10: 5921 | HSY10: 5922 | HSZ10: 5923 | HTA10: 5924 | HTB10: 5925 | HTC10: 5926 | HTD10: 5927 | HTE10: 5928 | HTF10: 5929 | HTG10: 5930 | HTH10: 5931 | HTI10: 5932 | HTJ10: 5933 | HTK10: 5934 | HTL10: 5935 | HTM10: 5936 | HTN10: 5937 | HTO10: 5938 | HTP10: 5939 | HTQ10: 5940 | HTR10: 5941 | HTS10: 5942 | HTT10: 5943 | HTU10: 5944 | HTV10: 5945 | HTW10: 5946 | HTX10: 5947 | HTY10: 5948 | HTZ10: 5949 | HUA10: 5950 | HUB10: 5951 | HUC10: 5952 | HUD10: 5953 | HUE10: 5954 | HUF10: =HUE10+1 -> 5955 | HUG10: 5956 | HUH10: 5957 | HUI10: 5958 | HUJ10: 5959 | HUK10: 5960 | HUL10: 5961 | HUM10: 5962 | HUN10: 5963 | HUO10: 5964 | HUP10: 5965 | HUQ10: 5966 | HUR10: 5967 | HUS10: 5968 | HUT10: 5969 | HUU10: 5970 | HUV10: 5971 | HUW10: 5972 | HUX10: 5973 | HUY10: 5974 | HUZ10: 5975 | HVA10: 5976 | HVB10: 5977 | HVC10: 5978 | HVD10: 5979 | HVE10: 5980 | HVF10: 5981 | HVG10: 5982 | HVH10: 5983 | HVI10: 5984 | HVJ10: 5985 | HVK10: 5986 | HVL10: 5987 | HVM10: 5988 | HVN10: 5989 | HVO10: 5990 | HVP10: 5991 | HVQ10: 5992 | HVR10: 5993 | HVS10: 5994 | HVT10: 5995 | HVU10: 5996 | HVV10: 5997 | HVW10: 5998 | HVX10: 5999 | HVY10: 6000 | HVZ10: 6001 | HWA10: 6002 | HWB10: 6003 | HWC10: 6004 | HWD10: 6005 | HWE10: 6006 | HWF10: 6007 | HWG10: 6008 | HWH10: 6009 | HWI10: 6010 | HWJ10: 6011 | HWK10: 6012 | HWL10: 6013 | HWM10: 6014 | HWN10: 6015 | HWO10: 6016 | HWP10: 6017 | HWQ10: 6018 | HWR10: =HWQ10+1 -> 6019 | HWS10: 6020 | HWT10: 6021 | HWU10: 6022 | HWV10: 6023 | HWW10: 6024 | HWX10: 6025 | HWY10: 6026 | HWZ10: 6027 | HXA10: 6028 | HXB10: 6029 | HXC10: 6030 | HXD10: 6031 | HXE10: 6032 | HXF10: 6033 | HXG10: 6034 | HXH10: 6035 | HXI10: 6036 | HXJ10: 6037 | HXK10: 6038 | HXL10: 6039 | HXM10: 6040 | HXN10: 6041 | HXO10: 6042 | HXP10: 6043 | HXQ10: 6044 | HXR10: 6045 | HXS10: 6046 | HXT10: 6047 | HXU10: 6048 | HXV10: 6049 | HXW10: 6050 | HXX10: 6051 | HXY10: 6052 | HXZ10: 6053 | HYA10: 6054 | HYB10: 6055 | HYC10: 6056 | HYD10: 6057 | HYE10: 6058 | HYF10: 6059 | HYG10: 6060 | HYH10: 6061 | HYI10: 6062 | HYJ10: 6063 | HYK10: 6064 | HYL10: 6065 | HYM10: 6066 | HYN10: 6067 | HYO10: 6068 | HYP10: 6069 | HYQ10: 6070 | HYR10: 6071 | HYS10: 6072 | HYT10: 6073 | HYU10: 6074 | HYV10: 6075 | HYW10: 6076 | HYX10: 6077 | HYY10: 6078 | HYZ10: 6079 | HZA10: 6080 | HZB10: 6081 | HZC10: 6082 | HZD10: =HZC10+1 -> 6083 | HZE10: 6084 | HZF10: 6085 | HZG10: 6086 | HZH10: 6087 | HZI10: 6088 | HZJ10: 6089 | HZK10: 6090 | HZL10: 6091 | HZM10: 6092 | HZN10: 6093 | HZO10: 6094 | HZP10: 6095 | HZQ10: 6096 | HZR10: 6097 | HZS10: 6098 | HZT10: 6099 | HZU10: 6100 | HZV10: 6101 | HZW10: 6102 | HZX10: 6103 | HZY10: 6104 | HZZ10: 6105 | IAA10: 6106 | IAB10: 6107 | IAC10: 6108 | IAD10: 6109 | IAE10: 6110 | IAF10: 6111 | IAG10: 6112 | IAH10: 6113 | IAI10: 6114 | IAJ10: 6115 | IAK10: 6116 | IAL10: 6117 | IAM10: 6118 | IAN10: 6119 | IAO10: 6120 | IAP10: 6121 | IAQ10: 6122 | IAR10: 6123 | IAS10: 6124 | IAT10: 6125 | IAU10: 6126 | IAV10: 6127 | IAW10: 6128 | IAX10: 6129 | IAY10: 6130 | IAZ10: 6131 | IBA10: 6132 | IBB10: 6133 | IBC10: 6134 | IBD10: 6135 | IBE10: 6136 | IBF10: 6137 | IBG10: 6138 | IBH10: 6139 | IBI10: 6140 | IBJ10: 6141 | IBK10: 6142 | IBL10: 6143 | IBM10: 6144 | IBN10: 6145 | IBO10: 6146 | IBP10: =IBO10+1 -> 6147 | IBQ10: 6148 | IBR10: 6149 | IBS10: 6150 | IBT10: 6151 | IBU10: 6152 | IBV10: 6153 | IBW10: 6154 | IBX10: 6155 | IBY10: 6156 | IBZ10: 6157 | ICA10: 6158 | ICB10: 6159 | ICC10: 6160 | ICD10: 6161 | ICE10: 6162 | ICF10: 6163 | ICG10: 6164 | ICH10: 6165 | ICI10: 6166 | ICJ10: 6167 | ICK10: 6168 | ICL10: 6169 | ICM10: 6170 | ICN10: 6171 | ICO10: 6172 | ICP10: 6173 | ICQ10: 6174 | ICR10: 6175 | ICS10: 6176 | ICT10: 6177 | ICU10: 6178 | ICV10: 6179 | ICW10: 6180 | ICX10: 6181 | ICY10: 6182 | ICZ10: 6183 | IDA10: 6184 | IDB10: 6185 | IDC10: 6186 | IDD10: 6187 | IDE10: 6188 | IDF10: 6189 | IDG10: 6190 | IDH10: 6191 | IDI10: 6192 | IDJ10: 6193 | IDK10: 6194 | IDL10: 6195 | IDM10: 6196 | IDN10: 6197 | IDO10: 6198 | IDP10: 6199 | IDQ10: 6200 | IDR10: 6201 | IDS10: 6202 | IDT10: 6203 | IDU10: 6204 | IDV10: 6205 | IDW10: 6206 | IDX10: 6207 | IDY10: 6208 | IDZ10: 6209 | IEA10: 6210 | IEB10: =IEA10+1 -> 6211 | IEC10: 6212 | IED10: 6213 | IEE10: 6214 | IEF10: 6215 | IEG10: 6216 | IEH10: 6217 | IEI10: 6218 | IEJ10: 6219 | IEK10: 6220 | IEL10: 6221 | IEM10: 6222 | IEN10: 6223 | IEO10: 6224 | IEP10: 6225 | IEQ10: 6226 | IER10: 6227 | IES10: 6228 | IET10: 6229 | IEU10: 6230 | IEV10: 6231 | IEW10: 6232 | IEX10: 6233 | IEY10: 6234 | IEZ10: 6235 | IFA10: 6236 | IFB10: 6237 | IFC10: 6238 | IFD10: 6239 | IFE10: 6240 | IFF10: 6241 | IFG10: 6242 | IFH10: 6243 | IFI10: 6244 | IFJ10: 6245 | IFK10: 6246 | IFL10: 6247 | IFM10: 6248 | IFN10: 6249 | IFO10: 6250 | IFP10: 6251 | IFQ10: 6252 | IFR10: 6253 | IFS10: 6254 | IFT10: 6255 | IFU10: 6256 | IFV10: 6257 | IFW10: 6258 | IFX10: 6259 | IFY10: 6260 | IFZ10: 6261 | IGA10: 6262 | IGB10: 6263 | IGC10: 6264 | IGD10: 6265 | IGE10: 6266 | IGF10: 6267 | IGG10: 6268 | IGH10: 6269 | IGI10: 6270 | IGJ10: 6271 | IGK10: 6272 | IGL10: 6273 | IGM10: 6274 | IGN10: =IGM10+1 -> 6275 | IGO10: 6276 | IGP10: 6277 | IGQ10: 6278 | IGR10: 6279 | IGS10: 6280 | IGT10: 6281 | IGU10: 6282 | IGV10: 6283 | IGW10: 6284 | IGX10: 6285 | IGY10: 6286 | IGZ10: 6287 | IHA10: 6288 | IHB10: 6289 | IHC10: 6290 | IHD10: 6291 | IHE10: 6292 | IHF10: 6293 | IHG10: 6294 | IHH10: 6295 | IHI10: 6296 | IHJ10: 6297 | IHK10: 6298 | IHL10: 6299 | IHM10: 6300 | IHN10: 6301 | IHO10: 6302 | IHP10: 6303 | IHQ10: 6304 | IHR10: 6305 | IHS10: 6306 | IHT10: 6307 | IHU10: 6308 | IHV10: 6309 | IHW10: 6310 | IHX10: 6311 | IHY10: 6312 | IHZ10: 6313 | IIA10: 6314 | IIB10: 6315 | IIC10: 6316 | IID10: 6317 | IIE10: 6318 | IIF10: 6319 | IIG10: 6320 | IIH10: 6321 | III10: 6322 | IIJ10: 6323 | IIK10: 6324 | IIL10: 6325 | IIM10: 6326 | IIN10: 6327 | IIO10: 6328 | IIP10: 6329 | IIQ10: 6330 | IIR10: 6331 | IIS10: 6332 | IIT10: 6333 | IIU10: 6334 | IIV10: 6335 | IIW10: 6336 | IIX10: 6337 | IIY10: 6338 | IIZ10: =IIY10+1 -> 6339 | IJA10: 6340 | IJB10: 6341 | IJC10: 6342 | IJD10: 6343 | IJE10: 6344 | IJF10: 6345 | IJG10: 6346 | IJH10: 6347 | IJI10: 6348 | IJJ10: 6349 | IJK10: 6350 | IJL10: 6351 | IJM10: 6352 | IJN10: 6353 | IJO10: 6354 | IJP10: 6355 | IJQ10: 6356 | IJR10: 6357 | IJS10: 6358 | IJT10: 6359 | IJU10: 6360 | IJV10: 6361 | IJW10: 6362 | IJX10: 6363 | IJY10: 6364 | IJZ10: 6365 | IKA10: 6366 | IKB10: 6367 | IKC10: 6368 | IKD10: 6369 | IKE10: 6370 | IKF10: 6371 | IKG10: 6372 | IKH10: 6373 | IKI10: 6374 | IKJ10: 6375 | IKK10: 6376 | IKL10: 6377 | IKM10: 6378 | IKN10: 6379 | IKO10: 6380 | IKP10: 6381 | IKQ10: 6382 | IKR10: 6383 | IKS10: 6384 | IKT10: 6385 | IKU10: 6386 | IKV10: 6387 | IKW10: 6388 | IKX10: 6389 | IKY10: 6390 | IKZ10: 6391 | ILA10: 6392 | ILB10: 6393 | ILC10: 6394 | ILD10: 6395 | ILE10: 6396 | ILF10: 6397 | ILG10: 6398 | ILH10: 6399 | ILI10: 6400 | ILJ10: 6401 | ILK10: 6402 | ILL10: =ILK10+1 -> 6403 | ILM10: 6404 | ILN10: 6405 | ILO10: 6406 | ILP10: 6407 | ILQ10: 6408 | ILR10: 6409 | ILS10: 6410 | ILT10: 6411 | ILU10: 6412 | ILV10: 6413 | ILW10: 6414 | ILX10: 6415 | ILY10: 6416 | ILZ10: 6417 | IMA10: 6418 | IMB10: 6419 | IMC10: 6420 | IMD10: 6421 | IME10: 6422 | IMF10: 6423 | IMG10: 6424 | IMH10: 6425 | IMI10: 6426 | IMJ10: 6427 | IMK10: 6428 | IML10: 6429 | IMM10: 6430 | IMN10: 6431 | IMO10: 6432 | IMP10: 6433 | IMQ10: 6434 | IMR10: 6435 | IMS10: 6436 | IMT10: 6437 | IMU10: 6438 | IMV10: 6439 | IMW10: 6440 | IMX10: 6441 | IMY10: 6442 | IMZ10: 6443 | INA10: 6444 | INB10: 6445 | INC10: 6446 | IND10: 6447 | INE10: 6448 | INF10: 6449 | ING10: 6450 | INH10: 6451 | INI10: 6452 | INJ10: 6453 | INK10: 6454 | INL10: 6455 | INM10: 6456 | INN10: 6457 | INO10: 6458 | INP10: 6459 | INQ10: 6460 | INR10: 6461 | INS10: 6462 | INT10: 6463 | INU10: 6464 | INV10: 6465 | INW10: 6466 | INX10: =INW10+1 -> 6467 | INY10: 6468 | INZ10: 6469 | IOA10: 6470 | IOB10: 6471 | IOC10: 6472 | IOD10: 6473 | IOE10: 6474 | IOF10: 6475 | IOG10: 6476 | IOH10: 6477 | IOI10: 6478 | IOJ10: 6479 | IOK10: 6480 | IOL10: 6481 | IOM10: 6482 | ION10: 6483 | IOO10: 6484 | IOP10: 6485 | IOQ10: 6486 | IOR10: 6487 | IOS10: 6488 | IOT10: 6489 | IOU10: 6490 | IOV10: 6491 | IOW10: 6492 | IOX10: 6493 | IOY10: 6494 | IOZ10: 6495 | IPA10: 6496 | IPB10: 6497 | IPC10: 6498 | IPD10: 6499 | IPE10: 6500 | IPF10: 6501 | IPG10: 6502 | IPH10: 6503 | IPI10: 6504 | IPJ10: 6505 | IPK10: 6506 | IPL10: 6507 | IPM10: 6508 | IPN10: 6509 | IPO10: 6510 | IPP10: 6511 | IPQ10: 6512 | IPR10: 6513 | IPS10: 6514 | IPT10: 6515 | IPU10: 6516 | IPV10: 6517 | IPW10: 6518 | IPX10: 6519 | IPY10: 6520 | IPZ10: 6521 | IQA10: 6522 | IQB10: 6523 | IQC10: 6524 | IQD10: 6525 | IQE10: 6526 | IQF10: 6527 | IQG10: 6528 | IQH10: 6529 | IQI10: 6530 | IQJ10: =IQI10+1 -> 6531 | IQK10: 6532 | IQL10: 6533 | IQM10: 6534 | IQN10: 6535 | IQO10: 6536 | IQP10: 6537 | IQQ10: 6538 | IQR10: 6539 | IQS10: 6540 | IQT10: 6541 | IQU10: 6542 | IQV10: 6543 | IQW10: 6544 | IQX10: 6545 | IQY10: 6546 | IQZ10: 6547 | IRA10: 6548 | IRB10: 6549 | IRC10: 6550 | IRD10: 6551 | IRE10: 6552 | IRF10: 6553 | IRG10: 6554 | IRH10: 6555 | IRI10: 6556 | IRJ10: 6557 | IRK10: 6558 | IRL10: 6559 | IRM10: 6560 | IRN10: 6561 | IRO10: 6562 | IRP10: 6563 | IRQ10: 6564 | IRR10: 6565 | IRS10: 6566 | IRT10: 6567 | IRU10: 6568 | IRV10: 6569 | IRW10: 6570 | IRX10: 6571 | IRY10: 6572 | IRZ10: 6573 | ISA10: 6574 | ISB10: 6575 | ISC10: 6576 | ISD10: 6577 | ISE10: 6578 | ISF10: 6579 | ISG10: 6580 | ISH10: 6581 | ISI10: 6582 | ISJ10: 6583 | ISK10: 6584 | ISL10: 6585 | ISM10: 6586 | ISN10: 6587 | ISO10: 6588 | ISP10: 6589 | ISQ10: 6590 | ISR10: 6591 | ISS10: 6592 | IST10: 6593 | ISU10: 6594 | ISV10: =ISU10+1 -> 6595 | ISW10: 6596 | ISX10: 6597 | ISY10: 6598 | ISZ10: 6599 | ITA10: 6600 | ITB10: 6601 | ITC10: 6602 | ITD10: 6603 | ITE10: 6604 | ITF10: 6605 | ITG10: 6606 | ITH10: 6607 | ITI10: 6608 | ITJ10: 6609 | ITK10: 6610 | ITL10: 6611 | ITM10: 6612 | ITN10: 6613 | ITO10: 6614 | ITP10: 6615 | ITQ10: 6616 | ITR10: 6617 | ITS10: 6618 | ITT10: 6619 | ITU10: 6620 | ITV10: 6621 | ITW10: 6622 | ITX10: 6623 | ITY10: 6624 | ITZ10: 6625 | IUA10: 6626 | IUB10: 6627 | IUC10: 6628 | IUD10: 6629 | IUE10: 6630 | IUF10: 6631 | IUG10: 6632 | IUH10: 6633 | IUI10: 6634 | IUJ10: 6635 | IUK10: 6636 | IUL10: 6637 | IUM10: 6638 | IUN10: 6639 | IUO10: 6640 | IUP10: 6641 | IUQ10: 6642 | IUR10: 6643 | IUS10: 6644 | IUT10: 6645 | IUU10: 6646 | IUV10: 6647 | IUW10: 6648 | IUX10: 6649 | IUY10: 6650 | IUZ10: 6651 | IVA10: 6652 | IVB10: 6653 | IVC10: 6654 | IVD10: 6655 | IVE10: 6656 | IVF10: 6657 | IVG10: 6658 | IVH10: =IVG10+1 -> 6659 | IVI10: 6660 | IVJ10: 6661 | IVK10: 6662 | IVL10: 6663 | IVM10: 6664 | IVN10: 6665 | IVO10: 6666 | IVP10: 6667 | IVQ10: 6668 | IVR10: 6669 | IVS10: 6670 | IVT10: 6671 | IVU10: 6672 | IVV10: 6673 | IVW10: 6674 | IVX10: 6675 | IVY10: 6676 | IVZ10: 6677 | IWA10: 6678 | IWB10: 6679 | IWC10: 6680 | IWD10: 6681 | IWE10: 6682 | IWF10: 6683 | IWG10: 6684 | IWH10: 6685 | IWI10: 6686 | IWJ10: 6687 | IWK10: 6688 | IWL10: 6689 | IWM10: 6690 | IWN10: 6691 | IWO10: 6692 | IWP10: 6693 | IWQ10: 6694 | IWR10: 6695 | IWS10: 6696 | IWT10: 6697 | IWU10: 6698 | IWV10: 6699 | IWW10: 6700 | IWX10: 6701 | IWY10: 6702 | IWZ10: 6703 | IXA10: 6704 | IXB10: 6705 | IXC10: 6706 | IXD10: 6707 | IXE10: 6708 | IXF10: 6709 | IXG10: 6710 | IXH10: 6711 | IXI10: 6712 | IXJ10: 6713 | IXK10: 6714 | IXL10: 6715 | IXM10: 6716 | IXN10: 6717 | IXO10: 6718 | IXP10: 6719 | IXQ10: 6720 | IXR10: 6721 | IXS10: 6722 | IXT10: =IXS10+1 -> 6723 | IXU10: 6724 | IXV10: 6725 | IXW10: 6726 | IXX10: 6727 | IXY10: 6728 | IXZ10: 6729 | IYA10: 6730 | IYB10: 6731 | IYC10: 6732 | IYD10: 6733 | IYE10: 6734 | IYF10: 6735 | IYG10: 6736 | IYH10: 6737 | IYI10: 6738 | IYJ10: 6739 | IYK10: 6740 | IYL10: 6741 | IYM10: 6742 | IYN10: 6743 | IYO10: 6744 | IYP10: 6745 | IYQ10: 6746 | IYR10: 6747 | IYS10: 6748 | IYT10: 6749 | IYU10: 6750 | IYV10: 6751 | IYW10: 6752 | IYX10: 6753 | IYY10: 6754 | IYZ10: 6755 | IZA10: 6756 | IZB10: 6757 | IZC10: 6758 | IZD10: 6759 | IZE10: 6760 | IZF10: 6761 | IZG10: 6762 | IZH10: 6763 | IZI10: 6764 | IZJ10: 6765 | IZK10: 6766 | IZL10: 6767 | IZM10: 6768 | IZN10: 6769 | IZO10: 6770 | IZP10: 6771 | IZQ10: 6772 | IZR10: 6773 | IZS10: 6774 | IZT10: 6775 | IZU10: 6776 | IZV10: 6777 | IZW10: 6778 | IZX10: 6779 | IZY10: 6780 | IZZ10: 6781 | JAA10: 6782 | JAB10: 6783 | JAC10: 6784 | JAD10: 6785 | JAE10: 6786 | JAF10: =JAE10+1 -> 6787 | JAG10: 6788 | JAH10: 6789 | JAI10: 6790 | JAJ10: 6791 | JAK10: 6792 | JAL10: 6793 | JAM10: 6794 | JAN10: 6795 | JAO10: 6796 | JAP10: 6797 | JAQ10: 6798 | JAR10: 6799 | JAS10: 6800 | JAT10: 6801 | JAU10: 6802 | JAV10: 6803 | JAW10: 6804 | JAX10: 6805 | JAY10: 6806 | JAZ10: 6807 | JBA10: 6808 | JBB10: 6809 | JBC10: 6810 | JBD10: 6811 | JBE10: 6812 | JBF10: 6813 | JBG10: 6814 | JBH10: 6815 | JBI10: 6816 | JBJ10: 6817 | JBK10: 6818 | JBL10: 6819 | JBM10: 6820 | JBN10: 6821 | JBO10: 6822 | JBP10: 6823 | JBQ10: 6824 | JBR10: 6825 | JBS10: 6826 | JBT10: 6827 | JBU10: 6828 | JBV10: 6829 | JBW10: 6830 | JBX10: 6831 | JBY10: 6832 | JBZ10: 6833 | JCA10: 6834 | JCB10: 6835 | JCC10: 6836 | JCD10: 6837 | JCE10: 6838 | JCF10: 6839 | JCG10: 6840 | JCH10: 6841 | JCI10: 6842 | JCJ10: 6843 | JCK10: 6844 | JCL10: 6845 | JCM10: 6846 | JCN10: 6847 | JCO10: 6848 | JCP10: 6849 | JCQ10: 6850 | JCR10: =JCQ10+1 -> 6851 | JCS10: 6852 | JCT10: 6853 | JCU10: 6854 | JCV10: 6855 | JCW10: 6856 | JCX10: 6857 | JCY10: 6858 | JCZ10: 6859 | JDA10: 6860 | JDB10: 6861 | JDC10: 6862 | JDD10: 6863 | JDE10: 6864 | JDF10: 6865 | JDG10: 6866 | JDH10: 6867 | JDI10: 6868 | JDJ10: 6869 | JDK10: 6870 | JDL10: 6871 | JDM10: 6872 | JDN10: 6873 | JDO10: 6874 | JDP10: 6875 | JDQ10: 6876 | JDR10: 6877 | JDS10: 6878 | JDT10: 6879 | JDU10: 6880 | JDV10: 6881 | JDW10: 6882 | JDX10: 6883 | JDY10: 6884 | JDZ10: 6885 | JEA10: 6886 | JEB10: 6887 | JEC10: 6888 | JED10: 6889 | JEE10: 6890 | JEF10: 6891 | JEG10: 6892 | JEH10: 6893 | JEI10: 6894 | JEJ10: 6895 | JEK10: 6896 | JEL10: 6897 | JEM10: 6898 | JEN10: 6899 | JEO10: 6900 | JEP10: 6901 | JEQ10: 6902 | JER10: 6903 | JES10: 6904 | JET10: 6905 | JEU10: 6906 | JEV10: 6907 | JEW10: 6908 | JEX10: 6909 | JEY10: 6910 | JEZ10: 6911 | JFA10: 6912 | JFB10: 6913 | JFC10: 6914 | JFD10: =JFC10+1 -> 6915 | JFE10: 6916 | JFF10: 6917 | JFG10: 6918 | JFH10: 6919 | JFI10: 6920 | JFJ10: 6921 | JFK10: 6922 | JFL10: 6923 | JFM10: 6924 | JFN10: 6925 | JFO10: 6926 | JFP10: 6927 | JFQ10: 6928 | JFR10: 6929 | JFS10: 6930 | JFT10: 6931 | JFU10: 6932 | JFV10: 6933 | JFW10: 6934 | JFX10: 6935 | JFY10: 6936 | JFZ10: 6937 | JGA10: 6938 | JGB10: 6939 | JGC10: 6940 | JGD10: 6941 | JGE10: 6942 | JGF10: 6943 | JGG10: 6944 | JGH10: 6945 | JGI10: 6946 | JGJ10: 6947 | JGK10: 6948 | JGL10: 6949 | JGM10: 6950 | JGN10: 6951 | JGO10: 6952 | JGP10: 6953 | JGQ10: 6954 | JGR10: 6955 | JGS10: 6956 | JGT10: 6957 | JGU10: 6958 | JGV10: 6959 | JGW10: 6960 | JGX10: 6961 | JGY10: 6962 | JGZ10: 6963 | JHA10: 6964 | JHB10: 6965 | JHC10: 6966 | JHD10: 6967 | JHE10: 6968 | JHF10: 6969 | JHG10: 6970 | JHH10: 6971 | JHI10: 6972 | JHJ10: 6973 | JHK10: 6974 | JHL10: 6975 | JHM10: 6976 | JHN10: 6977 | JHO10: 6978 | JHP10: =JHO10+1 -> 6979 | JHQ10: 6980 | JHR10: 6981 | JHS10: 6982 | JHT10: 6983 | JHU10: 6984 | JHV10: 6985 | JHW10: 6986 | JHX10: 6987 | JHY10: 6988 | JHZ10: 6989 | JIA10: 6990 | JIB10: 6991 | JIC10: 6992 | JID10: 6993 | JIE10: 6994 | JIF10: 6995 | JIG10: 6996 | JIH10: 6997 | JII10: 6998 | JIJ10: 6999 | JIK10: 7000 | JIL10: 7001 | JIM10: 7002 | JIN10: 7003 | JIO10: 7004 | JIP10: 7005 | JIQ10: 7006 | JIR10: 7007 | JIS10: 7008 | JIT10: 7009 | JIU10: 7010 | JIV10: 7011 | JIW10: 7012 | JIX10: 7013 | JIY10: 7014 | JIZ10: 7015 | JJA10: 7016 | JJB10: 7017 | JJC10: 7018 | JJD10: 7019 | JJE10: 7020 | JJF10: 7021 | JJG10: 7022 | JJH10: 7023 | JJI10: 7024 | JJJ10: 7025 | JJK10: 7026 | JJL10: 7027 | JJM10: 7028 | JJN10: 7029 | JJO10: 7030 | JJP10: 7031 | JJQ10: 7032 | JJR10: 7033 | JJS10: 7034 | JJT10: 7035 | JJU10: 7036 | JJV10: 7037 | JJW10: 7038 | JJX10: 7039 | JJY10: 7040 | JJZ10: 7041 | JKA10: 7042 | JKB10: =JKA10+1 -> 7043 | JKC10: 7044 | JKD10: 7045 | JKE10: 7046 | JKF10: 7047 | JKG10: 7048 | JKH10: 7049 | JKI10: 7050 | JKJ10: 7051 | JKK10: 7052 | JKL10: 7053 | JKM10: 7054 | JKN10: 7055 | JKO10: 7056 | JKP10: 7057 | JKQ10: 7058 | JKR10: 7059 | JKS10: 7060 | JKT10: 7061 | JKU10: 7062 | JKV10: 7063 | JKW10: 7064 | JKX10: 7065 | JKY10: 7066 | JKZ10: 7067 | JLA10: 7068 | JLB10: 7069 | JLC10: 7070 | JLD10: 7071 | JLE10: 7072 | JLF10: 7073 | JLG10: 7074 | JLH10: 7075 | JLI10: 7076 | JLJ10: 7077 | JLK10: 7078 | JLL10: 7079 | JLM10: 7080 | JLN10: 7081 | JLO10: 7082 | JLP10: 7083 | JLQ10: 7084 | JLR10: 7085 | JLS10: 7086 | JLT10: 7087 | JLU10: 7088 | JLV10: 7089 | JLW10: 7090 | JLX10: 7091 | JLY10: 7092 | JLZ10: 7093 | JMA10: 7094 | JMB10: 7095 | JMC10: 7096 | JMD10: 7097 | JME10: 7098 | JMF10: 7099 | JMG10: 7100 | JMH10: 7101 | JMI10: 7102 | JMJ10: 7103 | JMK10: 7104 | JML10: 7105 | JMM10: 7106 | JMN10: =JMM10+1 -> 7107 | JMO10: 7108 | JMP10: 7109 | JMQ10: 7110 | JMR10: 7111 | JMS10: 7112 | JMT10: 7113 | JMU10: 7114 | JMV10: 7115 | JMW10: 7116 | JMX10: 7117 | JMY10: 7118 | JMZ10: 7119 | JNA10: 7120 | JNB10: 7121 | JNC10: 7122 | JND10: 7123 | JNE10: 7124 | JNF10: 7125 | JNG10: 7126 | JNH10: 7127 | JNI10: 7128 | JNJ10: 7129 | JNK10: 7130 | JNL10: 7131 | JNM10: 7132 | JNN10: 7133 | JNO10: 7134 | JNP10: 7135 | JNQ10: 7136 | JNR10: 7137 | JNS10: 7138 | JNT10: 7139 | JNU10: 7140 | JNV10: 7141 | JNW10: 7142 | JNX10: 7143 | JNY10: 7144 | JNZ10: 7145 | JOA10: 7146 | JOB10: 7147 | JOC10: 7148 | JOD10: 7149 | JOE10: 7150 | JOF10: 7151 | JOG10: 7152 | JOH10: 7153 | JOI10: 7154 | JOJ10: 7155 | JOK10: 7156 | JOL10: 7157 | JOM10: 7158 | JON10: 7159 | JOO10: 7160 | JOP10: 7161 | JOQ10: 7162 | JOR10: 7163 | JOS10: 7164 | JOT10: 7165 | JOU10: 7166 | JOV10: 7167 | JOW10: 7168 | JOX10: 7169 | JOY10: 7170 | JOZ10: =JOY10+1 -> 7171 | JPA10: 7172 | JPB10: 7173 | JPC10: 7174 | JPD10: 7175 | JPE10: 7176 | JPF10: 7177 | JPG10: 7178 | JPH10: 7179 | JPI10: 7180 | JPJ10: 7181 | JPK10: 7182 | JPL10: 7183 | JPM10: 7184 | JPN10: 7185 | JPO10: 7186 | JPP10: 7187 | JPQ10: 7188 | JPR10: 7189 | JPS10: 7190 | JPT10: 7191 | JPU10: 7192 | JPV10: 7193 | JPW10: 7194 | JPX10: 7195 | JPY10: 7196 | JPZ10: 7197 | JQA10: 7198 | JQB10: 7199 | JQC10: 7200 | JQD10: 7201 | JQE10: 7202 | JQF10: 7203 | JQG10: 7204 | JQH10: 7205 | JQI10: 7206 | JQJ10: 7207 | JQK10: 7208 | JQL10: 7209 | JQM10: 7210 | JQN10: 7211 | JQO10: 7212 | JQP10: 7213 | JQQ10: 7214 | JQR10: 7215 | JQS10: 7216 | JQT10: 7217 | JQU10: 7218 | JQV10: 7219 | JQW10: 7220 | JQX10: 7221 | JQY10: 7222 | JQZ10: 7223 | JRA10: 7224 | JRB10: 7225 | JRC10: 7226 | JRD10: 7227 | JRE10: 7228 | JRF10: 7229 | JRG10: 7230 | JRH10: 7231 | JRI10: 7232 | JRJ10: 7233 | JRK10: 7234 | JRL10: =JRK10+1 -> 7235 | JRM10: 7236 | JRN10: 7237 | JRO10: 7238 | JRP10: 7239 | JRQ10: 7240 | JRR10: 7241 | JRS10: 7242 | JRT10: 7243 | JRU10: 7244 | JRV10: 7245 | JRW10: 7246 | JRX10: 7247 | JRY10: 7248 | JRZ10: 7249 | JSA10: 7250 | JSB10: 7251 | JSC10: 7252 | JSD10: 7253 | JSE10: 7254 | JSF10: 7255 | JSG10: 7256 | JSH10: 7257 | JSI10: 7258 | JSJ10: 7259 | JSK10: 7260 | JSL10: 7261 | JSM10: 7262 | JSN10: 7263 | JSO10: 7264 | JSP10: 7265 | JSQ10: 7266 | JSR10: 7267 | JSS10: 7268 | JST10: 7269 | JSU10: 7270 | JSV10: 7271 | JSW10: 7272 | JSX10: 7273 | JSY10: 7274 | JSZ10: 7275 | JTA10: 7276 | JTB10: 7277 | JTC10: 7278 | JTD10: 7279 | JTE10: 7280 | JTF10: 7281 | JTG10: 7282 | JTH10: 7283 | JTI10: 7284 | JTJ10: 7285 | JTK10: 7286 | JTL10: 7287 | JTM10: 7288 | JTN10: 7289 | JTO10: 7290 | JTP10: 7291 | JTQ10: 7292 | JTR10: 7293 | JTS10: 7294 | JTT10: 7295 | JTU10: 7296 | JTV10: 7297 | JTW10: 7298 | JTX10: =JTW10+1 -> 7299 | JTY10: 7300 | JTZ10: 7301 | JUA10: 7302 | JUB10: 7303 | JUC10: 7304 | JUD10: 7305 | JUE10: 7306 | JUF10: 7307 | JUG10: 7308 | JUH10: 7309 | JUI10: 7310 | JUJ10: 7311 | JUK10: 7312 | JUL10: 7313 | JUM10: 7314 | JUN10: 7315 | JUO10: 7316 | JUP10: 7317 | JUQ10: 7318 | JUR10: 7319 | JUS10: 7320 | JUT10: 7321 | JUU10: 7322 | JUV10: 7323 | JUW10: 7324 | JUX10: 7325 | JUY10: 7326 | JUZ10: 7327 | JVA10: 7328 | JVB10: 7329 | JVC10: 7330 | JVD10: 7331 | JVE10: 7332 | JVF10: 7333 | JVG10: 7334 | JVH10: 7335 | JVI10: 7336 | JVJ10: 7337 | JVK10: 7338 | JVL10: 7339 | JVM10: 7340 | JVN10: 7341 | JVO10: 7342 | JVP10: 7343 | JVQ10: 7344 | JVR10: 7345 | JVS10: 7346 | JVT10: 7347 | JVU10: 7348 | JVV10: 7349 | JVW10: 7350 | JVX10: 7351 | JVY10: 7352 | JVZ10: 7353 | JWA10: 7354 | JWB10: 7355 | JWC10: 7356 | JWD10: 7357 | JWE10: 7358 | JWF10: 7359 | JWG10: 7360 | JWH10: 7361 | JWI10: 7362 | JWJ10: =JWI10+1 -> 7363 | JWK10: 7364 | JWL10: 7365 | JWM10: 7366 | JWN10: 7367 | JWO10: 7368 | JWP10: 7369 | JWQ10: 7370 | JWR10: 7371 | JWS10: 7372 | JWT10: 7373 | JWU10: 7374 | JWV10: 7375 | JWW10: 7376 | JWX10: 7377 | JWY10: 7378 | JWZ10: 7379 | JXA10: 7380 | JXB10: 7381 | JXC10: 7382 | JXD10: 7383 | JXE10: 7384 | JXF10: 7385 | JXG10: 7386 | JXH10: 7387 | JXI10: 7388 | JXJ10: 7389 | JXK10: 7390 | JXL10: 7391 | JXM10: 7392 | JXN10: 7393 | JXO10: 7394 | JXP10: 7395 | JXQ10: 7396 | JXR10: 7397 | JXS10: 7398 | JXT10: 7399 | JXU10: 7400 | JXV10: 7401 | JXW10: 7402 | JXX10: 7403 | JXY10: 7404 | JXZ10: 7405 | JYA10: 7406 | JYB10: 7407 | JYC10: 7408 | JYD10: 7409 | JYE10: 7410 | JYF10: 7411 | JYG10: 7412 | JYH10: 7413 | JYI10: 7414 | JYJ10: 7415 | JYK10: 7416 | JYL10: 7417 | JYM10: 7418 | JYN10: 7419 | JYO10: 7420 | JYP10: 7421 | JYQ10: 7422 | JYR10: 7423 | JYS10: 7424 | JYT10: 7425 | JYU10: 7426 | JYV10: =JYU10+1 -> 7427 | JYW10: 7428 | JYX10: 7429 | JYY10: 7430 | JYZ10: 7431 | JZA10: 7432 | JZB10: 7433 | JZC10: 7434 | JZD10: 7435 | JZE10: 7436 | JZF10: 7437 | JZG10: 7438 | JZH10: 7439 | JZI10: 7440 | JZJ10: 7441 | JZK10: 7442 | JZL10: 7443 | JZM10: 7444 | JZN10: 7445 | JZO10: 7446 | JZP10: 7447 | JZQ10: 7448 | JZR10: 7449 | JZS10: 7450 | JZT10: 7451 | JZU10: 7452 | JZV10: 7453 | JZW10: 7454 | JZX10: 7455 | JZY10: 7456 | JZZ10: 7457 | KAA10: 7458 | KAB10: 7459 | KAC10: 7460 | KAD10: 7461 | KAE10: 7462 | KAF10: 7463 | KAG10: 7464 | KAH10: 7465 | KAI10: 7466 | KAJ10: 7467 | KAK10: 7468 | KAL10: 7469 | KAM10: 7470 | KAN10: 7471 | KAO10: 7472 | KAP10: 7473 | KAQ10: 7474 | KAR10: 7475 | KAS10: 7476 | KAT10: 7477 | KAU10: 7478 | KAV10: 7479 | KAW10: 7480 | KAX10: 7481 | KAY10: 7482 | KAZ10: 7483 | KBA10: 7484 | KBB10: 7485 | KBC10: 7486 | KBD10: 7487 | KBE10: 7488 | KBF10: 7489 | KBG10: 7490 | KBH10: =KBG10+1 -> 7491 | KBI10: 7492 | KBJ10: 7493 | KBK10: 7494 | KBL10: 7495 | KBM10: 7496 | KBN10: 7497 | KBO10: 7498 | KBP10: 7499 | KBQ10: 7500 | KBR10: 7501 | KBS10: 7502 | KBT10: 7503 | KBU10: 7504 | KBV10: 7505 | KBW10: 7506 | KBX10: 7507 | KBY10: 7508 | KBZ10: 7509 | KCA10: 7510 | KCB10: 7511 | KCC10: 7512 | KCD10: 7513 | KCE10: 7514 | KCF10: 7515 | KCG10: 7516 | KCH10: 7517 | KCI10: 7518 | KCJ10: 7519 | KCK10: 7520 | KCL10: 7521 | KCM10: 7522 | KCN10: 7523 | KCO10: 7524 | KCP10: 7525 | KCQ10: 7526 | KCR10: 7527 | KCS10: 7528 | KCT10: 7529 | KCU10: 7530 | KCV10: 7531 | KCW10: 7532 | KCX10: 7533 | KCY10: 7534 | KCZ10: 7535 | KDA10: 7536 | KDB10: 7537 | KDC10: 7538 | KDD10: 7539 | KDE10: 7540 | KDF10: 7541 | KDG10: 7542 | KDH10: 7543 | KDI10: 7544 | KDJ10: 7545 | KDK10: 7546 | KDL10: 7547 | KDM10: 7548 | KDN10: 7549 | KDO10: 7550 | KDP10: 7551 | KDQ10: 7552 | KDR10: 7553 | KDS10: 7554 | KDT10: =KDS10+1 -> 7555 | KDU10: 7556 | KDV10: 7557 | KDW10: 7558 | KDX10: 7559 | KDY10: 7560 | KDZ10: 7561 | KEA10: 7562 | KEB10: 7563 | KEC10: 7564 | KED10: 7565 | KEE10: 7566 | KEF10: 7567 | KEG10: 7568 | KEH10: 7569 | KEI10: 7570 | KEJ10: 7571 | KEK10: 7572 | KEL10: 7573 | KEM10: 7574 | KEN10: 7575 | KEO10: 7576 | KEP10: 7577 | KEQ10: 7578 | KER10: 7579 | KES10: 7580 | KET10: 7581 | KEU10: 7582 | KEV10: 7583 | KEW10: 7584 | KEX10: 7585 | KEY10: 7586 | KEZ10: 7587 | KFA10: 7588 | KFB10: 7589 | KFC10: 7590 | KFD10: 7591 | KFE10: 7592 | KFF10: 7593 | KFG10: 7594 | KFH10: 7595 | KFI10: 7596 | KFJ10: 7597 | KFK10: 7598 | KFL10: 7599 | KFM10: 7600 | KFN10: 7601 | KFO10: 7602 | KFP10: 7603 | KFQ10: 7604 | KFR10: 7605 | KFS10: 7606 | KFT10: 7607 | KFU10: 7608 | KFV10: 7609 | KFW10: 7610 | KFX10: 7611 | KFY10: 7612 | KFZ10: 7613 | KGA10: 7614 | KGB10: 7615 | KGC10: 7616 | KGD10: 7617 | KGE10: 7618 | KGF10: =KGE10+1 -> 7619 | KGG10: 7620 | KGH10: 7621 | KGI10: 7622 | KGJ10: 7623 | KGK10: 7624 | KGL10: 7625 | KGM10: 7626 | KGN10: 7627 | KGO10: 7628 | KGP10: 7629 | KGQ10: 7630 | KGR10: 7631 | KGS10: 7632 | KGT10: 7633 | KGU10: 7634 | KGV10: 7635 | KGW10: 7636 | KGX10: 7637 | KGY10: 7638 | KGZ10: 7639 | KHA10: 7640 | KHB10: 7641 | KHC10: 7642 | KHD10: 7643 | KHE10: 7644 | KHF10: 7645 | KHG10: 7646 | KHH10: 7647 | KHI10: 7648 | KHJ10: 7649 | KHK10: 7650 | KHL10: 7651 | KHM10: 7652 | KHN10: 7653 | KHO10: 7654 | KHP10: 7655 | KHQ10: 7656 | KHR10: 7657 | KHS10: 7658 | KHT10: 7659 | KHU10: 7660 | KHV10: 7661 | KHW10: 7662 | KHX10: 7663 | KHY10: 7664 | KHZ10: 7665 | KIA10: 7666 | KIB10: 7667 | KIC10: 7668 | KID10: 7669 | KIE10: 7670 | KIF10: 7671 | KIG10: 7672 | KIH10: 7673 | KII10: 7674 | KIJ10: 7675 | KIK10: 7676 | KIL10: 7677 | KIM10: 7678 | KIN10: 7679 | KIO10: 7680 | KIP10: 7681 | KIQ10: 7682 | KIR10: =KIQ10+1 -> 7683 | KIS10: 7684 | KIT10: 7685 | KIU10: 7686 | KIV10: 7687 | KIW10: 7688 | KIX10: 7689 | KIY10: 7690 | KIZ10: 7691 | KJA10: 7692 | KJB10: 7693 | KJC10: 7694 | KJD10: 7695 | KJE10: 7696 | KJF10: 7697 | KJG10: 7698 | KJH10: 7699 | KJI10: 7700 | KJJ10: 7701 | KJK10: 7702 | KJL10: 7703 | KJM10: 7704 | KJN10: 7705 | KJO10: 7706 | KJP10: 7707 | KJQ10: 7708 | KJR10: 7709 | KJS10: 7710 | KJT10: 7711 | KJU10: 7712 | KJV10: 7713 | KJW10: 7714 | KJX10: 7715 | KJY10: 7716 | KJZ10: 7717 | KKA10: 7718 | KKB10: 7719 | KKC10: 7720 | KKD10: 7721 | KKE10: 7722 | KKF10: 7723 | KKG10: 7724 | KKH10: 7725 | KKI10: 7726 | KKJ10: 7727 | KKK10: 7728 | KKL10: 7729 | KKM10: 7730 | KKN10: 7731 | KKO10: 7732 | KKP10: 7733 | KKQ10: 7734 | KKR10: 7735 | KKS10: 7736 | KKT10: 7737 | KKU10: 7738 | KKV10: 7739 | KKW10: 7740 | KKX10: 7741 | KKY10: 7742 | KKZ10: 7743 | KLA10: 7744 | KLB10: 7745 | KLC10: 7746 | KLD10: =KLC10+1 -> 7747 | KLE10: 7748 | KLF10: 7749 | KLG10: 7750 | KLH10: 7751 | KLI10: 7752 | KLJ10: 7753 | KLK10: 7754 | KLL10: 7755 | KLM10: 7756 | KLN10: 7757 | KLO10: 7758 | KLP10: 7759 | KLQ10: 7760 | KLR10: 7761 | KLS10: 7762 | KLT10: 7763 | KLU10: 7764 | KLV10: 7765 | KLW10: 7766 | KLX10: 7767 | KLY10: 7768 | KLZ10: 7769 | KMA10: 7770 | KMB10: 7771 | KMC10: 7772 | KMD10: 7773 | KME10: 7774 | KMF10: 7775 | KMG10: 7776 | KMH10: 7777 | KMI10: 7778 | KMJ10: 7779 | KMK10: 7780 | KML10: 7781 | KMM10: 7782 | KMN10: 7783 | KMO10: 7784 | KMP10: 7785 | KMQ10: 7786 | KMR10: 7787 | KMS10: 7788 | KMT10: 7789 | KMU10: 7790 | KMV10: 7791 | KMW10: 7792 | KMX10: 7793 | KMY10: 7794 | KMZ10: 7795 | KNA10: 7796 | KNB10: 7797 | KNC10: 7798 | KND10: 7799 | KNE10: 7800 | KNF10: 7801 | KNG10: 7802 | KNH10: 7803 | KNI10: 7804 | KNJ10: 7805 | KNK10: 7806 | KNL10: 7807 | KNM10: 7808 | KNN10: 7809 | KNO10: 7810 | KNP10: =KNO10+1 -> 7811 | KNQ10: 7812 | KNR10: 7813 | KNS10: 7814 | KNT10: 7815 | KNU10: 7816 | KNV10: 7817 | KNW10: 7818 | KNX10: 7819 | KNY10: 7820 | KNZ10: 7821 | KOA10: 7822 | KOB10: 7823 | KOC10: 7824 | KOD10: 7825 | KOE10: 7826 | KOF10: 7827 | KOG10: 7828 | KOH10: 7829 | KOI10: 7830 | KOJ10: 7831 | KOK10: 7832 | KOL10: 7833 | KOM10: 7834 | KON10: 7835 | KOO10: 7836 | KOP10: 7837 | KOQ10: 7838 | KOR10: 7839 | KOS10: 7840 | KOT10: 7841 | KOU10: 7842 | KOV10: 7843 | KOW10: 7844 | KOX10: 7845 | KOY10: 7846 | KOZ10: 7847 | KPA10: 7848 | KPB10: 7849 | KPC10: 7850 | KPD10: 7851 | KPE10: 7852 | KPF10: 7853 | KPG10: 7854 | KPH10: 7855 | KPI10: 7856 | KPJ10: 7857 | KPK10: 7858 | KPL10: 7859 | KPM10: 7860 | KPN10: 7861 | KPO10: 7862 | KPP10: 7863 | KPQ10: 7864 | KPR10: 7865 | KPS10: 7866 | KPT10: 7867 | KPU10: 7868 | KPV10: 7869 | KPW10: 7870 | KPX10: 7871 | KPY10: 7872 | KPZ10: 7873 | KQA10: 7874 | KQB10: =KQA10+1 -> 7875 | KQC10: 7876 | KQD10: 7877 | KQE10: 7878 | KQF10: 7879 | KQG10: 7880 | KQH10: 7881 | KQI10: 7882 | KQJ10: 7883 | KQK10: 7884 | KQL10: 7885 | KQM10: 7886 | KQN10: 7887 | KQO10: 7888 | KQP10: 7889 | KQQ10: 7890 | KQR10: 7891 | KQS10: 7892 | KQT10: 7893 | KQU10: 7894 | KQV10: 7895 | KQW10: 7896 | KQX10: 7897 | KQY10: 7898 | KQZ10: 7899 | KRA10: 7900 | KRB10: 7901 | KRC10: 7902 | KRD10: 7903 | KRE10: 7904 | KRF10: 7905 | KRG10: 7906 | KRH10: 7907 | KRI10: 7908 | KRJ10: 7909 | KRK10: 7910 | KRL10: 7911 | KRM10: 7912 | KRN10: 7913 | KRO10: 7914 | KRP10: 7915 | KRQ10: 7916 | KRR10: 7917 | KRS10: 7918 | KRT10: 7919 | KRU10: 7920 | KRV10: 7921 | KRW10: 7922 | KRX10: 7923 | KRY10: 7924 | KRZ10: 7925 | KSA10: 7926 | KSB10: 7927 | KSC10: 7928 | KSD10: 7929 | KSE10: 7930 | KSF10: 7931 | KSG10: 7932 | KSH10: 7933 | KSI10: 7934 | KSJ10: 7935 | KSK10: 7936 | KSL10: 7937 | KSM10: 7938 | KSN10: =KSM10+1 -> 7939 | KSO10: 7940 | KSP10: 7941 | KSQ10: 7942 | KSR10: 7943 | KSS10: 7944 | KST10: 7945 | KSU10: 7946 | KSV10: 7947 | KSW10: 7948 | KSX10: 7949 | KSY10: 7950 | KSZ10: 7951 | KTA10: 7952 | KTB10: 7953 | KTC10: 7954 | KTD10: 7955 | KTE10: 7956 | KTF10: 7957 | KTG10: 7958 | KTH10: 7959 | KTI10: 7960 | KTJ10: 7961 | KTK10: 7962 | KTL10: 7963 | KTM10: 7964 | KTN10: 7965 | KTO10: 7966 | KTP10: 7967 | KTQ10: 7968 | KTR10: 7969 | KTS10: 7970 | KTT10: 7971 | KTU10: 7972 | KTV10: 7973 | KTW10: 7974 | KTX10: 7975 | KTY10: 7976 | KTZ10: 7977 | KUA10: 7978 | KUB10: 7979 | KUC10: 7980 | KUD10: 7981 | KUE10: 7982 | KUF10: 7983 | KUG10: 7984 | KUH10: 7985 | KUI10: 7986 | KUJ10: 7987 | KUK10: 7988 | KUL10: 7989 | KUM10: 7990 | KUN10: 7991 | KUO10: 7992 | KUP10: 7993 | KUQ10: 7994 | KUR10: 7995 | KUS10: 7996 | KUT10: 7997 | KUU10: 7998 | KUV10: 7999 | KUW10: 8000 | KUX10: 8001 | KUY10: 8002 | KUZ10: =KUY10+1 -> 8003 | KVA10: 8004 | KVB10: 8005 | KVC10: 8006 | KVD10: 8007 | KVE10: 8008 | KVF10: 8009 | KVG10: 8010 | KVH10: 8011 | KVI10: 8012 | KVJ10: 8013 | KVK10: 8014 | KVL10: 8015 | KVM10: 8016 | KVN10: 8017 | KVO10: 8018 | KVP10: 8019 | KVQ10: 8020 | KVR10: 8021 | KVS10: 8022 | KVT10: 8023 | KVU10: 8024 | KVV10: 8025 | KVW10: 8026 | KVX10: 8027 | KVY10: 8028 | KVZ10: 8029 | KWA10: 8030 | KWB10: 8031 | KWC10: 8032 | KWD10: 8033 | KWE10: 8034 | KWF10: 8035 | KWG10: 8036 | KWH10: 8037 | KWI10: 8038 | KWJ10: 8039 | KWK10: 8040 | KWL10: 8041 | KWM10: 8042 | KWN10: 8043 | KWO10: 8044 | KWP10: 8045 | KWQ10: 8046 | KWR10: 8047 | KWS10: 8048 | KWT10: 8049 | KWU10: 8050 | KWV10: 8051 | KWW10: 8052 | KWX10: 8053 | KWY10: 8054 | KWZ10: 8055 | KXA10: 8056 | KXB10: 8057 | KXC10: 8058 | KXD10: 8059 | KXE10: 8060 | KXF10: 8061 | KXG10: 8062 | KXH10: 8063 | KXI10: 8064 | KXJ10: 8065 | KXK10: 8066 | KXL10: =KXK10+1 -> 8067 | KXM10: 8068 | KXN10: 8069 | KXO10: 8070 | KXP10: 8071 | KXQ10: 8072 | KXR10: 8073 | KXS10: 8074 | KXT10: 8075 | KXU10: 8076 | KXV10: 8077 | KXW10: 8078 | KXX10: 8079 | KXY10: 8080 | KXZ10: 8081 | KYA10: 8082 | KYB10: 8083 | KYC10: 8084 | KYD10: 8085 | KYE10: 8086 | KYF10: 8087 | KYG10: 8088 | KYH10: 8089 | KYI10: 8090 | KYJ10: 8091 | KYK10: 8092 | KYL10: 8093 | KYM10: 8094 | KYN10: 8095 | KYO10: 8096 | KYP10: 8097 | KYQ10: 8098 | KYR10: 8099 | KYS10: 8100 | KYT10: 8101 | KYU10: 8102 | KYV10: 8103 | KYW10: 8104 | KYX10: 8105 | KYY10: 8106 | KYZ10: 8107 | KZA10: 8108 | KZB10: 8109 | KZC10: 8110 | KZD10: 8111 | KZE10: 8112 | KZF10: 8113 | KZG10: 8114 | KZH10: 8115 | KZI10: 8116 | KZJ10: 8117 | KZK10: 8118 | KZL10: 8119 | KZM10: 8120 | KZN10: 8121 | KZO10: 8122 | KZP10: 8123 | KZQ10: 8124 | KZR10: 8125 | KZS10: 8126 | KZT10: 8127 | KZU10: 8128 | KZV10: 8129 | KZW10: 8130 | KZX10: =KZW10+1 -> 8131 | KZY10: 8132 | KZZ10: 8133 | LAA10: 8134 | LAB10: 8135 | LAC10: 8136 | LAD10: 8137 | LAE10: 8138 | LAF10: 8139 | LAG10: 8140 | LAH10: 8141 | LAI10: 8142 | LAJ10: 8143 | LAK10: 8144 | LAL10: 8145 | LAM10: 8146 | LAN10: 8147 | LAO10: 8148 | LAP10: 8149 | LAQ10: 8150 | LAR10: 8151 | LAS10: 8152 | LAT10: 8153 | LAU10: 8154 | LAV10: 8155 | LAW10: 8156 | LAX10: 8157 | LAY10: 8158 | LAZ10: 8159 | LBA10: 8160 | LBB10: 8161 | LBC10: 8162 | LBD10: 8163 | LBE10: 8164 | LBF10: 8165 | LBG10: 8166 | LBH10: 8167 | LBI10: 8168 | LBJ10: 8169 | LBK10: 8170 | LBL10: 8171 | LBM10: 8172 | LBN10: 8173 | LBO10: 8174 | LBP10: 8175 | LBQ10: 8176 | LBR10: 8177 | LBS10: 8178 | LBT10: 8179 | LBU10: 8180 | LBV10: 8181 | LBW10: 8182 | LBX10: 8183 | LBY10: 8184 | LBZ10: 8185 | LCA10: 8186 | LCB10: 8187 | LCC10: 8188 | LCD10: 8189 | LCE10: 8190 | LCF10: 8191 | LCG10: 8192 | LCH10: 8193 | LCI10: 8194 | LCJ10: =LCI10+1 -> 8195 | LCK10: 8196 | LCL10: 8197 | LCM10: 8198 | LCN10: 8199 | LCO10: 8200 | LCP10: 8201 | LCQ10: 8202 | LCR10: 8203 | LCS10: 8204 | LCT10: 8205 | LCU10: 8206 | LCV10: 8207 | LCW10: 8208 | LCX10: 8209 | LCY10: 8210 | LCZ10: 8211 | LDA10: 8212 | LDB10: 8213 | LDC10: 8214 | LDD10: 8215 | LDE10: 8216 | LDF10: 8217 | LDG10: 8218 | LDH10: 8219 | LDI10: 8220 | LDJ10: 8221 | LDK10: 8222 | LDL10: 8223 | LDM10: 8224 | LDN10: 8225 | LDO10: 8226 | LDP10: 8227 | LDQ10: 8228 | LDR10: 8229 | LDS10: 8230 | LDT10: 8231 | LDU10: 8232 | LDV10: 8233 | LDW10: 8234 | LDX10: 8235 | LDY10: 8236 | LDZ10: 8237 | LEA10: 8238 | LEB10: 8239 | LEC10: 8240 | LED10: 8241 | LEE10: 8242 | LEF10: 8243 | LEG10: 8244 | LEH10: 8245 | LEI10: 8246 | LEJ10: 8247 | LEK10: 8248 | LEL10: 8249 | LEM10: 8250 | LEN10: 8251 | LEO10: 8252 | LEP10: 8253 | LEQ10: 8254 | LER10: 8255 | LES10: 8256 | LET10: 8257 | LEU10: 8258 | LEV10: =LEU10+1 -> 8259 | LEW10: 8260 | LEX10: 8261 | LEY10: 8262 | LEZ10: 8263 | LFA10: 8264 | LFB10: 8265 | LFC10: 8266 | LFD10: 8267 | LFE10: 8268 | LFF10: 8269 | LFG10: 8270 | LFH10: 8271 | LFI10: 8272 | LFJ10: 8273 | LFK10: 8274 | LFL10: 8275 | LFM10: 8276 | LFN10: 8277 | LFO10: 8278 | LFP10: 8279 | LFQ10: 8280 | LFR10: 8281 | LFS10: 8282 | LFT10: 8283 | LFU10: 8284 | LFV10: 8285 | LFW10: 8286 | LFX10: 8287 | LFY10: 8288 | LFZ10: 8289 | LGA10: 8290 | LGB10: 8291 | LGC10: 8292 | LGD10: 8293 | LGE10: 8294 | LGF10: 8295 | LGG10: 8296 | LGH10: 8297 | LGI10: 8298 | LGJ10: 8299 | LGK10: 8300 | LGL10: 8301 | LGM10: 8302 | LGN10: 8303 | LGO10: 8304 | LGP10: 8305 | LGQ10: 8306 | LGR10: 8307 | LGS10: 8308 | LGT10: 8309 | LGU10: 8310 | LGV10: 8311 | LGW10: 8312 | LGX10: 8313 | LGY10: 8314 | LGZ10: 8315 | LHA10: 8316 | LHB10: 8317 | LHC10: 8318 | LHD10: 8319 | LHE10: 8320 | LHF10: 8321 | LHG10: 8322 | LHH10: =LHG10+1 -> 8323 | LHI10: 8324 | LHJ10: 8325 | LHK10: 8326 | LHL10: 8327 | LHM10: 8328 | LHN10: 8329 | LHO10: 8330 | LHP10: 8331 | LHQ10: 8332 | LHR10: 8333 | LHS10: 8334 | LHT10: 8335 | LHU10: 8336 | LHV10: 8337 | LHW10: 8338 | LHX10: 8339 | LHY10: 8340 | LHZ10: 8341 | LIA10: 8342 | LIB10: 8343 | LIC10: 8344 | LID10: 8345 | LIE10: 8346 | LIF10: 8347 | LIG10: 8348 | LIH10: 8349 | LII10: 8350 | LIJ10: 8351 | LIK10: 8352 | LIL10: 8353 | LIM10: 8354 | LIN10: 8355 | LIO10: 8356 | LIP10: 8357 | LIQ10: 8358 | LIR10: 8359 | LIS10: 8360 | LIT10: 8361 | LIU10: 8362 | LIV10: 8363 | LIW10: 8364 | LIX10: 8365 | LIY10: 8366 | LIZ10: 8367 | LJA10: 8368 | LJB10: 8369 | LJC10: 8370 | LJD10: 8371 | LJE10: 8372 | LJF10: 8373 | LJG10: 8374 | LJH10: 8375 | LJI10: 8376 | LJJ10: 8377 | LJK10: 8378 | LJL10: 8379 | LJM10: 8380 | LJN10: 8381 | LJO10: 8382 | LJP10: 8383 | LJQ10: 8384 | LJR10: 8385 | LJS10: 8386 | LJT10: =LJS10+1 -> 8387 | LJU10: 8388 | LJV10: 8389 | LJW10: 8390 | LJX10: 8391 | LJY10: 8392 | LJZ10: 8393 | LKA10: 8394 | LKB10: 8395 | LKC10: 8396 | LKD10: 8397 | LKE10: 8398 | LKF10: 8399 | LKG10: 8400 | LKH10: 8401 | LKI10: 8402 | LKJ10: 8403 | LKK10: 8404 | LKL10: 8405 | LKM10: 8406 | LKN10: 8407 | LKO10: 8408 | LKP10: 8409 | LKQ10: 8410 | LKR10: 8411 | LKS10: 8412 | LKT10: 8413 | LKU10: 8414 | LKV10: 8415 | LKW10: 8416 | LKX10: 8417 | LKY10: 8418 | LKZ10: 8419 | LLA10: 8420 | LLB10: 8421 | LLC10: 8422 | LLD10: 8423 | LLE10: 8424 | LLF10: 8425 | LLG10: 8426 | LLH10: 8427 | LLI10: 8428 | LLJ10: 8429 | LLK10: 8430 | LLL10: 8431 | LLM10: 8432 | LLN10: 8433 | LLO10: 8434 | LLP10: 8435 | LLQ10: 8436 | LLR10: 8437 | LLS10: 8438 | LLT10: 8439 | LLU10: 8440 | LLV10: 8441 | LLW10: 8442 | LLX10: 8443 | LLY10: 8444 | LLZ10: 8445 | LMA10: 8446 | LMB10: 8447 | LMC10: 8448 | LMD10: 8449 | LME10: 8450 | LMF10: =LME10+1 -> 8451 | LMG10: 8452 | LMH10: 8453 | LMI10: 8454 | LMJ10: 8455 | LMK10: 8456 | LML10: 8457 | LMM10: 8458 | LMN10: 8459 | LMO10: 8460 | LMP10: 8461 | LMQ10: 8462 | LMR10: 8463 | LMS10: 8464 | LMT10: 8465 | LMU10: 8466 | LMV10: 8467 | LMW10: 8468 | LMX10: 8469 | LMY10: 8470 | LMZ10: 8471 | LNA10: 8472 | LNB10: 8473 | LNC10: 8474 | LND10: 8475 | LNE10: 8476 | LNF10: 8477 | LNG10: 8478 | LNH10: 8479 | LNI10: 8480 | LNJ10: 8481 | LNK10: 8482 | LNL10: 8483 | LNM10: 8484 | LNN10: 8485 | LNO10: 8486 | LNP10: 8487 | LNQ10: 8488 | LNR10: 8489 | LNS10: 8490 | LNT10: 8491 | LNU10: 8492 | LNV10: 8493 | LNW10: 8494 | LNX10: 8495 | LNY10: 8496 | LNZ10: 8497 | LOA10: 8498 | LOB10: 8499 | LOC10: 8500 | LOD10: 8501 | LOE10: 8502 | LOF10: 8503 | LOG10: 8504 | LOH10: 8505 | LOI10: 8506 | LOJ10: 8507 | LOK10: 8508 | LOL10: 8509 | LOM10: 8510 | LON10: 8511 | LOO10: 8512 | LOP10: 8513 | LOQ10: 8514 | LOR10: =LOQ10+1 -> 8515 | LOS10: 8516 | LOT10: 8517 | LOU10: 8518 | LOV10: 8519 | LOW10: 8520 | LOX10: 8521 | LOY10: 8522 | LOZ10: 8523 | LPA10: 8524 | LPB10: 8525 | LPC10: 8526 | LPD10: 8527 | LPE10: 8528 | LPF10: 8529 | LPG10: 8530 | LPH10: 8531 | LPI10: 8532 | LPJ10: 8533 | LPK10: 8534 | LPL10: 8535 | LPM10: 8536 | LPN10: 8537 | LPO10: 8538 | LPP10: 8539 | LPQ10: 8540 | LPR10: 8541 | LPS10: 8542 | LPT10: 8543 | LPU10: 8544 | LPV10: 8545 | LPW10: 8546 | LPX10: 8547 | LPY10: 8548 | LPZ10: 8549 | LQA10: 8550 | LQB10: 8551 | LQC10: 8552 | LQD10: 8553 | LQE10: 8554 | LQF10: 8555 | LQG10: 8556 | LQH10: 8557 | LQI10: 8558 | LQJ10: 8559 | LQK10: 8560 | LQL10: 8561 | LQM10: 8562 | LQN10: 8563 | LQO10: 8564 | LQP10: 8565 | LQQ10: 8566 | LQR10: 8567 | LQS10: 8568 | LQT10: 8569 | LQU10: 8570 | LQV10: 8571 | LQW10: 8572 | LQX10: 8573 | LQY10: 8574 | LQZ10: 8575 | LRA10: 8576 | LRB10: 8577 | LRC10: 8578 | LRD10: =LRC10+1 -> 8579 | LRE10: 8580 | LRF10: 8581 | LRG10: 8582 | LRH10: 8583 | LRI10: 8584 | LRJ10: 8585 | LRK10: 8586 | LRL10: 8587 | LRM10: 8588 | LRN10: 8589 | LRO10: 8590 | LRP10: 8591 | LRQ10: 8592 | LRR10: 8593 | LRS10: 8594 | LRT10: 8595 | LRU10: 8596 | LRV10: 8597 | LRW10: 8598 | LRX10: 8599 | LRY10: 8600 | LRZ10: 8601 | LSA10: 8602 | LSB10: 8603 | LSC10: 8604 | LSD10: 8605 | LSE10: 8606 | LSF10: 8607 | LSG10: 8608 | LSH10: 8609 | LSI10: 8610 | LSJ10: 8611 | LSK10: 8612 | LSL10: 8613 | LSM10: 8614 | LSN10: 8615 | LSO10: 8616 | LSP10: 8617 | LSQ10: 8618 | LSR10: 8619 | LSS10: 8620 | LST10: 8621 | LSU10: 8622 | LSV10: 8623 | LSW10: 8624 | LSX10: 8625 | LSY10: 8626 | LSZ10: 8627 | LTA10: 8628 | LTB10: 8629 | LTC10: 8630 | LTD10: 8631 | LTE10: 8632 | LTF10: 8633 | LTG10: 8634 | LTH10: 8635 | LTI10: 8636 | LTJ10: 8637 | LTK10: 8638 | LTL10: 8639 | LTM10: 8640 | LTN10: 8641 | LTO10: 8642 | LTP10: =LTO10+1 -> 8643 | LTQ10: 8644 | LTR10: 8645 | LTS10: 8646 | LTT10: 8647 | LTU10: 8648 | LTV10: 8649 | LTW10: 8650 | LTX10: 8651 | LTY10: 8652 | LTZ10: 8653 | LUA10: 8654 | LUB10: 8655 | LUC10: 8656 | LUD10: 8657 | LUE10: 8658 | LUF10: 8659 | LUG10: 8660 | LUH10: 8661 | LUI10: 8662 | LUJ10: 8663 | LUK10: 8664 | LUL10: 8665 | LUM10: 8666 | LUN10: 8667 | LUO10: 8668 | LUP10: 8669 | LUQ10: 8670 | LUR10: 8671 | LUS10: 8672 | LUT10: 8673 | LUU10: 8674 | LUV10: 8675 | LUW10: 8676 | LUX10: 8677 | LUY10: 8678 | LUZ10: 8679 | LVA10: 8680 | LVB10: 8681 | LVC10: 8682 | LVD10: 8683 | LVE10: 8684 | LVF10: 8685 | LVG10: 8686 | LVH10: 8687 | LVI10: 8688 | LVJ10: 8689 | LVK10: 8690 | LVL10: 8691 | LVM10: 8692 | LVN10: 8693 | LVO10: 8694 | LVP10: 8695 | LVQ10: 8696 | LVR10: 8697 | LVS10: 8698 | LVT10: 8699 | LVU10: 8700 | LVV10: 8701 | LVW10: 8702 | LVX10: 8703 | LVY10: 8704 | LVZ10: 8705 | LWA10: 8706 | LWB10: =LWA10+1 -> 8707 | LWC10: 8708 | LWD10: 8709 | LWE10: 8710 | LWF10: 8711 | LWG10: 8712 | LWH10: 8713 | LWI10: 8714 | LWJ10: 8715 | LWK10: 8716 | LWL10: 8717 | LWM10: 8718 | LWN10: 8719 | LWO10: 8720 | LWP10: 8721 | LWQ10: 8722 | LWR10: 8723 | LWS10: 8724 | LWT10: 8725 | LWU10: 8726 | LWV10: 8727 | LWW10: 8728 | LWX10: 8729 | LWY10: 8730 | LWZ10: 8731 | LXA10: 8732 | LXB10: 8733 | LXC10: 8734 | LXD10: 8735 | LXE10: 8736 | LXF10: 8737 | LXG10: 8738 | LXH10: 8739 | LXI10: 8740 | LXJ10: 8741 | LXK10: 8742 | LXL10: 8743 | LXM10: 8744 | LXN10: 8745 | LXO10: 8746 | LXP10: 8747 | LXQ10: 8748 | LXR10: 8749 | LXS10: 8750 | LXT10: 8751 | LXU10: 8752 | LXV10: 8753 | LXW10: 8754 | LXX10: 8755 | LXY10: 8756 | LXZ10: 8757 | LYA10: 8758 | LYB10: 8759 | LYC10: 8760 | LYD10: 8761 | LYE10: 8762 | LYF10: 8763 | LYG10: 8764 | LYH10: 8765 | LYI10: 8766 | LYJ10: 8767 | LYK10: 8768 | LYL10: 8769 | LYM10: 8770 | LYN10: =LYM10+1 -> 8771 | LYO10: 8772 | LYP10: 8773 | LYQ10: 8774 | LYR10: 8775 | LYS10: 8776 | LYT10: 8777 | LYU10: 8778 | LYV10: 8779 | LYW10: 8780 | LYX10: 8781 | LYY10: 8782 | LYZ10: 8783 | LZA10: 8784 | LZB10: 8785 | LZC10: 8786 | LZD10: 8787 | LZE10: 8788 | LZF10: 8789 | LZG10: 8790 | LZH10: 8791 | LZI10: 8792 | LZJ10: 8793 | LZK10: 8794 | LZL10: 8795 | LZM10: 8796 | LZN10: 8797 | LZO10: 8798 | LZP10: 8799 | LZQ10: 8800 | LZR10: 8801 | LZS10: 8802 | LZT10: 8803 | LZU10: 8804 | LZV10: 8805 | LZW10: 8806 | LZX10: 8807 | LZY10: 8808 | LZZ10: 8809 | MAA10: 8810 | MAB10: 8811 | MAC10: 8812 | MAD10: 8813 | MAE10: 8814 | MAF10: 8815 | MAG10: 8816 | MAH10: 8817 | MAI10: 8818 | MAJ10: 8819 | MAK10: 8820 | MAL10: 8821 | MAM10: 8822 | MAN10: 8823 | MAO10: 8824 | MAP10: 8825 | MAQ10: 8826 | MAR10: 8827 | MAS10: 8828 | MAT10: 8829 | MAU10: 8830 | MAV10: 8831 | MAW10: 8832 | MAX10: 8833 | MAY10: 8834 | MAZ10: =MAY10+1 -> 8835 | MBA10: 8836 | MBB10: 8837 | MBC10: 8838 | MBD10: 8839 | MBE10: 8840 | MBF10: 8841 | MBG10: 8842 | MBH10: 8843 | MBI10: 8844 | MBJ10: 8845 | MBK10: 8846 | MBL10: 8847 | MBM10: 8848 | MBN10: 8849 | MBO10: 8850 | MBP10: 8851 | MBQ10: 8852 | MBR10: 8853 | MBS10: 8854 | MBT10: 8855 | MBU10: 8856 | MBV10: 8857 | MBW10: 8858 | MBX10: 8859 | MBY10: 8860 | MBZ10: 8861 | MCA10: 8862 | MCB10: 8863 | MCC10: 8864 | MCD10: 8865 | MCE10: 8866 | MCF10: 8867 | MCG10: 8868 | MCH10: 8869 | MCI10: 8870 | MCJ10: 8871 | MCK10: 8872 | MCL10: 8873 | MCM10: 8874 | MCN10: 8875 | MCO10: 8876 | MCP10: 8877 | MCQ10: 8878 | MCR10: 8879 | MCS10: 8880 | MCT10: 8881 | MCU10: 8882 | MCV10: 8883 | MCW10: 8884 | MCX10: 8885 | MCY10: 8886 | MCZ10: 8887 | MDA10: 8888 | MDB10: 8889 | MDC10: 8890 | MDD10: 8891 | MDE10: 8892 | MDF10: 8893 | MDG10: 8894 | MDH10: 8895 | MDI10: 8896 | MDJ10: 8897 | MDK10: 8898 | MDL10: =MDK10+1 -> 8899 | MDM10: 8900 | MDN10: 8901 | MDO10: 8902 | MDP10: 8903 | MDQ10: 8904 | MDR10: 8905 | MDS10: 8906 | MDT10: 8907 | MDU10: 8908 | MDV10: 8909 | MDW10: 8910 | MDX10: 8911 | MDY10: 8912 | MDZ10: 8913 | MEA10: 8914 | MEB10: 8915 | MEC10: 8916 | MED10: 8917 | MEE10: 8918 | MEF10: 8919 | MEG10: 8920 | MEH10: 8921 | MEI10: 8922 | MEJ10: 8923 | MEK10: 8924 | MEL10: 8925 | MEM10: 8926 | MEN10: 8927 | MEO10: 8928 | MEP10: 8929 | MEQ10: 8930 | MER10: 8931 | MES10: 8932 | MET10: 8933 | MEU10: 8934 | MEV10: 8935 | MEW10: 8936 | MEX10: 8937 | MEY10: 8938 | MEZ10: 8939 | MFA10: 8940 | MFB10: 8941 | MFC10: 8942 | MFD10: 8943 | MFE10: 8944 | MFF10: 8945 | MFG10: 8946 | MFH10: 8947 | MFI10: 8948 | MFJ10: 8949 | MFK10: 8950 | MFL10: 8951 | MFM10: 8952 | MFN10: 8953 | MFO10: 8954 | MFP10: 8955 | MFQ10: 8956 | MFR10: 8957 | MFS10: 8958 | MFT10: 8959 | MFU10: 8960 | MFV10: 8961 | MFW10: 8962 | MFX10: =MFW10+1 -> 8963 | MFY10: 8964 | MFZ10: 8965 | MGA10: 8966 | MGB10: 8967 | MGC10: 8968 | MGD10: 8969 | MGE10: 8970 | MGF10: 8971 | MGG10: 8972 | MGH10: 8973 | MGI10: 8974 | MGJ10: 8975 | MGK10: 8976 | MGL10: 8977 | MGM10: 8978 | MGN10: 8979 | MGO10: 8980 | MGP10: 8981 | MGQ10: 8982 | MGR10: 8983 | MGS10: 8984 | MGT10: 8985 | MGU10: 8986 | MGV10: 8987 | MGW10: 8988 | MGX10: 8989 | MGY10: 8990 | MGZ10: 8991 | MHA10: 8992 | MHB10: 8993 | MHC10: 8994 | MHD10: 8995 | MHE10: 8996 | MHF10: 8997 | MHG10: 8998 | MHH10: 8999 | MHI10: 9000 | MHJ10: 9001 | MHK10: 9002 | MHL10: 9003 | MHM10: 9004 | MHN10: 9005 | MHO10: 9006 | MHP10: 9007 | MHQ10: 9008 | MHR10: 9009 | MHS10: 9010 | MHT10: 9011 | MHU10: 9012 | MHV10: 9013 | MHW10: 9014 | MHX10: 9015 | MHY10: 9016 | MHZ10: 9017 | MIA10: 9018 | MIB10: 9019 | MIC10: 9020 | MID10: 9021 | MIE10: 9022 | MIF10: 9023 | MIG10: 9024 | MIH10: 9025 | MII10: 9026 | MIJ10: =MII10+1 -> 9027 | MIK10: 9028 | MIL10: 9029 | MIM10: 9030 | MIN10: 9031 | MIO10: 9032 | MIP10: 9033 | MIQ10: 9034 | MIR10: 9035 | MIS10: 9036 | MIT10: 9037 | MIU10: 9038 | MIV10: 9039 | MIW10: 9040 | MIX10: 9041 | MIY10: 9042 | MIZ10: 9043 | MJA10: 9044 | MJB10: 9045 | MJC10: 9046 | MJD10: 9047 | MJE10: 9048 | MJF10: 9049 | MJG10: 9050 | MJH10: 9051 | MJI10: 9052 | MJJ10: 9053 | MJK10: 9054 | MJL10: 9055 | MJM10: 9056 | MJN10: 9057 | MJO10: 9058 | MJP10: 9059 | MJQ10: 9060 | MJR10: 9061 | MJS10: 9062 | MJT10: 9063 | MJU10: 9064 | MJV10: 9065 | MJW10: 9066 | MJX10: 9067 | MJY10: 9068 | MJZ10: 9069 | MKA10: 9070 | MKB10: 9071 | MKC10: 9072 | MKD10: 9073 | MKE10: 9074 | MKF10: 9075 | MKG10: 9076 | MKH10: 9077 | MKI10: 9078 | MKJ10: 9079 | MKK10: 9080 | MKL10: 9081 | MKM10: 9082 | MKN10: 9083 | MKO10: 9084 | MKP10: 9085 | MKQ10: 9086 | MKR10: 9087 | MKS10: 9088 | MKT10: 9089 | MKU10: 9090 | MKV10: =MKU10+1 -> 9091 | MKW10: 9092 | MKX10: 9093 | MKY10: 9094 | MKZ10: 9095 | MLA10: 9096 | MLB10: 9097 | MLC10: 9098 | MLD10: 9099 | MLE10: 9100 | MLF10: 9101 | MLG10: 9102 | MLH10: 9103 | MLI10: 9104 | MLJ10: 9105 | MLK10: 9106 | MLL10: 9107 | MLM10: 9108 | MLN10: 9109 | MLO10: 9110 | MLP10: 9111 | MLQ10: 9112 | MLR10: 9113 | MLS10: 9114 | MLT10: 9115 | MLU10: 9116 | MLV10: 9117 | MLW10: 9118 | MLX10: 9119 | MLY10: 9120 | MLZ10: 9121 | MMA10: 9122 | MMB10: 9123 | MMC10: 9124 | MMD10: 9125 | MME10: 9126 | MMF10: 9127 | MMG10: 9128 | MMH10: 9129 | MMI10: 9130 | MMJ10: 9131 | MMK10: 9132 | MML10: 9133 | MMM10: 9134 | MMN10: 9135 | MMO10: 9136 | MMP10: 9137 | MMQ10: 9138 | MMR10: 9139 | MMS10: 9140 | MMT10: 9141 | MMU10: 9142 | MMV10: 9143 | MMW10: 9144 | MMX10: 9145 | MMY10: 9146 | MMZ10: 9147 | MNA10: 9148 | MNB10: 9149 | MNC10: 9150 | MND10: 9151 | MNE10: 9152 | MNF10: 9153 | MNG10: 9154 | MNH10: =MNG10+1 -> 9155 | MNI10: 9156 | MNJ10: 9157 | MNK10: 9158 | MNL10: 9159 | MNM10: 9160 | MNN10: 9161 | MNO10: 9162 | MNP10: 9163 | MNQ10: 9164 | MNR10: 9165 | MNS10: 9166 | MNT10: 9167 | MNU10: 9168 | MNV10: 9169 | MNW10: 9170 | MNX10: 9171 | MNY10: 9172 | MNZ10: 9173 | MOA10: 9174 | MOB10: 9175 | MOC10: 9176 | MOD10: 9177 | MOE10: 9178 | MOF10: 9179 | MOG10: 9180 | MOH10: 9181 | MOI10: 9182 | MOJ10: 9183 | MOK10: 9184 | MOL10: 9185 | MOM10: 9186 | MON10: 9187 | MOO10: 9188 | MOP10: 9189 | MOQ10: 9190 | MOR10: 9191 | MOS10: 9192 | MOT10: 9193 | MOU10: 9194 | MOV10: 9195 | MOW10: 9196 | MOX10: 9197 | MOY10: 9198 | MOZ10: 9199 | MPA10: 9200 | MPB10: 9201 | MPC10: 9202 | MPD10: 9203 | MPE10: 9204 | MPF10: 9205 | MPG10: 9206 | MPH10: 9207 | MPI10: 9208 | MPJ10: 9209 | MPK10: 9210 | MPL10: 9211 | MPM10: 9212 | MPN10: 9213 | MPO10: 9214 | MPP10: 9215 | MPQ10: 9216 | MPR10: 9217 | MPS10: 9218 | MPT10: =MPS10+1 -> 9219 | MPU10: 9220 | MPV10: 9221 | MPW10: 9222 | MPX10: 9223 | MPY10: 9224 | MPZ10: 9225 | MQA10: 9226 | MQB10: 9227 | MQC10: 9228 | MQD10: 9229 | MQE10: 9230 | MQF10: 9231 | MQG10: 9232 | MQH10: 9233 | MQI10: 9234 | MQJ10: 9235 | MQK10: 9236 | MQL10: 9237 | MQM10: 9238 | MQN10: 9239 | MQO10: 9240 | MQP10: 9241 | MQQ10: 9242 | MQR10: 9243 | MQS10: 9244 | MQT10: 9245 | MQU10: 9246 | MQV10: 9247 | MQW10: 9248 | MQX10: 9249 | MQY10: 9250 | MQZ10: 9251 | MRA10: 9252 | MRB10: 9253 | MRC10: 9254 | MRD10: 9255 | MRE10: 9256 | MRF10: 9257 | MRG10: 9258 | MRH10: 9259 | MRI10: 9260 | MRJ10: 9261 | MRK10: 9262 | MRL10: 9263 | MRM10: 9264 | MRN10: 9265 | MRO10: 9266 | MRP10: 9267 | MRQ10: 9268 | MRR10: 9269 | MRS10: 9270 | MRT10: 9271 | MRU10: 9272 | MRV10: 9273 | MRW10: 9274 | MRX10: 9275 | MRY10: 9276 | MRZ10: 9277 | MSA10: 9278 | MSB10: 9279 | MSC10: 9280 | MSD10: 9281 | MSE10: 9282 | MSF10: =MSE10+1 -> 9283 | MSG10: 9284 | MSH10: 9285 | MSI10: 9286 | MSJ10: 9287 | MSK10: 9288 | MSL10: 9289 | MSM10: 9290 | MSN10: 9291 | MSO10: 9292 | MSP10: 9293 | MSQ10: 9294 | MSR10: 9295 | MSS10: 9296 | MST10: 9297 | MSU10: 9298 | MSV10: 9299 | MSW10: 9300 | MSX10: 9301 | MSY10: 9302 | MSZ10: 9303 | MTA10: 9304 | MTB10: 9305 | MTC10: 9306 | MTD10: 9307 | MTE10: 9308 | MTF10: 9309 | MTG10: 9310 | MTH10: 9311 | MTI10: 9312 | MTJ10: 9313 | MTK10: 9314 | MTL10: 9315 | MTM10: 9316 | MTN10: 9317 | MTO10: 9318 | MTP10: 9319 | MTQ10: 9320 | MTR10: 9321 | MTS10: 9322 | MTT10: 9323 | MTU10: 9324 | MTV10: 9325 | MTW10: 9326 | MTX10: 9327 | MTY10: 9328 | MTZ10: 9329 | MUA10: 9330 | MUB10: 9331 | MUC10: 9332 | MUD10: 9333 | MUE10: 9334 | MUF10: 9335 | MUG10: 9336 | MUH10: 9337 | MUI10: 9338 | MUJ10: 9339 | MUK10: 9340 | MUL10: 9341 | MUM10: 9342 | MUN10: 9343 | MUO10: 9344 | MUP10: 9345 | MUQ10: 9346 | MUR10: =MUQ10+1 -> 9347 | MUS10: 9348 | MUT10: 9349 | MUU10: 9350 | MUV10: 9351 | MUW10: 9352 | MUX10: 9353 | MUY10: 9354 | MUZ10: 9355 | MVA10: 9356 | MVB10: 9357 | MVC10: 9358 | MVD10: 9359 | MVE10: 9360 | MVF10: 9361 | MVG10: 9362 | MVH10: 9363 | MVI10: 9364 | MVJ10: 9365 | MVK10: 9366 | MVL10: 9367 | MVM10: 9368 | MVN10: 9369 | MVO10: 9370 | MVP10: 9371 | MVQ10: 9372 | MVR10: 9373 | MVS10: 9374 | MVT10: 9375 | MVU10: 9376 | MVV10: 9377 | MVW10: 9378 | MVX10: 9379 | MVY10: 9380 | MVZ10: 9381 | MWA10: 9382 | MWB10: 9383 | MWC10: 9384 | MWD10: 9385 | MWE10: 9386 | MWF10: 9387 | MWG10: 9388 | MWH10: 9389 | MWI10: 9390 | MWJ10: 9391 | MWK10: 9392 | MWL10: 9393 | MWM10: 9394 | MWN10: 9395 | MWO10: 9396 | MWP10: 9397 | MWQ10: 9398 | MWR10: 9399 | MWS10: 9400 | MWT10: 9401 | MWU10: 9402 | MWV10: 9403 | MWW10: 9404 | MWX10: 9405 | MWY10: 9406 | MWZ10: 9407 | MXA10: 9408 | MXB10: 9409 | MXC10: 9410 | MXD10: =MXC10+1 -> 9411 | MXE10: 9412 | MXF10: 9413 | MXG10: 9414 | MXH10: 9415 | MXI10: 9416 | MXJ10: 9417 | MXK10: 9418 | MXL10: 9419 | MXM10: 9420 | MXN10: 9421 | MXO10: 9422 | MXP10: 9423 | MXQ10: 9424 | MXR10: 9425 | MXS10: 9426 | MXT10: 9427 | MXU10: 9428 | MXV10: 9429 | MXW10: 9430 | MXX10: 9431 | MXY10: 9432 | MXZ10: 9433 | MYA10: 9434 | MYB10: 9435 | MYC10: 9436 | MYD10: 9437 | MYE10: 9438 | MYF10: 9439 | MYG10: 9440 | MYH10: 9441 | MYI10: 9442 | MYJ10: 9443 | MYK10: 9444 | MYL10: 9445 | MYM10: 9446 | MYN10: 9447 | MYO10: 9448 | MYP10: 9449 | MYQ10: 9450 | MYR10: 9451 | MYS10: 9452 | MYT10: 9453 | MYU10: 9454 | MYV10: 9455 | MYW10: 9456 | MYX10: 9457 | MYY10: 9458 | MYZ10: 9459 | MZA10: 9460 | MZB10: 9461 | MZC10: 9462 | MZD10: 9463 | MZE10: 9464 | MZF10: 9465 | MZG10: 9466 | MZH10: 9467 | MZI10: 9468 | MZJ10: 9469 | MZK10: 9470 | MZL10: 9471 | MZM10: 9472 | MZN10: 9473 | MZO10: 9474 | MZP10: =MZO10+1 -> 9475 | MZQ10: 9476 | MZR10: 9477 | MZS10: 9478 | MZT10: 9479 | MZU10: 9480 | MZV10: 9481 | MZW10: 9482 | MZX10: 9483 | MZY10: 9484 | MZZ10: 9485 | NAA10: 9486 | NAB10: 9487 | NAC10: 9488 | NAD10: 9489 | NAE10: 9490 | NAF10: 9491 | NAG10: 9492 | NAH10: 9493 | NAI10: 9494 | NAJ10: 9495 | NAK10: 9496 | NAL10: 9497 | NAM10: 9498 | NAN10: 9499 | NAO10: 9500 | NAP10: 9501 | NAQ10: 9502 | NAR10: 9503 | NAS10: 9504 | NAT10: 9505 | NAU10: 9506 | NAV10: 9507 | NAW10: 9508 | NAX10: 9509 | NAY10: 9510 | NAZ10: 9511 | NBA10: 9512 | NBB10: 9513 | NBC10: 9514 | NBD10: 9515 | NBE10: 9516 | NBF10: 9517 | NBG10: 9518 | NBH10: 9519 | NBI10: 9520 | NBJ10: 9521 | NBK10: 9522 | NBL10: 9523 | NBM10: 9524 | NBN10: 9525 | NBO10: 9526 | NBP10: 9527 | NBQ10: 9528 | NBR10: 9529 | NBS10: 9530 | NBT10: 9531 | NBU10: 9532 | NBV10: 9533 | NBW10: 9534 | NBX10: 9535 | NBY10: 9536 | NBZ10: 9537 | NCA10: 9538 | NCB10: =NCA10+1 -> 9539 | NCC10: 9540 | NCD10: 9541 | NCE10: 9542 | NCF10: 9543 | NCG10: 9544 | NCH10: 9545 | NCI10: 9546 | NCJ10: 9547 | NCK10: 9548 | NCL10: 9549 | NCM10: 9550 | NCN10: 9551 | NCO10: 9552 | NCP10: 9553 | NCQ10: 9554 | NCR10: 9555 | NCS10: 9556 | NCT10: 9557 | NCU10: 9558 | NCV10: 9559 | NCW10: 9560 | NCX10: 9561 | NCY10: 9562 | NCZ10: 9563 | NDA10: 9564 | NDB10: 9565 | NDC10: 9566 | NDD10: 9567 | NDE10: 9568 | NDF10: 9569 | NDG10: 9570 | NDH10: 9571 | NDI10: 9572 | NDJ10: 9573 | NDK10: 9574 | NDL10: 9575 | NDM10: 9576 | NDN10: 9577 | NDO10: 9578 | NDP10: 9579 | NDQ10: 9580 | NDR10: 9581 | NDS10: 9582 | NDT10: 9583 | NDU10: 9584 | NDV10: 9585 | NDW10: 9586 | NDX10: 9587 | NDY10: 9588 | NDZ10: 9589 | NEA10: 9590 | NEB10: 9591 | NEC10: 9592 | NED10: 9593 | NEE10: 9594 | NEF10: 9595 | NEG10: 9596 | NEH10: 9597 | NEI10: 9598 | NEJ10: 9599 | NEK10: 9600 | NEL10: 9601 | NEM10: 9602 | NEN10: =NEM10+1 -> 9603 | NEO10: 9604 | NEP10: 9605 | NEQ10: 9606 | NER10: 9607 | NES10: 9608 | NET10: 9609 | NEU10: 9610 | NEV10: 9611 | NEW10: 9612 | NEX10: 9613 | NEY10: 9614 | NEZ10: 9615 | NFA10: 9616 | NFB10: 9617 | NFC10: 9618 | NFD10: 9619 | NFE10: 9620 | NFF10: 9621 | NFG10: 9622 | NFH10: 9623 | NFI10: 9624 | NFJ10: 9625 | NFK10: 9626 | NFL10: 9627 | NFM10: 9628 | NFN10: 9629 | NFO10: 9630 | NFP10: 9631 | NFQ10: 9632 | NFR10: 9633 | NFS10: 9634 | NFT10: 9635 | NFU10: 9636 | NFV10: 9637 | NFW10: 9638 | NFX10: 9639 | NFY10: 9640 | NFZ10: 9641 | NGA10: 9642 | NGB10: 9643 | NGC10: 9644 | NGD10: 9645 | NGE10: 9646 | NGF10: 9647 | NGG10: 9648 | NGH10: 9649 | NGI10: 9650 | NGJ10: 9651 | NGK10: 9652 | NGL10: 9653 | NGM10: 9654 | NGN10: 9655 | NGO10: 9656 | NGP10: 9657 | NGQ10: 9658 | NGR10: 9659 | NGS10: 9660 | NGT10: 9661 | NGU10: 9662 | NGV10: 9663 | NGW10: 9664 | NGX10: 9665 | NGY10: 9666 | NGZ10: =NGY10+1 -> 9667 | NHA10: 9668 | NHB10: 9669 | NHC10: 9670 | NHD10: 9671 | NHE10: 9672 | NHF10: 9673 | NHG10: 9674 | NHH10: 9675 | NHI10: 9676 | NHJ10: 9677 | NHK10: 9678 | NHL10: 9679 | NHM10: 9680 | NHN10: 9681 | NHO10: 9682 | NHP10: 9683 | NHQ10: 9684 | NHR10: 9685 | NHS10: 9686 | NHT10: 9687 | NHU10: 9688 | NHV10: 9689 | NHW10: 9690 | NHX10: 9691 | NHY10: 9692 | NHZ10: 9693 | NIA10: 9694 | NIB10: 9695 | NIC10: 9696 | NID10: 9697 | NIE10: 9698 | NIF10: 9699 | NIG10: 9700 | NIH10: 9701 | NII10: 9702 | NIJ10: 9703 | NIK10: 9704 | NIL10: 9705 | NIM10: 9706 | NIN10: 9707 | NIO10: 9708 | NIP10: 9709 | NIQ10: 9710 | NIR10: 9711 | NIS10: 9712 | NIT10: 9713 | NIU10: 9714 | NIV10: 9715 | NIW10: 9716 | NIX10: 9717 | NIY10: 9718 | NIZ10: 9719 | NJA10: 9720 | NJB10: 9721 | NJC10: 9722 | NJD10: 9723 | NJE10: 9724 | NJF10: 9725 | NJG10: 9726 | NJH10: 9727 | NJI10: 9728 | NJJ10: 9729 | NJK10: 9730 | NJL10: =NJK10+1 -> 9731 | NJM10: 9732 | NJN10: 9733 | NJO10: 9734 | NJP10: 9735 | NJQ10: 9736 | NJR10: 9737 | NJS10: 9738 | NJT10: 9739 | NJU10: 9740 | NJV10: 9741 | NJW10: 9742 | NJX10: 9743 | NJY10: 9744 | NJZ10: 9745 | NKA10: 9746 | NKB10: 9747 | NKC10: 9748 | NKD10: 9749 | NKE10: 9750 | NKF10: 9751 | NKG10: 9752 | NKH10: 9753 | NKI10: 9754 | NKJ10: 9755 | NKK10: 9756 | NKL10: 9757 | NKM10: 9758 | NKN10: 9759 | NKO10: 9760 | NKP10: 9761 | NKQ10: 9762 | NKR10: 9763 | NKS10: 9764 | NKT10: 9765 | NKU10: 9766 | NKV10: 9767 | NKW10: 9768 | NKX10: 9769 | NKY10: 9770 | NKZ10: 9771 | NLA10: 9772 | NLB10: 9773 | NLC10: 9774 | NLD10: 9775 | NLE10: 9776 | NLF10: 9777 | NLG10: 9778 | NLH10: 9779 | NLI10: 9780 | NLJ10: 9781 | NLK10: 9782 | NLL10: 9783 | NLM10: 9784 | NLN10: 9785 | NLO10: 9786 | NLP10: 9787 | NLQ10: 9788 | NLR10: 9789 | NLS10: 9790 | NLT10: 9791 | NLU10: 9792 | NLV10: 9793 | NLW10: 9794 | NLX10: =NLW10+1 -> 9795 | NLY10: 9796 | NLZ10: 9797 | NMA10: 9798 | NMB10: 9799 | NMC10: 9800 | NMD10: 9801 | NME10: 9802 | NMF10: 9803 | NMG10: 9804 | NMH10: 9805 | NMI10: 9806 | NMJ10: 9807 | NMK10: 9808 | NML10: 9809 | NMM10: 9810 | NMN10: 9811 | NMO10: 9812 | NMP10: 9813 | NMQ10: 9814 | NMR10: 9815 | NMS10: 9816 | NMT10: 9817 | NMU10: 9818 | NMV10: 9819 | NMW10: 9820 | NMX10: 9821 | NMY10: 9822 | NMZ10: 9823 | NNA10: 9824 | NNB10: 9825 | NNC10: 9826 | NND10: 9827 | NNE10: 9828 | NNF10: 9829 | NNG10: 9830 | NNH10: 9831 | NNI10: 9832 | NNJ10: 9833 | NNK10: 9834 | NNL10: 9835 | NNM10: 9836 | NNN10: 9837 | NNO10: 9838 | NNP10: 9839 | NNQ10: 9840 | NNR10: 9841 | NNS10: 9842 | NNT10: 9843 | NNU10: 9844 | NNV10: 9845 | NNW10: 9846 | NNX10: 9847 | NNY10: 9848 | NNZ10: 9849 | NOA10: 9850 | NOB10: 9851 | NOC10: 9852 | NOD10: 9853 | NOE10: 9854 | NOF10: 9855 | NOG10: 9856 | NOH10: 9857 | NOI10: 9858 | NOJ10: =NOI10+1 -> 9859 | NOK10: 9860 | NOL10: 9861 | NOM10: 9862 | NON10: 9863 | NOO10: 9864 | NOP10: 9865 | NOQ10: 9866 | NOR10: 9867 | NOS10: 9868 | NOT10: 9869 | NOU10: 9870 | NOV10: 9871 | NOW10: 9872 | NOX10: 9873 | NOY10: 9874 | NOZ10: 9875 | NPA10: 9876 | NPB10: 9877 | NPC10: 9878 | NPD10: 9879 | NPE10: 9880 | NPF10: 9881 | NPG10: 9882 | NPH10: 9883 | NPI10: 9884 | NPJ10: 9885 | NPK10: 9886 | NPL10: 9887 | NPM10: 9888 | NPN10: 9889 | NPO10: 9890 | NPP10: 9891 | NPQ10: 9892 | NPR10: 9893 | NPS10: 9894 | NPT10: 9895 | NPU10: 9896 | NPV10: 9897 | NPW10: 9898 | NPX10: 9899 | NPY10: 9900 | NPZ10: 9901 | NQA10: 9902 | NQB10: 9903 | NQC10: 9904 | NQD10: 9905 | NQE10: 9906 | NQF10: 9907 | NQG10: 9908 | NQH10: 9909 | NQI10: 9910 | NQJ10: 9911 | NQK10: 9912 | NQL10: 9913 | NQM10: 9914 | NQN10: 9915 | NQO10: 9916 | NQP10: 9917 | NQQ10: 9918 | NQR10: 9919 | NQS10: 9920 | NQT10: 9921 | NQU10: 9922 | NQV10: =NQU10+1 -> 9923 | NQW10: 9924 | NQX10: 9925 | NQY10: 9926 | NQZ10: 9927 | NRA10: 9928 | NRB10: 9929 | NRC10: 9930 | NRD10: 9931 | NRE10: 9932 | NRF10: 9933 | NRG10: 9934 | NRH10: 9935 | NRI10: 9936 | NRJ10: 9937 | NRK10: 9938 | NRL10: 9939 | NRM10: 9940 | NRN10: 9941 | NRO10: 9942 | NRP10: 9943 | NRQ10: 9944 | NRR10: 9945 | NRS10: 9946 | NRT10: 9947 | NRU10: 9948 | NRV10: 9949 | NRW10: 9950 | NRX10: 9951 | NRY10: 9952 | NRZ10: 9953 | NSA10: 9954 | NSB10: 9955 | NSC10: 9956 | NSD10: 9957 | NSE10: 9958 | NSF10: 9959 | NSG10: 9960 | NSH10: 9961 | NSI10: 9962 | NSJ10: 9963 | NSK10: 9964 | NSL10: 9965 | NSM10: 9966 | NSN10: 9967 | NSO10: 9968 | NSP10: 9969 | NSQ10: 9970 | NSR10: 9971 | NSS10: 9972 | NST10: 9973 | NSU10: 9974 | NSV10: 9975 | NSW10: 9976 | NSX10: 9977 | NSY10: 9978 | NSZ10: 9979 | NTA10: 9980 | NTB10: 9981 | NTC10: 9982 | NTD10: 9983 | NTE10: 9984 | NTF10: 9985 | NTG10: 9986 | NTH10: =NTG10+1 -> 9987 | NTI10: 9988 | NTJ10: 9989 | NTK10: 9990 | NTL10: 9991 | NTM10: 9992 | NTN10: 9993 | NTO10: 9994 | NTP10: 9995 | NTQ10: 9996 | NTR10: 9997 | NTS10: 9998 | NTT10: 9999 | NTU10: 10000 | NTV10: 10001 | NTW10: 10002 | NTX10: 10003 | NTY10: 10004 | NTZ10: 10005 | NUA10: 10006 | NUB10: 10007 | NUC10: 10008 | NUD10: 10009 | NUE10: 10010 | NUF10: 10011 | NUG10: 10012 | NUH10: 10013 | NUI10: 10014 | NUJ10: 10015 | NUK10: 10016 | NUL10: 10017 | NUM10: 10018 | NUN10: 10019 | NUO10: 10020 | NUP10: 10021 | NUQ10: 10022 | NUR10: 10023 | NUS10: 10024 | NUT10: 10025 | NUU10: 10026 | NUV10: 10027 | NUW10: 10028 | NUX10: 10029 | NUY10: 10030 | NUZ10: 10031 | NVA10: 10032 | NVB10: 10033 | NVC10: 10034 | NVD10: 10035 | NVE10: 10036 | NVF10: 10037 | NVG10: 10038 | NVH10: 10039 | NVI10: 10040 | NVJ10: 10041 | NVK10: 10042 | NVL10: 10043 | NVM10: 10044 | NVN10: 10045 | NVO10: 10046 | NVP10: 10047 | NVQ10: 10048 | NVR10: 10049 | NVS10: 10050 | NVT10: =NVS10+1 -> 10051 | NVU10: 10052 | NVV10: 10053 | NVW10: 10054 | NVX10: 10055 | NVY10: 10056 | NVZ10: 10057 | NWA10: 10058 | NWB10: 10059 | NWC10: 10060 | NWD10: 10061 | NWE10: 10062 | NWF10: 10063 | NWG10: 10064 | NWH10: 10065 | NWI10: 10066 | NWJ10: 10067 | NWK10: 10068 | NWL10: 10069 | NWM10: 10070 | NWN10: 10071 | NWO10: 10072 | NWP10: 10073 | NWQ10: 10074 | NWR10: 10075 | NWS10: 10076 | NWT10: 10077 | NWU10: 10078 | NWV10: 10079 | NWW10: 10080 | NWX10: 10081 | NWY10: 10082 | NWZ10: 10083 | NXA10: 10084 | NXB10: 10085 | NXC10: 10086 | NXD10: 10087 | NXE10: 10088 | NXF10: 10089 | NXG10: 10090 | NXH10: 10091 | NXI10: 10092 | NXJ10: 10093 | NXK10: 10094 | NXL10: 10095 | NXM10: 10096 | NXN10: 10097 | NXO10: 10098 | NXP10: 10099 | NXQ10: 10100 | NXR10: 10101 | NXS10: 10102 | NXT10: 10103 | NXU10: 10104 | NXV10: 10105 | NXW10: 10106 | NXX10: 10107 | NXY10: 10108 | NXZ10: 10109 | NYA10: 10110 | NYB10: 10111 | NYC10: 10112 | NYD10: 10113 | NYE10: 10114 | NYF10: =NYE10+1 -> 10115 | NYG10: 10116 | NYH10: 10117 | NYI10: 10118 | NYJ10: 10119 | NYK10: 10120 | NYL10: 10121 | NYM10: 10122 | NYN10: 10123 | NYO10: 10124 | NYP10: 10125 | NYQ10: 10126 | NYR10: 10127 | NYS10: 10128 | NYT10: 10129 | NYU10: 10130 | NYV10: 10131 | NYW10: 10132 | NYX10: 10133 | NYY10: 10134 | NYZ10: 10135 | NZA10: 10136 | NZB10: 10137 | NZC10: 10138 | NZD10: 10139 | NZE10: 10140 | NZF10: 10141 | NZG10: 10142 | NZH10: 10143 | NZI10: 10144 | NZJ10: 10145 | NZK10: 10146 | NZL10: 10147 | NZM10: 10148 | NZN10: 10149 | NZO10: 10150 | NZP10: 10151 | NZQ10: 10152 | NZR10: 10153 | NZS10: 10154 | NZT10: 10155 | NZU10: 10156 | NZV10: 10157 | NZW10: 10158 | NZX10: 10159 | NZY10: 10160 | NZZ10: 10161 | OAA10: 10162 | OAB10: 10163 | OAC10: 10164 | OAD10: 10165 | OAE10: 10166 | OAF10: 10167 | OAG10: 10168 | OAH10: 10169 | OAI10: 10170 | OAJ10: 10171 | OAK10: 10172 | OAL10: 10173 | OAM10: 10174 | OAN10: 10175 | OAO10: 10176 | OAP10: 10177 | OAQ10: 10178 | OAR10: =OAQ10+1 -> 10179 | OAS10: 10180 | OAT10: 10181 | OAU10: 10182 | OAV10: 10183 | OAW10: 10184 | OAX10: 10185 | OAY10: 10186 | OAZ10: 10187 | OBA10: 10188 | OBB10: 10189 | OBC10: 10190 | OBD10: 10191 | OBE10: 10192 | OBF10: 10193 | OBG10: 10194 | OBH10: 10195 | OBI10: 10196 | OBJ10: 10197 | OBK10: 10198 | OBL10: 10199 | OBM10: 10200 | OBN10: 10201 | OBO10: 10202 | OBP10: 10203 | OBQ10: 10204 | OBR10: 10205 | OBS10: 10206 | OBT10: 10207 | OBU10: 10208 | OBV10: 10209 | OBW10: 10210 | OBX10: 10211 | OBY10: 10212 | OBZ10: 10213 | OCA10: 10214 | OCB10: 10215 | OCC10: 10216 | OCD10: 10217 | OCE10: 10218 | OCF10: 10219 | OCG10: 10220 | OCH10: 10221 | OCI10: 10222 | OCJ10: 10223 | OCK10: 10224 | OCL10: 10225 | OCM10: 10226 | OCN10: 10227 | OCO10: 10228 | OCP10: 10229 | OCQ10: 10230 | OCR10: 10231 | OCS10: 10232 | OCT10: 10233 | OCU10: 10234 | OCV10: 10235 | OCW10: 10236 | OCX10: 10237 | OCY10: 10238 | OCZ10: 10239 | ODA10: 10240 | ODB10: 10241 | ODC10: 10242 | ODD10: =ODC10+1 -> 10243 | ODE10: 10244 | ODF10: 10245 | ODG10: 10246 | ODH10: 10247 | ODI10: 10248 | ODJ10: 10249 | ODK10: 10250 | ODL10: 10251 | ODM10: 10252 | ODN10: 10253 | ODO10: 10254 | ODP10: 10255 | ODQ10: 10256 | ODR10: 10257 | ODS10: 10258 | ODT10: 10259 | ODU10: 10260 | ODV10: 10261 | ODW10: 10262 | ODX10: 10263 | ODY10: 10264 | ODZ10: 10265 | OEA10: 10266 | OEB10: 10267 | OEC10: 10268 | OED10: 10269 | OEE10: 10270 | OEF10: 10271 | OEG10: 10272 | OEH10: 10273 | OEI10: 10274 | OEJ10: 10275 | OEK10: 10276 | OEL10: 10277 | OEM10: 10278 | OEN10: 10279 | OEO10: 10280 | OEP10: 10281 | OEQ10: 10282 | OER10: 10283 | OES10: 10284 | OET10: 10285 | OEU10: 10286 | OEV10: 10287 | OEW10: 10288 | OEX10: 10289 | OEY10: 10290 | OEZ10: 10291 | OFA10: 10292 | OFB10: 10293 | OFC10: 10294 | OFD10: 10295 | OFE10: 10296 | OFF10: 10297 | OFG10: 10298 | OFH10: 10299 | OFI10: 10300 | OFJ10: 10301 | OFK10: 10302 | OFL10: 10303 | OFM10: 10304 | OFN10: 10305 | OFO10: 10306 | OFP10: =OFO10+1 -> 10307 | OFQ10: 10308 | OFR10: 10309 | OFS10: 10310 | OFT10: 10311 | OFU10: 10312 | OFV10: 10313 | OFW10: 10314 | OFX10: 10315 | OFY10: 10316 | OFZ10: 10317 | OGA10: 10318 | OGB10: 10319 | OGC10: 10320 | OGD10: 10321 | OGE10: 10322 | OGF10: 10323 | OGG10: 10324 | OGH10: 10325 | OGI10: 10326 | OGJ10: 10327 | OGK10: 10328 | OGL10: 10329 | OGM10: 10330 | OGN10: 10331 | OGO10: 10332 | OGP10: 10333 | OGQ10: 10334 | OGR10: 10335 | OGS10: 10336 | OGT10: 10337 | OGU10: 10338 | OGV10: 10339 | OGW10: 10340 | OGX10: 10341 | OGY10: 10342 | OGZ10: 10343 | OHA10: 10344 | OHB10: 10345 | OHC10: 10346 | OHD10: 10347 | OHE10: 10348 | OHF10: 10349 | OHG10: 10350 | OHH10: 10351 | OHI10: 10352 | OHJ10: 10353 | OHK10: 10354 | OHL10: 10355 | OHM10: 10356 | OHN10: 10357 | OHO10: 10358 | OHP10: 10359 | OHQ10: 10360 | OHR10: 10361 | OHS10: 10362 | OHT10: 10363 | OHU10: 10364 | OHV10: 10365 | OHW10: 10366 | OHX10: 10367 | OHY10: 10368 | OHZ10: 10369 | OIA10: 10370 | OIB10: =OIA10+1 -> 10371 | OIC10: 10372 | OID10: 10373 | OIE10: 10374 | OIF10: 10375 | OIG10: 10376 | OIH10: 10377 | OII10: 10378 | OIJ10: 10379 | OIK10: 10380 | OIL10: 10381 | OIM10: 10382 | OIN10: 10383 | OIO10: 10384 | OIP10: 10385 | OIQ10: 10386 | OIR10: 10387 | OIS10: 10388 | OIT10: 10389 | OIU10: 10390 | OIV10: 10391 | OIW10: 10392 | OIX10: 10393 | OIY10: 10394 | OIZ10: 10395 | OJA10: 10396 | OJB10: 10397 | OJC10: 10398 | OJD10: 10399 | OJE10: 10400 | OJF10: 10401 | OJG10: 10402 | OJH10: 10403 | OJI10: 10404 | OJJ10: 10405 | OJK10: 10406 | OJL10: 10407 | OJM10: 10408 | OJN10: 10409 | OJO10: 10410 | OJP10: 10411 | OJQ10: 10412 | OJR10: 10413 | OJS10: 10414 | OJT10: 10415 | OJU10: 10416 | OJV10: 10417 | OJW10: 10418 | OJX10: 10419 | OJY10: 10420 | OJZ10: 10421 | OKA10: 10422 | OKB10: 10423 | OKC10: 10424 | OKD10: 10425 | OKE10: 10426 | OKF10: 10427 | OKG10: 10428 | OKH10: 10429 | OKI10: 10430 | OKJ10: 10431 | OKK10: 10432 | OKL10: 10433 | OKM10: 10434 | OKN10: =OKM10+1 -> 10435 | OKO10: 10436 | OKP10: 10437 | OKQ10: 10438 | OKR10: 10439 | OKS10: 10440 | OKT10: 10441 | OKU10: 10442 | OKV10: 10443 | OKW10: 10444 | OKX10: 10445 | OKY10: 10446 | OKZ10: 10447 | OLA10: 10448 | OLB10: 10449 | OLC10: 10450 | OLD10: 10451 | OLE10: 10452 | OLF10: 10453 | OLG10: 10454 | OLH10: 10455 | OLI10: 10456 | OLJ10: 10457 | OLK10: 10458 | OLL10: 10459 | OLM10: 10460 | OLN10: 10461 | OLO10: 10462 | OLP10: 10463 | OLQ10: 10464 | OLR10: 10465 | OLS10: 10466 | OLT10: 10467 | OLU10: 10468 | OLV10: 10469 | OLW10: 10470 | OLX10: 10471 | OLY10: 10472 | OLZ10: 10473 | OMA10: 10474 | OMB10: 10475 | OMC10: 10476 | OMD10: 10477 | OME10: 10478 | OMF10: 10479 | OMG10: 10480 | OMH10: 10481 | OMI10: 10482 | OMJ10: 10483 | OMK10: 10484 | OML10: 10485 | OMM10: 10486 | OMN10: 10487 | OMO10: 10488 | OMP10: 10489 | OMQ10: 10490 | OMR10: 10491 | OMS10: 10492 | OMT10: 10493 | OMU10: 10494 | OMV10: 10495 | OMW10: 10496 | OMX10: 10497 | OMY10: 10498 | OMZ10: =OMY10+1 -> 10499 | ONA10: 10500 | ONB10: 10501 | ONC10: 10502 | OND10: 10503 | ONE10: 10504 | ONF10: 10505 | ONG10: 10506 | ONH10: 10507 | ONI10: 10508 | ONJ10: 10509 | ONK10: 10510 | ONL10: 10511 | ONM10: 10512 | ONN10: 10513 | ONO10: 10514 | ONP10: 10515 | ONQ10: 10516 | ONR10: 10517 | ONS10: 10518 | ONT10: 10519 | ONU10: 10520 | ONV10: 10521 | ONW10: 10522 | ONX10: 10523 | ONY10: 10524 | ONZ10: 10525 | OOA10: 10526 | OOB10: 10527 | OOC10: 10528 | OOD10: 10529 | OOE10: 10530 | OOF10: 10531 | OOG10: 10532 | OOH10: 10533 | OOI10: 10534 | OOJ10: 10535 | OOK10: 10536 | OOL10: 10537 | OOM10: 10538 | OON10: 10539 | OOO10: 10540 | OOP10: 10541 | OOQ10: 10542 | OOR10: 10543 | OOS10: 10544 | OOT10: 10545 | OOU10: 10546 | OOV10: 10547 | OOW10: 10548 | OOX10: 10549 | OOY10: 10550 | OOZ10: 10551 | OPA10: 10552 | OPB10: 10553 | OPC10: 10554 | OPD10: 10555 | OPE10: 10556 | OPF10: 10557 | OPG10: 10558 | OPH10: 10559 | OPI10: 10560 | OPJ10: 10561 | OPK10: 10562 | OPL10: =OPK10+1 -> 10563 | OPM10: 10564 | OPN10: 10565 | OPO10: 10566 | OPP10: 10567 | OPQ10: 10568 | OPR10: 10569 | OPS10: 10570 | OPT10: 10571 | OPU10: 10572 | OPV10: 10573 | OPW10: 10574 | OPX10: 10575 | OPY10: 10576 | OPZ10: 10577 | OQA10: 10578 | OQB10: 10579 | OQC10: 10580 | OQD10: 10581 | OQE10: 10582 | OQF10: 10583 | OQG10: 10584 | OQH10: 10585 | OQI10: 10586 | OQJ10: 10587 | OQK10: 10588 | OQL10: 10589 | OQM10: 10590 | OQN10: 10591 | OQO10: 10592 | OQP10: 10593 | OQQ10: 10594 | OQR10: 10595 | OQS10: 10596 | OQT10: 10597 | OQU10: 10598 | OQV10: 10599 | OQW10: 10600 | OQX10: 10601 | OQY10: 10602 | OQZ10: 10603 | ORA10: 10604 | ORB10: 10605 | ORC10: 10606 | ORD10: 10607 | ORE10: 10608 | ORF10: 10609 | ORG10: 10610 | ORH10: 10611 | ORI10: 10612 | ORJ10: 10613 | ORK10: 10614 | ORL10: 10615 | ORM10: 10616 | ORN10: 10617 | ORO10: 10618 | ORP10: 10619 | ORQ10: 10620 | ORR10: 10621 | ORS10: 10622 | ORT10: 10623 | ORU10: 10624 | ORV10: 10625 | ORW10: 10626 | ORX10: =ORW10+1 -> 10627 | ORY10: 10628 | ORZ10: 10629 | OSA10: 10630 | OSB10: 10631 | OSC10: 10632 | OSD10: 10633 | OSE10: 10634 | OSF10: 10635 | OSG10: 10636 | OSH10: 10637 | OSI10: 10638 | OSJ10: 10639 | OSK10: 10640 | OSL10: 10641 | OSM10: 10642 | OSN10: 10643 | OSO10: 10644 | OSP10: 10645 | OSQ10: 10646 | OSR10: 10647 | OSS10: 10648 | OST10: 10649 | OSU10: 10650 | OSV10: 10651 | OSW10: 10652 | OSX10: 10653 | OSY10: 10654 | OSZ10: 10655 | OTA10: 10656 | OTB10: 10657 | OTC10: 10658 | OTD10: 10659 | OTE10: 10660 | OTF10: 10661 | OTG10: 10662 | OTH10: 10663 | OTI10: 10664 | OTJ10: 10665 | OTK10: 10666 | OTL10: 10667 | OTM10: 10668 | OTN10: 10669 | OTO10: 10670 | OTP10: 10671 | OTQ10: 10672 | OTR10: 10673 | OTS10: 10674 | OTT10: 10675 | OTU10: 10676 | OTV10: 10677 | OTW10: 10678 | OTX10: 10679 | OTY10: 10680 | OTZ10: 10681 | OUA10: 10682 | OUB10: 10683 | OUC10: 10684 | OUD10: 10685 | OUE10: 10686 | OUF10: 10687 | OUG10: 10688 | OUH10: 10689 | OUI10: 10690 | OUJ10: =OUI10+1 -> 10691 | OUK10: 10692 | OUL10: 10693 | OUM10: 10694 | OUN10: 10695 | OUO10: 10696 | OUP10: 10697 | OUQ10: 10698 | OUR10: 10699 | OUS10: 10700 | OUT10: 10701 | OUU10: 10702 | OUV10: 10703 | OUW10: 10704 | OUX10: 10705 | OUY10: 10706 | OUZ10: 10707 | OVA10: 10708 | OVB10: 10709 | OVC10: 10710 | OVD10: 10711 | OVE10: 10712 | OVF10: 10713 | OVG10: 10714 | OVH10: 10715 | OVI10: 10716 | OVJ10: 10717 | OVK10: 10718 | OVL10: 10719 | OVM10: 10720 | OVN10: 10721 | OVO10: 10722 | OVP10: 10723 | OVQ10: 10724 | OVR10: 10725 | OVS10: 10726 | OVT10: 10727 | OVU10: 10728 | OVV10: 10729 | OVW10: 10730 | OVX10: 10731 | OVY10: 10732 | OVZ10: 10733 | OWA10: 10734 | OWB10: 10735 | OWC10: 10736 | OWD10: 10737 | OWE10: 10738 | OWF10: 10739 | OWG10: 10740 | OWH10: 10741 | OWI10: 10742 | OWJ10: 10743 | OWK10: 10744 | OWL10: 10745 | OWM10: 10746 | OWN10: 10747 | OWO10: 10748 | OWP10: 10749 | OWQ10: 10750 | OWR10: 10751 | OWS10: 10752 | OWT10: 10753 | OWU10: 10754 | OWV10: =OWU10+1 -> 10755 | OWW10: 10756 | OWX10: 10757 | OWY10: 10758 | OWZ10: 10759 | OXA10: 10760 | OXB10: 10761 | OXC10: 10762 | OXD10: 10763 | OXE10: 10764 | OXF10: 10765 | OXG10: 10766 | OXH10: 10767 | OXI10: 10768 | OXJ10: 10769 | OXK10: 10770 | OXL10: 10771 | OXM10: 10772 | OXN10: 10773 | OXO10: 10774 | OXP10: 10775 | OXQ10: 10776 | OXR10: 10777 | OXS10: 10778 | OXT10: 10779 | OXU10: 10780 | OXV10: 10781 | OXW10: 10782 | OXX10: 10783 | OXY10: 10784 | OXZ10: 10785 | OYA10: 10786 | OYB10: 10787 | OYC10: 10788 | OYD10: 10789 | OYE10: 10790 | OYF10: 10791 | OYG10: 10792 | OYH10: 10793 | OYI10: 10794 | OYJ10: 10795 | OYK10: 10796 | OYL10: 10797 | OYM10: 10798 | OYN10: 10799 | OYO10: 10800 | OYP10: 10801 | OYQ10: 10802 | OYR10: 10803 | OYS10: 10804 | OYT10: 10805 | OYU10: 10806 | OYV10: 10807 | OYW10: 10808 | OYX10: 10809 | OYY10: 10810 | OYZ10: 10811 | OZA10: 10812 | OZB10: 10813 | OZC10: 10814 | OZD10: 10815 | OZE10: 10816 | OZF10: 10817 | OZG10: 10818 | OZH10: =OZG10+1 -> 10819 | OZI10: 10820 | OZJ10: 10821 | OZK10: 10822 | OZL10: 10823 | OZM10: 10824 | OZN10: 10825 | OZO10: 10826 | OZP10: 10827 | OZQ10: 10828 | OZR10: 10829 | OZS10: 10830 | OZT10: 10831 | OZU10: 10832 | OZV10: 10833 | OZW10: 10834 | OZX10: 10835 | OZY10: 10836 | OZZ10: 10837 | PAA10: 10838 | PAB10: 10839 | PAC10: 10840 | PAD10: 10841 | PAE10: 10842 | PAF10: 10843 | PAG10: 10844 | PAH10: 10845 | PAI10: 10846 | PAJ10: 10847 | PAK10: 10848 | PAL10: 10849 | PAM10: 10850 | PAN10: 10851 | PAO10: 10852 | PAP10: 10853 | PAQ10: 10854 | PAR10: 10855 | PAS10: 10856 | PAT10: 10857 | PAU10: 10858 | PAV10: 10859 | PAW10: 10860 | PAX10: 10861 | PAY10: 10862 | PAZ10: 10863 | PBA10: 10864 | PBB10: 10865 | PBC10: 10866 | PBD10: 10867 | PBE10: 10868 | PBF10: 10869 | PBG10: 10870 | PBH10: 10871 | PBI10: 10872 | PBJ10: 10873 | PBK10: 10874 | PBL10: 10875 | PBM10: 10876 | PBN10: 10877 | PBO10: 10878 | PBP10: 10879 | PBQ10: 10880 | PBR10: 10881 | PBS10: 10882 | PBT10: =PBS10+1 -> 10883 | PBU10: 10884 | PBV10: 10885 | PBW10: 10886 | PBX10: 10887 | PBY10: 10888 | PBZ10: 10889 | PCA10: 10890 | PCB10: 10891 | PCC10: 10892 | PCD10: 10893 | PCE10: 10894 | PCF10: 10895 | PCG10: 10896 | PCH10: 10897 | PCI10: 10898 | PCJ10: 10899 | PCK10: 10900 | PCL10: 10901 | PCM10: 10902 | PCN10: 10903 | PCO10: 10904 | PCP10: 10905 | PCQ10: 10906 | PCR10: 10907 | PCS10: 10908 | PCT10: 10909 | PCU10: 10910 | PCV10: 10911 | PCW10: 10912 | PCX10: 10913 | PCY10: 10914 | PCZ10: 10915 | PDA10: 10916 | PDB10: 10917 | PDC10: 10918 | PDD10: 10919 | PDE10: 10920 | PDF10: 10921 | PDG10: 10922 | PDH10: 10923 | PDI10: 10924 | PDJ10: 10925 | PDK10: 10926 | PDL10: 10927 | PDM10: 10928 | PDN10: 10929 | PDO10: 10930 | PDP10: 10931 | PDQ10: 10932 | PDR10: 10933 | PDS10: 10934 | PDT10: 10935 | PDU10: 10936 | PDV10: 10937 | PDW10: 10938 | PDX10: 10939 | PDY10: 10940 | PDZ10: 10941 | PEA10: 10942 | PEB10: 10943 | PEC10: 10944 | PED10: 10945 | PEE10: 10946 | PEF10: =PEE10+1 -> 10947 | PEG10: 10948 | PEH10: 10949 | PEI10: 10950 | PEJ10: 10951 | PEK10: 10952 | PEL10: 10953 | PEM10: 10954 | PEN10: 10955 | PEO10: 10956 | PEP10: 10957 | PEQ10: 10958 | PER10: 10959 | PES10: 10960 | PET10: 10961 | PEU10: 10962 | PEV10: 10963 | PEW10: 10964 | PEX10: 10965 | PEY10: 10966 | PEZ10: 10967 | PFA10: 10968 | PFB10: 10969 | PFC10: 10970 | PFD10: 10971 | PFE10: 10972 | PFF10: 10973 | PFG10: 10974 | PFH10: 10975 | PFI10: 10976 | PFJ10: 10977 | PFK10: 10978 | PFL10: 10979 | PFM10: 10980 | PFN10: 10981 | PFO10: 10982 | PFP10: 10983 | PFQ10: 10984 | PFR10: 10985 | PFS10: 10986 | PFT10: 10987 | PFU10: 10988 | PFV10: 10989 | PFW10: 10990 | PFX10: 10991 | PFY10: 10992 | PFZ10: 10993 | PGA10: 10994 | PGB10: 10995 | PGC10: 10996 | PGD10: 10997 | PGE10: 10998 | PGF10: 10999 | PGG10: 11000 | PGH10: 11001 | PGI10: 11002 | PGJ10: 11003 | PGK10: 11004 | PGL10: 11005 | PGM10: 11006 | PGN10: 11007 | PGO10: 11008 | PGP10: 11009 | PGQ10: 11010 | PGR10: =PGQ10+1 -> 11011 | PGS10: 11012 | PGT10: 11013 | PGU10: 11014 | PGV10: 11015 | PGW10: 11016 | PGX10: 11017 | PGY10: 11018 | PGZ10: 11019 | PHA10: 11020 | PHB10: 11021 | PHC10: 11022 | PHD10: 11023 | PHE10: 11024 | PHF10: 11025 | PHG10: 11026 | PHH10: 11027 | PHI10: 11028 | PHJ10: 11029 | PHK10: 11030 | PHL10: 11031 | PHM10: 11032 | PHN10: 11033 | PHO10: 11034 | PHP10: 11035 | PHQ10: 11036 | PHR10: 11037 | PHS10: 11038 | PHT10: 11039 | PHU10: 11040 | PHV10: 11041 | PHW10: 11042 | PHX10: 11043 | PHY10: 11044 | PHZ10: 11045 | PIA10: 11046 | PIB10: 11047 | PIC10: 11048 | PID10: 11049 | PIE10: 11050 | PIF10: 11051 | PIG10: 11052 | PIH10: 11053 | PII10: 11054 | PIJ10: 11055 | PIK10: 11056 | PIL10: 11057 | PIM10: 11058 | PIN10: 11059 | PIO10: 11060 | PIP10: 11061 | PIQ10: 11062 | PIR10: 11063 | PIS10: 11064 | PIT10: 11065 | PIU10: 11066 | PIV10: 11067 | PIW10: 11068 | PIX10: 11069 | PIY10: 11070 | PIZ10: 11071 | PJA10: 11072 | PJB10: 11073 | PJC10: 11074 | PJD10: =PJC10+1 -> 11075 | PJE10: 11076 | PJF10: 11077 | PJG10: 11078 | PJH10: 11079 | PJI10: 11080 | PJJ10: 11081 | PJK10: 11082 | PJL10: 11083 | PJM10: 11084 | PJN10: 11085 | PJO10: 11086 | PJP10: 11087 | PJQ10: 11088 | PJR10: 11089 | PJS10: 11090 | PJT10: 11091 | PJU10: 11092 | PJV10: 11093 | PJW10: 11094 | PJX10: 11095 | PJY10: 11096 | PJZ10: 11097 | PKA10: 11098 | PKB10: 11099 | PKC10: 11100 | PKD10: 11101 | PKE10: 11102 | PKF10: 11103 | PKG10: 11104 | PKH10: 11105 | PKI10: 11106 | PKJ10: 11107 | PKK10: 11108 | PKL10: 11109 | PKM10: 11110 | PKN10: 11111 | PKO10: 11112 | PKP10: 11113 | PKQ10: 11114 | PKR10: 11115 | PKS10: 11116 | PKT10: 11117 | PKU10: 11118 | PKV10: 11119 | PKW10: 11120 | PKX10: 11121 | PKY10: 11122 | PKZ10: 11123 | PLA10: 11124 | PLB10: 11125 | PLC10: 11126 | PLD10: 11127 | PLE10: 11128 | PLF10: 11129 | PLG10: 11130 | PLH10: 11131 | PLI10: 11132 | PLJ10: 11133 | PLK10: 11134 | PLL10: 11135 | PLM10: 11136 | PLN10: 11137 | PLO10: 11138 | PLP10: =PLO10+1 -> 11139 | PLQ10: 11140 | PLR10: 11141 | PLS10: 11142 | PLT10: 11143 | PLU10: 11144 | PLV10: 11145 | PLW10: 11146 | PLX10: 11147 | PLY10: 11148 | PLZ10: 11149 | PMA10: 11150 | PMB10: 11151 | PMC10: 11152 | PMD10: 11153 | PME10: 11154 | PMF10: 11155 | PMG10: 11156 | PMH10: 11157 | PMI10: 11158 | PMJ10: 11159 | PMK10: 11160 | PML10: 11161 | PMM10: 11162 | PMN10: 11163 | PMO10: 11164 | PMP10: 11165 | PMQ10: 11166 | PMR10: 11167 | PMS10: 11168 | PMT10: 11169 | PMU10: 11170 | PMV10: 11171 | PMW10: 11172 | PMX10: 11173 | PMY10: 11174 | PMZ10: 11175 | PNA10: 11176 | PNB10: 11177 | PNC10: 11178 | PND10: 11179 | PNE10: 11180 | PNF10: 11181 | PNG10: 11182 | PNH10: 11183 | PNI10: 11184 | PNJ10: 11185 | PNK10: 11186 | PNL10: 11187 | PNM10: 11188 | PNN10: 11189 | PNO10: 11190 | PNP10: 11191 | PNQ10: 11192 | PNR10: 11193 | PNS10: 11194 | PNT10: 11195 | PNU10: 11196 | PNV10: 11197 | PNW10: 11198 | PNX10: 11199 | PNY10: 11200 | PNZ10: 11201 | POA10: 11202 | POB10: =POA10+1 -> 11203 | POC10: 11204 | POD10: 11205 | POE10: 11206 | POF10: 11207 | POG10: 11208 | POH10: 11209 | POI10: 11210 | POJ10: 11211 | POK10: 11212 | POL10: 11213 | POM10: 11214 | PON10: 11215 | POO10: 11216 | POP10: 11217 | POQ10: 11218 | POR10: 11219 | POS10: 11220 | POT10: 11221 | POU10: 11222 | POV10: 11223 | POW10: 11224 | POX10: 11225 | POY10: 11226 | POZ10: 11227 | PPA10: 11228 | PPB10: 11229 | PPC10: 11230 | PPD10: 11231 | PPE10: 11232 | PPF10: 11233 | PPG10: 11234 | PPH10: 11235 | PPI10: 11236 | PPJ10: 11237 | PPK10: 11238 | PPL10: 11239 | PPM10: 11240 | PPN10: 11241 | PPO10: 11242 | PPP10: 11243 | PPQ10: 11244 | PPR10: 11245 | PPS10: 11246 | PPT10: 11247 | PPU10: 11248 | PPV10: 11249 | PPW10: 11250 | PPX10: 11251 | PPY10: 11252 | PPZ10: 11253 | PQA10: 11254 | PQB10: 11255 | PQC10: 11256 | PQD10: 11257 | PQE10: 11258 | PQF10: 11259 | PQG10: 11260 | PQH10: 11261 | PQI10: 11262 | PQJ10: 11263 | PQK10: 11264 | PQL10: 11265 | PQM10: 11266 | PQN10: =PQM10+1 -> 11267 | PQO10: 11268 | PQP10: 11269 | PQQ10: 11270 | PQR10: 11271 | PQS10: 11272 | PQT10: 11273 | PQU10: 11274 | PQV10: 11275 | PQW10: 11276 | PQX10: 11277 | PQY10: 11278 | PQZ10: 11279 | PRA10: 11280 | PRB10: 11281 | PRC10: 11282 | PRD10: 11283 | PRE10: 11284 | PRF10: 11285 | PRG10: 11286 | PRH10: 11287 | PRI10: 11288 | PRJ10: 11289 | PRK10: 11290 | PRL10: 11291 | PRM10: 11292 | PRN10: 11293 | PRO10: 11294 | PRP10: 11295 | PRQ10: 11296 | PRR10: 11297 | PRS10: 11298 | PRT10: 11299 | PRU10: 11300 | PRV10: 11301 | PRW10: 11302 | PRX10: 11303 | PRY10: 11304 | PRZ10: 11305 | PSA10: 11306 | PSB10: 11307 | PSC10: 11308 | PSD10: 11309 | PSE10: 11310 | PSF10: 11311 | PSG10: 11312 | PSH10: 11313 | PSI10: 11314 | PSJ10: 11315 | PSK10: 11316 | PSL10: 11317 | PSM10: 11318 | PSN10: 11319 | PSO10: 11320 | PSP10: 11321 | PSQ10: 11322 | PSR10: 11323 | PSS10: 11324 | PST10: 11325 | PSU10: 11326 | PSV10: 11327 | PSW10: 11328 | PSX10: 11329 | PSY10: 11330 | PSZ10: =PSY10+1 -> 11331 | PTA10: 11332 | PTB10: 11333 | PTC10: 11334 | PTD10: 11335 | PTE10: 11336 | PTF10: 11337 | PTG10: 11338 | PTH10: 11339 | PTI10: 11340 | PTJ10: 11341 | PTK10: 11342 | PTL10: 11343 | PTM10: 11344 | PTN10: 11345 | PTO10: 11346 | PTP10: 11347 | PTQ10: 11348 | PTR10: 11349 | PTS10: 11350 | PTT10: 11351 | PTU10: 11352 | PTV10: 11353 | PTW10: 11354 | PTX10: 11355 | PTY10: 11356 | PTZ10: 11357 | PUA10: 11358 | PUB10: 11359 | PUC10: 11360 | PUD10: 11361 | PUE10: 11362 | PUF10: 11363 | PUG10: 11364 | PUH10: 11365 | PUI10: 11366 | PUJ10: 11367 | PUK10: 11368 | PUL10: 11369 | PUM10: 11370 | PUN10: 11371 | PUO10: 11372 | PUP10: 11373 | PUQ10: 11374 | PUR10: 11375 | PUS10: 11376 | PUT10: 11377 | PUU10: 11378 | PUV10: 11379 | PUW10: 11380 | PUX10: 11381 | PUY10: 11382 | PUZ10: 11383 | PVA10: 11384 | PVB10: 11385 | PVC10: 11386 | PVD10: 11387 | PVE10: 11388 | PVF10: 11389 | PVG10: 11390 | PVH10: 11391 | PVI10: 11392 | PVJ10: 11393 | PVK10: 11394 | PVL10: =PVK10+1 -> 11395 | PVM10: 11396 | PVN10: 11397 | PVO10: 11398 | PVP10: 11399 | PVQ10: 11400 | PVR10: 11401 | PVS10: 11402 | PVT10: 11403 | PVU10: 11404 | PVV10: 11405 | PVW10: 11406 | PVX10: 11407 | PVY10: 11408 | PVZ10: 11409 | PWA10: 11410 | PWB10: 11411 | PWC10: 11412 | PWD10: 11413 | PWE10: 11414 | PWF10: 11415 | PWG10: 11416 | PWH10: 11417 | PWI10: 11418 | PWJ10: 11419 | PWK10: 11420 | PWL10: 11421 | PWM10: 11422 | PWN10: 11423 | PWO10: 11424 | PWP10: 11425 | PWQ10: 11426 | PWR10: 11427 | PWS10: 11428 | PWT10: 11429 | PWU10: 11430 | PWV10: 11431 | PWW10: 11432 | PWX10: 11433 | PWY10: 11434 | PWZ10: 11435 | PXA10: 11436 | PXB10: 11437 | PXC10: 11438 | PXD10: 11439 | PXE10: 11440 | PXF10: 11441 | PXG10: 11442 | PXH10: 11443 | PXI10: 11444 | PXJ10: 11445 | PXK10: 11446 | PXL10: 11447 | PXM10: 11448 | PXN10: 11449 | PXO10: 11450 | PXP10: 11451 | PXQ10: 11452 | PXR10: 11453 | PXS10: 11454 | PXT10: 11455 | PXU10: 11456 | PXV10: 11457 | PXW10: 11458 | PXX10: =PXW10+1 -> 11459 | PXY10: 11460 | PXZ10: 11461 | PYA10: 11462 | PYB10: 11463 | PYC10: 11464 | PYD10: 11465 | PYE10: 11466 | PYF10: 11467 | PYG10: 11468 | PYH10: 11469 | PYI10: 11470 | PYJ10: 11471 | PYK10: 11472 | PYL10: 11473 | PYM10: 11474 | PYN10: 11475 | PYO10: 11476 | PYP10: 11477 | PYQ10: 11478 | PYR10: 11479 | PYS10: 11480 | PYT10: 11481 | PYU10: 11482 | PYV10: 11483 | PYW10: 11484 | PYX10: 11485 | PYY10: 11486 | PYZ10: 11487 | PZA10: 11488 | PZB10: 11489 | PZC10: 11490 | PZD10: 11491 | PZE10: 11492 | PZF10: 11493 | PZG10: 11494 | PZH10: 11495 | PZI10: 11496 | PZJ10: 11497 | PZK10: 11498 | PZL10: 11499 | PZM10: 11500 | PZN10: 11501 | PZO10: 11502 | PZP10: 11503 | PZQ10: 11504 | PZR10: 11505 | PZS10: 11506 | PZT10: 11507 | PZU10: 11508 | PZV10: 11509 | PZW10: 11510 | PZX10: 11511 | PZY10: 11512 | PZZ10: 11513 | QAA10: 11514 | QAB10: 11515 | QAC10: 11516 | QAD10: 11517 | QAE10: 11518 | QAF10: 11519 | QAG10: 11520 | QAH10: 11521 | QAI10: 11522 | QAJ10: =QAI10+1 -> 11523 | QAK10: 11524 | QAL10: 11525 | QAM10: 11526 | QAN10: 11527 | QAO10: 11528 | QAP10: 11529 | QAQ10: 11530 | QAR10: 11531 | QAS10: 11532 | QAT10: 11533 | QAU10: 11534 | QAV10: 11535 | QAW10: 11536 | QAX10: 11537 | QAY10: 11538 | QAZ10: 11539 | QBA10: 11540 | QBB10: 11541 | QBC10: 11542 | QBD10: 11543 | QBE10: 11544 | QBF10: 11545 | QBG10: 11546 | QBH10: 11547 | QBI10: 11548 | QBJ10: 11549 | QBK10: 11550 | QBL10: 11551 | QBM10: 11552 | QBN10: 11553 | QBO10: 11554 | QBP10: 11555 | QBQ10: 11556 | QBR10: 11557 | QBS10: 11558 | QBT10: 11559 | QBU10: 11560 | QBV10: 11561 | QBW10: 11562 | QBX10: 11563 | QBY10: 11564 | QBZ10: 11565 | QCA10: 11566 | QCB10: 11567 | QCC10: 11568 | QCD10: 11569 | QCE10: 11570 | QCF10: 11571 | QCG10: 11572 | QCH10: 11573 | QCI10: 11574 | QCJ10: 11575 | QCK10: 11576 | QCL10: 11577 | QCM10: 11578 | QCN10: 11579 | QCO10: 11580 | QCP10: 11581 | QCQ10: 11582 | QCR10: 11583 | QCS10: 11584 | QCT10: 11585 | QCU10: 11586 | QCV10: =QCU10+1 -> 11587 | QCW10: 11588 | QCX10: 11589 | QCY10: 11590 | QCZ10: 11591 | QDA10: 11592 | QDB10: 11593 | QDC10: 11594 | QDD10: 11595 | QDE10: 11596 | QDF10: 11597 | QDG10: 11598 | QDH10: 11599 | QDI10: 11600 | QDJ10: 11601 | QDK10: 11602 | QDL10: 11603 | QDM10: 11604 | QDN10: 11605 | QDO10: 11606 | QDP10: 11607 | QDQ10: 11608 | QDR10: 11609 | QDS10: 11610 | QDT10: 11611 | QDU10: 11612 | QDV10: 11613 | QDW10: 11614 | QDX10: 11615 | QDY10: 11616 | QDZ10: 11617 | QEA10: 11618 | QEB10: 11619 | QEC10: 11620 | QED10: 11621 | QEE10: 11622 | QEF10: 11623 | QEG10: 11624 | QEH10: 11625 | QEI10: 11626 | QEJ10: 11627 | QEK10: 11628 | QEL10: 11629 | QEM10: 11630 | QEN10: 11631 | QEO10: 11632 | QEP10: 11633 | QEQ10: 11634 | QER10: 11635 | QES10: 11636 | QET10: 11637 | QEU10: 11638 | QEV10: 11639 | QEW10: 11640 | QEX10: 11641 | QEY10: 11642 | QEZ10: 11643 | QFA10: 11644 | QFB10: 11645 | QFC10: 11646 | QFD10: 11647 | QFE10: 11648 | QFF10: 11649 | QFG10: 11650 | QFH10: =QFG10+1 -> 11651 | QFI10: 11652 | QFJ10: 11653 | QFK10: 11654 | QFL10: 11655 | QFM10: 11656 | QFN10: 11657 | QFO10: 11658 | QFP10: 11659 | QFQ10: 11660 | QFR10: 11661 | QFS10: 11662 | QFT10: 11663 | QFU10: 11664 | QFV10: 11665 | QFW10: 11666 | QFX10: 11667 | QFY10: 11668 | QFZ10: 11669 | QGA10: 11670 | QGB10: 11671 | QGC10: 11672 | QGD10: 11673 | QGE10: 11674 | QGF10: 11675 | QGG10: 11676 | QGH10: 11677 | QGI10: 11678 | QGJ10: 11679 | QGK10: 11680 | QGL10: 11681 | QGM10: 11682 | QGN10: 11683 | QGO10: 11684 | QGP10: 11685 | QGQ10: 11686 | QGR10: 11687 | QGS10: 11688 | QGT10: 11689 | QGU10: 11690 | QGV10: 11691 | QGW10: 11692 | QGX10: 11693 | QGY10: 11694 | QGZ10: 11695 | QHA10: 11696 | QHB10: 11697 | QHC10: 11698 | QHD10: 11699 | QHE10: 11700 | QHF10: 11701 | QHG10: 11702 | QHH10: 11703 | QHI10: 11704 | QHJ10: 11705 | QHK10: 11706 | QHL10: 11707 | QHM10: 11708 | QHN10: 11709 | QHO10: 11710 | QHP10: 11711 | QHQ10: 11712 | QHR10: 11713 | QHS10: 11714 | QHT10: =QHS10+1 -> 11715 | QHU10: 11716 | QHV10: 11717 | QHW10: 11718 | QHX10: 11719 | QHY10: 11720 | QHZ10: 11721 | QIA10: 11722 | QIB10: 11723 | QIC10: 11724 | QID10: 11725 | QIE10: 11726 | QIF10: 11727 | QIG10: 11728 | QIH10: 11729 | QII10: 11730 | QIJ10: 11731 | QIK10: 11732 | QIL10: 11733 | QIM10: 11734 | QIN10: 11735 | QIO10: 11736 | QIP10: 11737 | QIQ10: 11738 | QIR10: 11739 | QIS10: 11740 | QIT10: 11741 | QIU10: 11742 | QIV10: 11743 | QIW10: 11744 | QIX10: 11745 | QIY10: 11746 | QIZ10: 11747 | QJA10: 11748 | QJB10: 11749 | QJC10: 11750 | QJD10: 11751 | QJE10: 11752 | QJF10: 11753 | QJG10: 11754 | QJH10: 11755 | QJI10: 11756 | QJJ10: 11757 | QJK10: 11758 | QJL10: 11759 | QJM10: 11760 | QJN10: 11761 | QJO10: 11762 | QJP10: 11763 | QJQ10: 11764 | QJR10: 11765 | QJS10: 11766 | QJT10: 11767 | QJU10: 11768 | QJV10: 11769 | QJW10: 11770 | QJX10: 11771 | QJY10: 11772 | QJZ10: 11773 | QKA10: 11774 | QKB10: 11775 | QKC10: 11776 | QKD10: 11777 | QKE10: 11778 | QKF10: =QKE10+1 -> 11779 | QKG10: 11780 | QKH10: 11781 | QKI10: 11782 | QKJ10: 11783 | QKK10: 11784 | QKL10: 11785 | QKM10: 11786 | QKN10: 11787 | QKO10: 11788 | QKP10: 11789 | QKQ10: 11790 | QKR10: 11791 | QKS10: 11792 | QKT10: 11793 | QKU10: 11794 | QKV10: 11795 | QKW10: 11796 | QKX10: 11797 | QKY10: 11798 | QKZ10: 11799 | QLA10: 11800 | QLB10: 11801 | QLC10: 11802 | QLD10: 11803 | QLE10: 11804 | QLF10: 11805 | QLG10: 11806 | QLH10: 11807 | QLI10: 11808 | QLJ10: 11809 | QLK10: 11810 | QLL10: 11811 | QLM10: 11812 | QLN10: 11813 | QLO10: 11814 | QLP10: 11815 | QLQ10: 11816 | QLR10: 11817 | QLS10: 11818 | QLT10: 11819 | QLU10: 11820 | QLV10: 11821 | QLW10: 11822 | QLX10: 11823 | QLY10: 11824 | QLZ10: 11825 | QMA10: 11826 | QMB10: 11827 | QMC10: 11828 | QMD10: 11829 | QME10: 11830 | QMF10: 11831 | QMG10: 11832 | QMH10: 11833 | QMI10: 11834 | QMJ10: 11835 | QMK10: 11836 | QML10: 11837 | QMM10: 11838 | QMN10: 11839 | QMO10: 11840 | QMP10: 11841 | QMQ10: 11842 | QMR10: =QMQ10+1 -> 11843 | QMS10: 11844 | QMT10: 11845 | QMU10: 11846 | QMV10: 11847 | QMW10: 11848 | QMX10: 11849 | QMY10: 11850 | QMZ10: 11851 | QNA10: 11852 | QNB10: 11853 | QNC10: 11854 | QND10: 11855 | QNE10: 11856 | QNF10: 11857 | QNG10: 11858 | QNH10: 11859 | QNI10: 11860 | QNJ10: 11861 | QNK10: 11862 | QNL10: 11863 | QNM10: 11864 | QNN10: 11865 | QNO10: 11866 | QNP10: 11867 | QNQ10: 11868 | QNR10: 11869 | QNS10: 11870 | QNT10: 11871 | QNU10: 11872 | QNV10: 11873 | QNW10: 11874 | QNX10: 11875 | QNY10: 11876 | QNZ10: 11877 | QOA10: 11878 | QOB10: 11879 | QOC10: 11880 | QOD10: 11881 | QOE10: 11882 | QOF10: 11883 | QOG10: 11884 | QOH10: 11885 | QOI10: 11886 | QOJ10: 11887 | QOK10: 11888 | QOL10: 11889 | QOM10: 11890 | QON10: 11891 | QOO10: 11892 | QOP10: 11893 | QOQ10: 11894 | QOR10: 11895 | QOS10: 11896 | QOT10: 11897 | QOU10: 11898 | QOV10: 11899 | QOW10: 11900 | QOX10: 11901 | QOY10: 11902 | QOZ10: 11903 | QPA10: 11904 | QPB10: 11905 | QPC10: 11906 | QPD10: =QPC10+1 -> 11907 | QPE10: 11908 | QPF10: 11909 | QPG10: 11910 | QPH10: 11911 | QPI10: 11912 | QPJ10: 11913 | QPK10: 11914 | QPL10: 11915 | QPM10: 11916 | QPN10: 11917 | QPO10: 11918 | QPP10: 11919 | QPQ10: 11920 | QPR10: 11921 | QPS10: 11922 | QPT10: 11923 | QPU10: 11924 | QPV10: 11925 | QPW10: 11926 | QPX10: 11927 | QPY10: 11928 | QPZ10: 11929 | QQA10: 11930 | QQB10: 11931 | QQC10: 11932 | QQD10: 11933 | QQE10: 11934 | QQF10: 11935 | QQG10: 11936 | QQH10: 11937 | QQI10: 11938 | QQJ10: 11939 | QQK10: 11940 | QQL10: 11941 | QQM10: 11942 | QQN10: 11943 | QQO10: 11944 | QQP10: 11945 | QQQ10: 11946 | QQR10: 11947 | QQS10: 11948 | QQT10: 11949 | QQU10: 11950 | QQV10: 11951 | QQW10: 11952 | QQX10: 11953 | QQY10: 11954 | QQZ10: 11955 | QRA10: 11956 | QRB10: 11957 | QRC10: 11958 | QRD10: 11959 | QRE10: 11960 | QRF10: 11961 | QRG10: 11962 | QRH10: 11963 | QRI10: 11964 | QRJ10: 11965 | QRK10: 11966 | QRL10: 11967 | QRM10: 11968 | QRN10: 11969 | QRO10: 11970 | QRP10: =QRO10+1 -> 11971 | QRQ10: 11972 | QRR10: 11973 | QRS10: 11974 | QRT10: 11975 | QRU10: 11976 | QRV10: 11977 | QRW10: 11978 | QRX10: 11979 | QRY10: 11980 | QRZ10: 11981 | QSA10: 11982 | QSB10: 11983 | QSC10: 11984 | QSD10: 11985 | QSE10: 11986 | QSF10: 11987 | QSG10: 11988 | QSH10: 11989 | QSI10: 11990 | QSJ10: 11991 | QSK10: 11992 | QSL10: 11993 | QSM10: 11994 | QSN10: 11995 | QSO10: 11996 | QSP10: 11997 | QSQ10: 11998 | QSR10: 11999 | QSS10: 12000 | QST10: 12001 | QSU10: 12002 | QSV10: 12003 | QSW10: 12004 | QSX10: 12005 | QSY10: 12006 | QSZ10: 12007 | QTA10: 12008 | QTB10: 12009 | QTC10: 12010 | QTD10: 12011 | QTE10: 12012 | QTF10: 12013 | QTG10: 12014 | QTH10: 12015 | QTI10: 12016 | QTJ10: 12017 | QTK10: 12018 | QTL10: 12019 | QTM10: 12020 | QTN10: 12021 | QTO10: 12022 | QTP10: 12023 | QTQ10: 12024 | QTR10: 12025 | QTS10: 12026 | QTT10: 12027 | QTU10: 12028 | QTV10: 12029 | QTW10: 12030 | QTX10: 12031 | QTY10: 12032 | QTZ10: 12033 | QUA10: 12034 | QUB10: =QUA10+1 -> 12035 | QUC10: 12036 | QUD10: 12037 | QUE10: 12038 | QUF10: 12039 | QUG10: 12040 | QUH10: 12041 | QUI10: 12042 | QUJ10: 12043 | QUK10: 12044 | QUL10: 12045 | QUM10: 12046 | QUN10: 12047 | QUO10: 12048 | QUP10: 12049 | QUQ10: 12050 | QUR10: 12051 | QUS10: 12052 | QUT10: 12053 | QUU10: 12054 | QUV10: 12055 | QUW10: 12056 | QUX10: 12057 | QUY10: 12058 | QUZ10: 12059 | QVA10: 12060 | QVB10: 12061 | QVC10: 12062 | QVD10: 12063 | QVE10: 12064 | QVF10: 12065 | QVG10: 12066 | QVH10: 12067 | QVI10: 12068 | QVJ10: 12069 | QVK10: 12070 | QVL10: 12071 | QVM10: 12072 | QVN10: 12073 | QVO10: 12074 | QVP10: 12075 | QVQ10: 12076 | QVR10: 12077 | QVS10: 12078 | QVT10: 12079 | QVU10: 12080 | QVV10: 12081 | QVW10: 12082 | QVX10: 12083 | QVY10: 12084 | QVZ10: 12085 | QWA10: 12086 | QWB10: 12087 | QWC10: 12088 | QWD10: 12089 | QWE10: 12090 | QWF10: 12091 | QWG10: 12092 | QWH10: 12093 | QWI10: 12094 | QWJ10: 12095 | QWK10: 12096 | QWL10: 12097 | QWM10: 12098 | QWN10: =QWM10+1 -> 12099 | QWO10: 12100 | QWP10: 12101 | QWQ10: 12102 | QWR10: 12103 | QWS10: 12104 | QWT10: 12105 | QWU10: 12106 | QWV10: 12107 | QWW10: 12108 | QWX10: 12109 | QWY10: 12110 | QWZ10: 12111 | QXA10: 12112 | QXB10: 12113 | QXC10: 12114 | QXD10: 12115 | QXE10: 12116 | QXF10: 12117 | QXG10: 12118 | QXH10: 12119 | QXI10: 12120 | QXJ10: 12121 | QXK10: 12122 | QXL10: 12123 | QXM10: 12124 | QXN10: 12125 | QXO10: 12126 | QXP10: 12127 | QXQ10: 12128 | QXR10: 12129 | QXS10: 12130 | QXT10: 12131 | QXU10: 12132 | QXV10: 12133 | QXW10: 12134 | QXX10: 12135 | QXY10: 12136 | QXZ10: 12137 | QYA10: 12138 | QYB10: 12139 | QYC10: 12140 | QYD10: 12141 | QYE10: 12142 | QYF10: 12143 | QYG10: 12144 | QYH10: 12145 | QYI10: 12146 | QYJ10: 12147 | QYK10: 12148 | QYL10: 12149 | QYM10: 12150 | QYN10: 12151 | QYO10: 12152 | QYP10: 12153 | QYQ10: 12154 | QYR10: 12155 | QYS10: 12156 | QYT10: 12157 | QYU10: 12158 | QYV10: 12159 | QYW10: 12160 | QYX10: 12161 | QYY10: 12162 | QYZ10: =QYY10+1 -> 12163 | QZA10: 12164 | QZB10: 12165 | QZC10: 12166 | QZD10: 12167 | QZE10: 12168 | QZF10: 12169 | QZG10: 12170 | QZH10: 12171 | QZI10: 12172 | QZJ10: 12173 | QZK10: 12174 | QZL10: 12175 | QZM10: 12176 | QZN10: 12177 | QZO10: 12178 | QZP10: 12179 | QZQ10: 12180 | QZR10: 12181 | QZS10: 12182 | QZT10: 12183 | QZU10: 12184 | QZV10: 12185 | QZW10: 12186 | QZX10: 12187 | QZY10: 12188 | QZZ10: 12189 | RAA10: 12190 | RAB10: 12191 | RAC10: 12192 | RAD10: 12193 | RAE10: 12194 | RAF10: 12195 | RAG10: 12196 | RAH10: 12197 | RAI10: 12198 | RAJ10: 12199 | RAK10: 12200 | RAL10: 12201 | RAM10: 12202 | RAN10: 12203 | RAO10: 12204 | RAP10: 12205 | RAQ10: 12206 | RAR10: 12207 | RAS10: 12208 | RAT10: 12209 | RAU10: 12210 | RAV10: 12211 | RAW10: 12212 | RAX10: 12213 | RAY10: 12214 | RAZ10: 12215 | RBA10: 12216 | RBB10: 12217 | RBC10: 12218 | RBD10: 12219 | RBE10: 12220 | RBF10: 12221 | RBG10: 12222 | RBH10: 12223 | RBI10: 12224 | RBJ10: 12225 | RBK10: 12226 | RBL10: =RBK10+1 -> 12227 | RBM10: 12228 | RBN10: 12229 | RBO10: 12230 | RBP10: 12231 | RBQ10: 12232 | RBR10: 12233 | RBS10: 12234 | RBT10: 12235 | RBU10: 12236 | RBV10: 12237 | RBW10: 12238 | RBX10: 12239 | RBY10: 12240 | RBZ10: 12241 | RCA10: 12242 | RCB10: 12243 | RCC10: 12244 | RCD10: 12245 | RCE10: 12246 | RCF10: 12247 | RCG10: 12248 | RCH10: 12249 | RCI10: 12250 | RCJ10: 12251 | RCK10: 12252 | RCL10: 12253 | RCM10: 12254 | RCN10: 12255 | RCO10: 12256 | RCP10: 12257 | RCQ10: 12258 | RCR10: 12259 | RCS10: 12260 | RCT10: 12261 | RCU10: 12262 | RCV10: 12263 | RCW10: 12264 | RCX10: 12265 | RCY10: 12266 | RCZ10: 12267 | RDA10: 12268 | RDB10: 12269 | RDC10: 12270 | RDD10: 12271 | RDE10: 12272 | RDF10: 12273 | RDG10: 12274 | RDH10: 12275 | RDI10: 12276 | RDJ10: 12277 | RDK10: 12278 | RDL10: 12279 | RDM10: 12280 | RDN10: 12281 | RDO10: 12282 | RDP10: 12283 | RDQ10: 12284 | RDR10: 12285 | RDS10: 12286 | RDT10: 12287 | RDU10: 12288 | RDV10: 12289 | RDW10: 12290 | RDX10: =RDW10+1 -> 12291 | RDY10: 12292 | RDZ10: 12293 | REA10: 12294 | REB10: 12295 | REC10: 12296 | RED10: 12297 | REE10: 12298 | REF10: 12299 | REG10: 12300 | REH10: 12301 | REI10: 12302 | REJ10: 12303 | REK10: 12304 | REL10: 12305 | REM10: 12306 | REN10: 12307 | REO10: 12308 | REP10: 12309 | REQ10: 12310 | RER10: 12311 | RES10: 12312 | RET10: 12313 | REU10: 12314 | REV10: 12315 | REW10: 12316 | REX10: 12317 | REY10: 12318 | REZ10: 12319 | RFA10: 12320 | RFB10: 12321 | RFC10: 12322 | RFD10: 12323 | RFE10: 12324 | RFF10: 12325 | RFG10: 12326 | RFH10: 12327 | RFI10: 12328 | RFJ10: 12329 | RFK10: 12330 | RFL10: 12331 | RFM10: 12332 | RFN10: 12333 | RFO10: 12334 | RFP10: 12335 | RFQ10: 12336 | RFR10: 12337 | RFS10: 12338 | RFT10: 12339 | RFU10: 12340 | RFV10: 12341 | RFW10: 12342 | RFX10: 12343 | RFY10: 12344 | RFZ10: 12345 | RGA10: 12346 | RGB10: 12347 | RGC10: 12348 | RGD10: 12349 | RGE10: 12350 | RGF10: 12351 | RGG10: 12352 | RGH10: 12353 | RGI10: 12354 | RGJ10: =RGI10+1 -> 12355 | RGK10: 12356 | RGL10: 12357 | RGM10: 12358 | RGN10: 12359 | RGO10: 12360 | RGP10: 12361 | RGQ10: 12362 | RGR10: 12363 | RGS10: 12364 | RGT10: 12365 | RGU10: 12366 | RGV10: 12367 | RGW10: 12368 | RGX10: 12369 | RGY10: 12370 | RGZ10: 12371 | RHA10: 12372 | RHB10: 12373 | RHC10: 12374 | RHD10: 12375 | RHE10: 12376 | RHF10: 12377 | RHG10: 12378 | RHH10: 12379 | RHI10: 12380 | RHJ10: 12381 | RHK10: 12382 | RHL10: 12383 | RHM10: 12384 | RHN10: 12385 | RHO10: 12386 | RHP10: 12387 | RHQ10: 12388 | RHR10: 12389 | RHS10: 12390 | RHT10: 12391 | RHU10: 12392 | RHV10: 12393 | RHW10: 12394 | RHX10: 12395 | RHY10: 12396 | RHZ10: 12397 | RIA10: 12398 | RIB10: 12399 | RIC10: 12400 | RID10: 12401 | RIE10: 12402 | RIF10: 12403 | RIG10: 12404 | RIH10: 12405 | RII10: 12406 | RIJ10: 12407 | RIK10: 12408 | RIL10: 12409 | RIM10: 12410 | RIN10: 12411 | RIO10: 12412 | RIP10: 12413 | RIQ10: 12414 | RIR10: 12415 | RIS10: 12416 | RIT10: 12417 | RIU10: 12418 | RIV10: =RIU10+1 -> 12419 | RIW10: 12420 | RIX10: 12421 | RIY10: 12422 | RIZ10: 12423 | RJA10: 12424 | RJB10: 12425 | RJC10: 12426 | RJD10: 12427 | RJE10: 12428 | RJF10: 12429 | RJG10: 12430 | RJH10: 12431 | RJI10: 12432 | RJJ10: 12433 | RJK10: 12434 | RJL10: 12435 | RJM10: 12436 | RJN10: 12437 | RJO10: 12438 | RJP10: 12439 | RJQ10: 12440 | RJR10: 12441 | RJS10: 12442 | RJT10: 12443 | RJU10: 12444 | RJV10: 12445 | RJW10: 12446 | RJX10: 12447 | RJY10: 12448 | RJZ10: 12449 | RKA10: 12450 | RKB10: 12451 | RKC10: 12452 | RKD10: 12453 | RKE10: 12454 | RKF10: 12455 | RKG10: 12456 | RKH10: 12457 | RKI10: 12458 | RKJ10: 12459 | RKK10: 12460 | RKL10: 12461 | RKM10: 12462 | RKN10: 12463 | RKO10: 12464 | RKP10: 12465 | RKQ10: 12466 | RKR10: 12467 | RKS10: 12468 | RKT10: 12469 | RKU10: 12470 | RKV10: 12471 | RKW10: 12472 | RKX10: 12473 | RKY10: 12474 | RKZ10: 12475 | RLA10: 12476 | RLB10: 12477 | RLC10: 12478 | RLD10: 12479 | RLE10: 12480 | RLF10: 12481 | RLG10: 12482 | RLH10: =RLG10+1 -> 12483 | RLI10: 12484 | RLJ10: 12485 | RLK10: 12486 | RLL10: 12487 | RLM10: 12488 | RLN10: 12489 | RLO10: 12490 | RLP10: 12491 | RLQ10: 12492 | RLR10: 12493 | RLS10: 12494 | RLT10: 12495 | RLU10: 12496 | RLV10: 12497 | RLW10: 12498 | RLX10: 12499 | RLY10: 12500 | RLZ10: 12501 | RMA10: 12502 | RMB10: 12503 | RMC10: 12504 | RMD10: 12505 | RME10: 12506 | RMF10: 12507 | RMG10: 12508 | RMH10: 12509 | RMI10: 12510 | RMJ10: 12511 | RMK10: 12512 | RML10: 12513 | RMM10: 12514 | RMN10: 12515 | RMO10: 12516 | RMP10: 12517 | RMQ10: 12518 | RMR10: 12519 | RMS10: 12520 | RMT10: 12521 | RMU10: 12522 | RMV10: 12523 | RMW10: 12524 | RMX10: 12525 | RMY10: 12526 | RMZ10: 12527 | RNA10: 12528 | RNB10: 12529 | RNC10: 12530 | RND10: 12531 | RNE10: 12532 | RNF10: 12533 | RNG10: 12534 | RNH10: 12535 | RNI10: 12536 | RNJ10: 12537 | RNK10: 12538 | RNL10: 12539 | RNM10: 12540 | RNN10: 12541 | RNO10: 12542 | RNP10: 12543 | RNQ10: 12544 | RNR10: 12545 | RNS10: 12546 | RNT10: =RNS10+1 -> 12547 | RNU10: 12548 | RNV10: 12549 | RNW10: 12550 | RNX10: 12551 | RNY10: 12552 | RNZ10: 12553 | ROA10: 12554 | ROB10: 12555 | ROC10: 12556 | ROD10: 12557 | ROE10: 12558 | ROF10: 12559 | ROG10: 12560 | ROH10: 12561 | ROI10: 12562 | ROJ10: 12563 | ROK10: 12564 | ROL10: 12565 | ROM10: 12566 | RON10: 12567 | ROO10: 12568 | ROP10: 12569 | ROQ10: 12570 | ROR10: 12571 | ROS10: 12572 | ROT10: 12573 | ROU10: 12574 | ROV10: 12575 | ROW10: 12576 | ROX10: 12577 | ROY10: 12578 | ROZ10: 12579 | RPA10: 12580 | RPB10: 12581 | RPC10: 12582 | RPD10: 12583 | RPE10: 12584 | RPF10: 12585 | RPG10: 12586 | RPH10: 12587 | RPI10: 12588 | RPJ10: 12589 | RPK10: 12590 | RPL10: 12591 | RPM10: 12592 | RPN10: 12593 | RPO10: 12594 | RPP10: 12595 | RPQ10: 12596 | RPR10: 12597 | RPS10: 12598 | RPT10: 12599 | RPU10: 12600 | RPV10: 12601 | RPW10: 12602 | RPX10: 12603 | RPY10: 12604 | RPZ10: 12605 | RQA10: 12606 | RQB10: 12607 | RQC10: 12608 | RQD10: 12609 | RQE10: 12610 | RQF10: =RQE10+1 -> 12611 | RQG10: 12612 | RQH10: 12613 | RQI10: 12614 | RQJ10: 12615 | RQK10: 12616 | RQL10: 12617 | RQM10: 12618 | RQN10: 12619 | RQO10: 12620 | RQP10: 12621 | RQQ10: 12622 | RQR10: 12623 | RQS10: 12624 | RQT10: 12625 | RQU10: 12626 | RQV10: 12627 | RQW10: 12628 | RQX10: 12629 | RQY10: 12630 | RQZ10: 12631 | RRA10: 12632 | RRB10: 12633 | RRC10: 12634 | RRD10: 12635 | RRE10: 12636 | RRF10: 12637 | RRG10: 12638 | RRH10: 12639 | RRI10: 12640 | RRJ10: 12641 | RRK10: 12642 | RRL10: 12643 | RRM10: 12644 | RRN10: 12645 | RRO10: 12646 | RRP10: 12647 | RRQ10: 12648 | RRR10: 12649 | RRS10: 12650 | RRT10: 12651 | RRU10: 12652 | RRV10: 12653 | RRW10: 12654 | RRX10: 12655 | RRY10: 12656 | RRZ10: 12657 | RSA10: 12658 | RSB10: 12659 | RSC10: 12660 | RSD10: 12661 | RSE10: 12662 | RSF10: 12663 | RSG10: 12664 | RSH10: 12665 | RSI10: 12666 | RSJ10: 12667 | RSK10: 12668 | RSL10: 12669 | RSM10: 12670 | RSN10: 12671 | RSO10: 12672 | RSP10: 12673 | RSQ10: 12674 | RSR10: =RSQ10+1 -> 12675 | RSS10: 12676 | RST10: 12677 | RSU10: 12678 | RSV10: 12679 | RSW10: 12680 | RSX10: 12681 | RSY10: 12682 | RSZ10: 12683 | RTA10: 12684 | RTB10: 12685 | RTC10: 12686 | RTD10: 12687 | RTE10: 12688 | RTF10: 12689 | RTG10: 12690 | RTH10: 12691 | RTI10: 12692 | RTJ10: 12693 | RTK10: 12694 | RTL10: 12695 | RTM10: 12696 | RTN10: 12697 | RTO10: 12698 | RTP10: 12699 | RTQ10: 12700 | RTR10: 12701 | RTS10: 12702 | RTT10: 12703 | RTU10: 12704 | RTV10: 12705 | RTW10: 12706 | RTX10: 12707 | RTY10: 12708 | RTZ10: 12709 | RUA10: 12710 | RUB10: 12711 | RUC10: 12712 | RUD10: 12713 | RUE10: 12714 | RUF10: 12715 | RUG10: 12716 | RUH10: 12717 | RUI10: 12718 | RUJ10: 12719 | RUK10: 12720 | RUL10: 12721 | RUM10: 12722 | RUN10: 12723 | RUO10: 12724 | RUP10: 12725 | RUQ10: 12726 | RUR10: 12727 | RUS10: 12728 | RUT10: 12729 | RUU10: 12730 | RUV10: 12731 | RUW10: 12732 | RUX10: 12733 | RUY10: 12734 | RUZ10: 12735 | RVA10: 12736 | RVB10: 12737 | RVC10: 12738 | RVD10: =RVC10+1 -> 12739 | RVE10: 12740 | RVF10: 12741 | RVG10: 12742 | RVH10: 12743 | RVI10: 12744 | RVJ10: 12745 | RVK10: 12746 | RVL10: 12747 | RVM10: 12748 | RVN10: 12749 | RVO10: 12750 | RVP10: 12751 | RVQ10: 12752 | RVR10: 12753 | RVS10: 12754 | RVT10: 12755 | RVU10: 12756 | RVV10: 12757 | RVW10: 12758 | RVX10: 12759 | RVY10: 12760 | RVZ10: 12761 | RWA10: 12762 | RWB10: 12763 | RWC10: 12764 | RWD10: 12765 | RWE10: 12766 | RWF10: 12767 | RWG10: 12768 | RWH10: 12769 | RWI10: 12770 | RWJ10: 12771 | RWK10: 12772 | RWL10: 12773 | RWM10: 12774 | RWN10: 12775 | RWO10: 12776 | RWP10: 12777 | RWQ10: 12778 | RWR10: 12779 | RWS10: 12780 | RWT10: 12781 | RWU10: 12782 | RWV10: 12783 | RWW10: 12784 | RWX10: 12785 | RWY10: 12786 | RWZ10: 12787 | RXA10: 12788 | RXB10: 12789 | RXC10: 12790 | RXD10: 12791 | RXE10: 12792 | RXF10: 12793 | RXG10: 12794 | RXH10: 12795 | RXI10: 12796 | RXJ10: 12797 | RXK10: 12798 | RXL10: 12799 | RXM10: 12800 | RXN10: 12801 | RXO10: 12802 | RXP10: =RXO10+1 -> 12803 | RXQ10: 12804 | RXR10: 12805 | RXS10: 12806 | RXT10: 12807 | RXU10: 12808 | RXV10: 12809 | RXW10: 12810 | RXX10: 12811 | RXY10: 12812 | RXZ10: 12813 | RYA10: 12814 | RYB10: 12815 | RYC10: 12816 | RYD10: 12817 | RYE10: 12818 | RYF10: 12819 | RYG10: 12820 | RYH10: 12821 | RYI10: 12822 | RYJ10: 12823 | RYK10: 12824 | RYL10: 12825 | RYM10: 12826 | RYN10: 12827 | RYO10: 12828 | RYP10: 12829 | RYQ10: 12830 | RYR10: 12831 | RYS10: 12832 | RYT10: 12833 | RYU10: 12834 | RYV10: 12835 | RYW10: 12836 | RYX10: 12837 | RYY10: 12838 | RYZ10: 12839 | RZA10: 12840 | RZB10: 12841 | RZC10: 12842 | RZD10: 12843 | RZE10: 12844 | RZF10: 12845 | RZG10: 12846 | RZH10: 12847 | RZI10: 12848 | RZJ10: 12849 | RZK10: 12850 | RZL10: 12851 | RZM10: 12852 | RZN10: 12853 | RZO10: 12854 | RZP10: 12855 | RZQ10: 12856 | RZR10: 12857 | RZS10: 12858 | RZT10: 12859 | RZU10: 12860 | RZV10: 12861 | RZW10: 12862 | RZX10: 12863 | RZY10: 12864 | RZZ10: 12865 | SAA10: 12866 | SAB10: =SAA10+1 -> 12867 | SAC10: 12868 | SAD10: 12869 | SAE10: 12870 | SAF10: 12871 | SAG10: 12872 | SAH10: 12873 | SAI10: 12874 | SAJ10: 12875 | SAK10: 12876 | SAL10: 12877 | SAM10: 12878 | SAN10: 12879 | SAO10: 12880 | SAP10: 12881 | SAQ10: 12882 | SAR10: 12883 | SAS10: 12884 | SAT10: 12885 | SAU10: 12886 | SAV10: 12887 | SAW10: 12888 | SAX10: 12889 | SAY10: 12890 | SAZ10: 12891 | SBA10: 12892 | SBB10: 12893 | SBC10: 12894 | SBD10: 12895 | SBE10: 12896 | SBF10: 12897 | SBG10: 12898 | SBH10: 12899 | SBI10: 12900 | SBJ10: 12901 | SBK10: 12902 | SBL10: 12903 | SBM10: 12904 | SBN10: 12905 | SBO10: 12906 | SBP10: 12907 | SBQ10: 12908 | SBR10: 12909 | SBS10: 12910 | SBT10: 12911 | SBU10: 12912 | SBV10: 12913 | SBW10: 12914 | SBX10: 12915 | SBY10: 12916 | SBZ10: 12917 | SCA10: 12918 | SCB10: 12919 | SCC10: 12920 | SCD10: 12921 | SCE10: 12922 | SCF10: 12923 | SCG10: 12924 | SCH10: 12925 | SCI10: 12926 | SCJ10: 12927 | SCK10: 12928 | SCL10: 12929 | SCM10: 12930 | SCN10: =SCM10+1 -> 12931 | SCO10: 12932 | SCP10: 12933 | SCQ10: 12934 | SCR10: 12935 | SCS10: 12936 | SCT10: 12937 | SCU10: 12938 | SCV10: 12939 | SCW10: 12940 | SCX10: 12941 | SCY10: 12942 | SCZ10: 12943 | SDA10: 12944 | SDB10: 12945 | SDC10: 12946 | SDD10: 12947 | SDE10: 12948 | SDF10: 12949 | SDG10: 12950 | SDH10: 12951 | SDI10: 12952 | SDJ10: 12953 | SDK10: 12954 | SDL10: 12955 | SDM10: 12956 | SDN10: 12957 | SDO10: 12958 | SDP10: 12959 | SDQ10: 12960 | SDR10: 12961 | SDS10: 12962 | SDT10: 12963 | SDU10: 12964 | SDV10: 12965 | SDW10: 12966 | SDX10: 12967 | SDY10: 12968 | SDZ10: 12969 | SEA10: 12970 | SEB10: 12971 | SEC10: 12972 | SED10: 12973 | SEE10: 12974 | SEF10: 12975 | SEG10: 12976 | SEH10: 12977 | SEI10: 12978 | SEJ10: 12979 | SEK10: 12980 | SEL10: 12981 | SEM10: 12982 | SEN10: 12983 | SEO10: 12984 | SEP10: 12985 | SEQ10: 12986 | SER10: 12987 | SES10: 12988 | SET10: 12989 | SEU10: 12990 | SEV10: 12991 | SEW10: 12992 | SEX10: 12993 | SEY10: 12994 | SEZ10: =SEY10+1 -> 12995 | SFA10: 12996 | SFB10: 12997 | SFC10: 12998 | SFD10: 12999 | SFE10: 13000 | SFF10: 13001 | SFG10: 13002 | SFH10: 13003 | SFI10: 13004 | SFJ10: 13005 | SFK10: 13006 | SFL10: 13007 | SFM10: 13008 | SFN10: 13009 | SFO10: 13010 | SFP10: 13011 | SFQ10: 13012 | SFR10: 13013 | SFS10: 13014 | SFT10: 13015 | SFU10: 13016 | SFV10: 13017 | SFW10: 13018 | SFX10: 13019 | SFY10: 13020 | SFZ10: 13021 | SGA10: 13022 | SGB10: 13023 | SGC10: 13024 | SGD10: 13025 | SGE10: 13026 | SGF10: 13027 | SGG10: 13028 | SGH10: 13029 | SGI10: 13030 | SGJ10: 13031 | SGK10: 13032 | SGL10: 13033 | SGM10: 13034 | SGN10: 13035 | SGO10: 13036 | SGP10: 13037 | SGQ10: 13038 | SGR10: 13039 | SGS10: 13040 | SGT10: 13041 | SGU10: 13042 | SGV10: 13043 | SGW10: 13044 | SGX10: 13045 | SGY10: 13046 | SGZ10: 13047 | SHA10: 13048 | SHB10: 13049 | SHC10: 13050 | SHD10: 13051 | SHE10: 13052 | SHF10: 13053 | SHG10: 13054 | SHH10: 13055 | SHI10: 13056 | SHJ10: 13057 | SHK10: 13058 | SHL10: =SHK10+1 -> 13059 | SHM10: 13060 | SHN10: 13061 | SHO10: 13062 | SHP10: 13063 | SHQ10: 13064 | SHR10: 13065 | SHS10: 13066 | SHT10: 13067 | SHU10: 13068 | SHV10: 13069 | SHW10: 13070 | SHX10: 13071 | SHY10: 13072 | SHZ10: 13073 | SIA10: 13074 | SIB10: 13075 | SIC10: 13076 | SID10: 13077 | SIE10: 13078 | SIF10: 13079 | SIG10: 13080 | SIH10: 13081 | SII10: 13082 | SIJ10: 13083 | SIK10: 13084 | SIL10: 13085 | SIM10: 13086 | SIN10: 13087 | SIO10: 13088 | SIP10: 13089 | SIQ10: 13090 | SIR10: 13091 | SIS10: 13092 | SIT10: 13093 | SIU10: 13094 | SIV10: 13095 | SIW10: 13096 | SIX10: 13097 | SIY10: 13098 | SIZ10: 13099 | SJA10: 13100 | SJB10: 13101 | SJC10: 13102 | SJD10: 13103 | SJE10: 13104 | SJF10: 13105 | SJG10: 13106 | SJH10: 13107 | SJI10: 13108 | SJJ10: 13109 | SJK10: 13110 | SJL10: 13111 | SJM10: 13112 | SJN10: 13113 | SJO10: 13114 | SJP10: 13115 | SJQ10: 13116 | SJR10: 13117 | SJS10: 13118 | SJT10: 13119 | SJU10: 13120 | SJV10: 13121 | SJW10: 13122 | SJX10: =SJW10+1 -> 13123 | SJY10: 13124 | SJZ10: 13125 | SKA10: 13126 | SKB10: 13127 | SKC10: 13128 | SKD10: 13129 | SKE10: 13130 | SKF10: 13131 | SKG10: 13132 | SKH10: 13133 | SKI10: 13134 | SKJ10: 13135 | SKK10: 13136 | SKL10: 13137 | SKM10: 13138 | SKN10: 13139 | SKO10: 13140 | SKP10: 13141 | SKQ10: 13142 | SKR10: 13143 | SKS10: 13144 | SKT10: 13145 | SKU10: 13146 | SKV10: 13147 | SKW10: 13148 | SKX10: 13149 | SKY10: 13150 | SKZ10: 13151 | SLA10: 13152 | SLB10: 13153 | SLC10: 13154 | SLD10: 13155 | SLE10: 13156 | SLF10: 13157 | SLG10: 13158 | SLH10: 13159 | SLI10: 13160 | SLJ10: 13161 | SLK10: 13162 | SLL10: 13163 | SLM10: 13164 | SLN10: 13165 | SLO10: 13166 | SLP10: 13167 | SLQ10: 13168 | SLR10: 13169 | SLS10: 13170 | SLT10: 13171 | SLU10: 13172 | SLV10: 13173 | SLW10: 13174 | SLX10: 13175 | SLY10: 13176 | SLZ10: 13177 | SMA10: 13178 | SMB10: 13179 | SMC10: 13180 | SMD10: 13181 | SME10: 13182 | SMF10: 13183 | SMG10: 13184 | SMH10: 13185 | SMI10: 13186 | SMJ10: =SMI10+1 -> 13187 | SMK10: 13188 | SML10: 13189 | SMM10: 13190 | SMN10: 13191 | SMO10: 13192 | SMP10: 13193 | SMQ10: 13194 | SMR10: 13195 | SMS10: 13196 | SMT10: 13197 | SMU10: 13198 | SMV10: 13199 | SMW10: 13200 | SMX10: 13201 | SMY10: 13202 | SMZ10: 13203 | SNA10: 13204 | SNB10: 13205 | SNC10: 13206 | SND10: 13207 | SNE10: 13208 | SNF10: 13209 | SNG10: 13210 | SNH10: 13211 | SNI10: 13212 | SNJ10: 13213 | SNK10: 13214 | SNL10: 13215 | SNM10: 13216 | SNN10: 13217 | SNO10: 13218 | SNP10: 13219 | SNQ10: 13220 | SNR10: 13221 | SNS10: 13222 | SNT10: 13223 | SNU10: 13224 | SNV10: 13225 | SNW10: 13226 | SNX10: 13227 | SNY10: 13228 | SNZ10: 13229 | SOA10: 13230 | SOB10: 13231 | SOC10: 13232 | SOD10: 13233 | SOE10: 13234 | SOF10: 13235 | SOG10: 13236 | SOH10: 13237 | SOI10: 13238 | SOJ10: 13239 | SOK10: 13240 | SOL10: 13241 | SOM10: 13242 | SON10: 13243 | SOO10: 13244 | SOP10: 13245 | SOQ10: 13246 | SOR10: 13247 | SOS10: 13248 | SOT10: 13249 | SOU10: 13250 | SOV10: =SOU10+1 -> 13251 | SOW10: 13252 | SOX10: 13253 | SOY10: 13254 | SOZ10: 13255 | SPA10: 13256 | SPB10: 13257 | SPC10: 13258 | SPD10: 13259 | SPE10: 13260 | SPF10: 13261 | SPG10: 13262 | SPH10: 13263 | SPI10: 13264 | SPJ10: 13265 | SPK10: 13266 | SPL10: 13267 | SPM10: 13268 | SPN10: 13269 | SPO10: 13270 | SPP10: 13271 | SPQ10: 13272 | SPR10: 13273 | SPS10: 13274 | SPT10: 13275 | SPU10: 13276 | SPV10: 13277 | SPW10: 13278 | SPX10: 13279 | SPY10: 13280 | SPZ10: 13281 | SQA10: 13282 | SQB10: 13283 | SQC10: 13284 | SQD10: 13285 | SQE10: 13286 | SQF10: 13287 | SQG10: 13288 | SQH10: 13289 | SQI10: 13290 | SQJ10: 13291 | SQK10: 13292 | SQL10: 13293 | SQM10: 13294 | SQN10: 13295 | SQO10: 13296 | SQP10: 13297 | SQQ10: 13298 | SQR10: 13299 | SQS10: 13300 | SQT10: 13301 | SQU10: 13302 | SQV10: 13303 | SQW10: 13304 | SQX10: 13305 | SQY10: 13306 | SQZ10: 13307 | SRA10: 13308 | SRB10: 13309 | SRC10: 13310 | SRD10: 13311 | SRE10: 13312 | SRF10: 13313 | SRG10: 13314 | SRH10: =SRG10+1 -> 13315 | SRI10: 13316 | SRJ10: 13317 | SRK10: 13318 | SRL10: 13319 | SRM10: 13320 | SRN10: 13321 | SRO10: 13322 | SRP10: 13323 | SRQ10: 13324 | SRR10: 13325 | SRS10: 13326 | SRT10: 13327 | SRU10: 13328 | SRV10: 13329 | SRW10: 13330 | SRX10: 13331 | SRY10: 13332 | SRZ10: 13333 | SSA10: 13334 | SSB10: 13335 | SSC10: 13336 | SSD10: 13337 | SSE10: 13338 | SSF10: 13339 | SSG10: 13340 | SSH10: 13341 | SSI10: 13342 | SSJ10: 13343 | SSK10: 13344 | SSL10: 13345 | SSM10: 13346 | SSN10: 13347 | SSO10: 13348 | SSP10: 13349 | SSQ10: 13350 | SSR10: 13351 | SSS10: 13352 | SST10: 13353 | SSU10: 13354 | SSV10: 13355 | SSW10: 13356 | SSX10: 13357 | SSY10: 13358 | SSZ10: 13359 | STA10: 13360 | STB10: 13361 | STC10: 13362 | STD10: 13363 | STE10: 13364 | STF10: 13365 | STG10: 13366 | STH10: 13367 | STI10: 13368 | STJ10: 13369 | STK10: 13370 | STL10: 13371 | STM10: 13372 | STN10: 13373 | STO10: 13374 | STP10: 13375 | STQ10: 13376 | STR10: 13377 | STS10: 13378 | STT10: =STS10+1 -> 13379 | STU10: 13380 | STV10: 13381 | STW10: 13382 | STX10: 13383 | STY10: 13384 | STZ10: 13385 | SUA10: 13386 | SUB10: 13387 | SUC10: 13388 | SUD10: 13389 | SUE10: 13390 | SUF10: 13391 | SUG10: 13392 | SUH10: 13393 | SUI10: 13394 | SUJ10: 13395 | SUK10: 13396 | SUL10: 13397 | SUM10: 13398 | SUN10: 13399 | SUO10: 13400 | SUP10: 13401 | SUQ10: 13402 | SUR10: 13403 | SUS10: 13404 | SUT10: 13405 | SUU10: 13406 | SUV10: 13407 | SUW10: 13408 | SUX10: 13409 | SUY10: 13410 | SUZ10: 13411 | SVA10: 13412 | SVB10: 13413 | SVC10: 13414 | SVD10: 13415 | SVE10: 13416 | SVF10: 13417 | SVG10: 13418 | SVH10: 13419 | SVI10: 13420 | SVJ10: 13421 | SVK10: 13422 | SVL10: 13423 | SVM10: 13424 | SVN10: 13425 | SVO10: 13426 | SVP10: 13427 | SVQ10: 13428 | SVR10: 13429 | SVS10: 13430 | SVT10: 13431 | SVU10: 13432 | SVV10: 13433 | SVW10: 13434 | SVX10: 13435 | SVY10: 13436 | SVZ10: 13437 | SWA10: 13438 | SWB10: 13439 | SWC10: 13440 | SWD10: 13441 | SWE10: 13442 | SWF10: =SWE10+1 -> 13443 | SWG10: 13444 | SWH10: 13445 | SWI10: 13446 | SWJ10: 13447 | SWK10: 13448 | SWL10: 13449 | SWM10: 13450 | SWN10: 13451 | SWO10: 13452 | SWP10: 13453 | SWQ10: 13454 | SWR10: 13455 | SWS10: 13456 | SWT10: 13457 | SWU10: 13458 | SWV10: 13459 | SWW10: 13460 | SWX10: 13461 | SWY10: 13462 | SWZ10: 13463 | SXA10: 13464 | SXB10: 13465 | SXC10: 13466 | SXD10: 13467 | SXE10: 13468 | SXF10: 13469 | SXG10: 13470 | SXH10: 13471 | SXI10: 13472 | SXJ10: 13473 | SXK10: 13474 | SXL10: 13475 | SXM10: 13476 | SXN10: 13477 | SXO10: 13478 | SXP10: 13479 | SXQ10: 13480 | SXR10: 13481 | SXS10: 13482 | SXT10: 13483 | SXU10: 13484 | SXV10: 13485 | SXW10: 13486 | SXX10: 13487 | SXY10: 13488 | SXZ10: 13489 | SYA10: 13490 | SYB10: 13491 | SYC10: 13492 | SYD10: 13493 | SYE10: 13494 | SYF10: 13495 | SYG10: 13496 | SYH10: 13497 | SYI10: 13498 | SYJ10: 13499 | SYK10: 13500 | SYL10: 13501 | SYM10: 13502 | SYN10: 13503 | SYO10: 13504 | SYP10: 13505 | SYQ10: 13506 | SYR10: =SYQ10+1 -> 13507 | SYS10: 13508 | SYT10: 13509 | SYU10: 13510 | SYV10: 13511 | SYW10: 13512 | SYX10: 13513 | SYY10: 13514 | SYZ10: 13515 | SZA10: 13516 | SZB10: 13517 | SZC10: 13518 | SZD10: 13519 | SZE10: 13520 | SZF10: 13521 | SZG10: 13522 | SZH10: 13523 | SZI10: 13524 | SZJ10: 13525 | SZK10: 13526 | SZL10: 13527 | SZM10: 13528 | SZN10: 13529 | SZO10: 13530 | SZP10: 13531 | SZQ10: 13532 | SZR10: 13533 | SZS10: 13534 | SZT10: 13535 | SZU10: 13536 | SZV10: 13537 | SZW10: 13538 | SZX10: 13539 | SZY10: 13540 | SZZ10: 13541 | TAA10: 13542 | TAB10: 13543 | TAC10: 13544 | TAD10: 13545 | TAE10: 13546 | TAF10: 13547 | TAG10: 13548 | TAH10: 13549 | TAI10: 13550 | TAJ10: 13551 | TAK10: 13552 | TAL10: 13553 | TAM10: 13554 | TAN10: 13555 | TAO10: 13556 | TAP10: 13557 | TAQ10: 13558 | TAR10: 13559 | TAS10: 13560 | TAT10: 13561 | TAU10: 13562 | TAV10: 13563 | TAW10: 13564 | TAX10: 13565 | TAY10: 13566 | TAZ10: 13567 | TBA10: 13568 | TBB10: 13569 | TBC10: 13570 | TBD10: =TBC10+1 -> 13571 | TBE10: 13572 | TBF10: 13573 | TBG10: 13574 | TBH10: 13575 | TBI10: 13576 | TBJ10: 13577 | TBK10: 13578 | TBL10: 13579 | TBM10: 13580 | TBN10: 13581 | TBO10: 13582 | TBP10: 13583 | TBQ10: 13584 | TBR10: 13585 | TBS10: 13586 | TBT10: 13587 | TBU10: 13588 | TBV10: 13589 | TBW10: 13590 | TBX10: 13591 | TBY10: 13592 | TBZ10: 13593 | TCA10: 13594 | TCB10: 13595 | TCC10: 13596 | TCD10: 13597 | TCE10: 13598 | TCF10: 13599 | TCG10: 13600 | TCH10: 13601 | TCI10: 13602 | TCJ10: 13603 | TCK10: 13604 | TCL10: 13605 | TCM10: 13606 | TCN10: 13607 | TCO10: 13608 | TCP10: 13609 | TCQ10: 13610 | TCR10: 13611 | TCS10: 13612 | TCT10: 13613 | TCU10: 13614 | TCV10: 13615 | TCW10: 13616 | TCX10: 13617 | TCY10: 13618 | TCZ10: 13619 | TDA10: 13620 | TDB10: 13621 | TDC10: 13622 | TDD10: 13623 | TDE10: 13624 | TDF10: 13625 | TDG10: 13626 | TDH10: 13627 | TDI10: 13628 | TDJ10: 13629 | TDK10: 13630 | TDL10: 13631 | TDM10: 13632 | TDN10: 13633 | TDO10: 13634 | TDP10: =TDO10+1 -> 13635 | TDQ10: 13636 | TDR10: 13637 | TDS10: 13638 | TDT10: 13639 | TDU10: 13640 | TDV10: 13641 | TDW10: 13642 | TDX10: 13643 | TDY10: 13644 | TDZ10: 13645 | TEA10: 13646 | TEB10: 13647 | TEC10: 13648 | TED10: 13649 | TEE10: 13650 | TEF10: 13651 | TEG10: 13652 | TEH10: 13653 | TEI10: 13654 | TEJ10: 13655 | TEK10: 13656 | TEL10: 13657 | TEM10: 13658 | TEN10: 13659 | TEO10: 13660 | TEP10: 13661 | TEQ10: 13662 | TER10: 13663 | TES10: 13664 | TET10: 13665 | TEU10: 13666 | TEV10: 13667 | TEW10: 13668 | TEX10: 13669 | TEY10: 13670 | TEZ10: 13671 | TFA10: 13672 | TFB10: 13673 | TFC10: 13674 | TFD10: 13675 | TFE10: 13676 | TFF10: 13677 | TFG10: 13678 | TFH10: 13679 | TFI10: 13680 | TFJ10: 13681 | TFK10: 13682 | TFL10: 13683 | TFM10: 13684 | TFN10: 13685 | TFO10: 13686 | TFP10: 13687 | TFQ10: 13688 | TFR10: 13689 | TFS10: 13690 | TFT10: 13691 | TFU10: 13692 | TFV10: 13693 | TFW10: 13694 | TFX10: 13695 | TFY10: 13696 | TFZ10: 13697 | TGA10: 13698 | TGB10: =TGA10+1 -> 13699 | TGC10: 13700 | TGD10: 13701 | TGE10: 13702 | TGF10: 13703 | TGG10: 13704 | TGH10: 13705 | TGI10: 13706 | TGJ10: 13707 | TGK10: 13708 | TGL10: 13709 | TGM10: 13710 | TGN10: 13711 | TGO10: 13712 | TGP10: 13713 | TGQ10: 13714 | TGR10: 13715 | TGS10: 13716 | TGT10: 13717 | TGU10: 13718 | TGV10: 13719 | TGW10: 13720 | TGX10: 13721 | TGY10: 13722 | TGZ10: 13723 | THA10: 13724 | THB10: 13725 | THC10: 13726 | THD10: 13727 | THE10: 13728 | THF10: 13729 | THG10: 13730 | THH10: 13731 | THI10: 13732 | THJ10: 13733 | THK10: 13734 | THL10: 13735 | THM10: 13736 | THN10: 13737 | THO10: 13738 | THP10: 13739 | THQ10: 13740 | THR10: 13741 | THS10: 13742 | THT10: 13743 | THU10: 13744 | THV10: 13745 | THW10: 13746 | THX10: 13747 | THY10: 13748 | THZ10: 13749 | TIA10: 13750 | TIB10: 13751 | TIC10: 13752 | TID10: 13753 | TIE10: 13754 | TIF10: 13755 | TIG10: 13756 | TIH10: 13757 | TII10: 13758 | TIJ10: 13759 | TIK10: 13760 | TIL10: 13761 | TIM10: 13762 | TIN10: =TIM10+1 -> 13763 | TIO10: 13764 | TIP10: 13765 | TIQ10: 13766 | TIR10: 13767 | TIS10: 13768 | TIT10: 13769 | TIU10: 13770 | TIV10: 13771 | TIW10: 13772 | TIX10: 13773 | TIY10: 13774 | TIZ10: 13775 | TJA10: 13776 | TJB10: 13777 | TJC10: 13778 | TJD10: 13779 | TJE10: 13780 | TJF10: 13781 | TJG10: 13782 | TJH10: 13783 | TJI10: 13784 | TJJ10: 13785 | TJK10: 13786 | TJL10: 13787 | TJM10: 13788 | TJN10: 13789 | TJO10: 13790 | TJP10: 13791 | TJQ10: 13792 | TJR10: 13793 | TJS10: 13794 | TJT10: 13795 | TJU10: 13796 | TJV10: 13797 | TJW10: 13798 | TJX10: 13799 | TJY10: 13800 | TJZ10: 13801 | TKA10: 13802 | TKB10: 13803 | TKC10: 13804 | TKD10: 13805 | TKE10: 13806 | TKF10: 13807 | TKG10: 13808 | TKH10: 13809 | TKI10: 13810 | TKJ10: 13811 | TKK10: 13812 | TKL10: 13813 | TKM10: 13814 | TKN10: 13815 | TKO10: 13816 | TKP10: 13817 | TKQ10: 13818 | TKR10: 13819 | TKS10: 13820 | TKT10: 13821 | TKU10: 13822 | TKV10: 13823 | TKW10: 13824 | TKX10: 13825 | TKY10: 13826 | TKZ10: =TKY10+1 -> 13827 | TLA10: 13828 | TLB10: 13829 | TLC10: 13830 | TLD10: 13831 | TLE10: 13832 | TLF10: 13833 | TLG10: 13834 | TLH10: 13835 | TLI10: 13836 | TLJ10: 13837 | TLK10: 13838 | TLL10: 13839 | TLM10: 13840 | TLN10: 13841 | TLO10: 13842 | TLP10: 13843 | TLQ10: 13844 | TLR10: 13845 | TLS10: 13846 | TLT10: 13847 | TLU10: 13848 | TLV10: 13849 | TLW10: 13850 | TLX10: 13851 | TLY10: 13852 | TLZ10: 13853 | TMA10: 13854 | TMB10: 13855 | TMC10: 13856 | TMD10: 13857 | TME10: 13858 | TMF10: 13859 | TMG10: 13860 | TMH10: 13861 | TMI10: 13862 | TMJ10: 13863 | TMK10: 13864 | TML10: 13865 | TMM10: 13866 | TMN10: 13867 | TMO10: 13868 | TMP10: 13869 | TMQ10: 13870 | TMR10: 13871 | TMS10: 13872 | TMT10: 13873 | TMU10: 13874 | TMV10: 13875 | TMW10: 13876 | TMX10: 13877 | TMY10: 13878 | TMZ10: 13879 | TNA10: 13880 | TNB10: 13881 | TNC10: 13882 | TND10: 13883 | TNE10: 13884 | TNF10: 13885 | TNG10: 13886 | TNH10: 13887 | TNI10: 13888 | TNJ10: 13889 | TNK10: 13890 | TNL10: =TNK10+1 -> 13891 | TNM10: 13892 | TNN10: 13893 | TNO10: 13894 | TNP10: 13895 | TNQ10: 13896 | TNR10: 13897 | TNS10: 13898 | TNT10: 13899 | TNU10: 13900 | TNV10: 13901 | TNW10: 13902 | TNX10: 13903 | TNY10: 13904 | TNZ10: 13905 | TOA10: 13906 | TOB10: 13907 | TOC10: 13908 | TOD10: 13909 | TOE10: 13910 | TOF10: 13911 | TOG10: 13912 | TOH10: 13913 | TOI10: 13914 | TOJ10: 13915 | TOK10: 13916 | TOL10: 13917 | TOM10: 13918 | TON10: 13919 | TOO10: 13920 | TOP10: 13921 | TOQ10: 13922 | TOR10: 13923 | TOS10: 13924 | TOT10: 13925 | TOU10: 13926 | TOV10: 13927 | TOW10: 13928 | TOX10: 13929 | TOY10: 13930 | TOZ10: 13931 | TPA10: 13932 | TPB10: 13933 | TPC10: 13934 | TPD10: 13935 | TPE10: 13936 | TPF10: 13937 | TPG10: 13938 | TPH10: 13939 | TPI10: 13940 | TPJ10: 13941 | TPK10: 13942 | TPL10: 13943 | TPM10: 13944 | TPN10: 13945 | TPO10: 13946 | TPP10: 13947 | TPQ10: 13948 | TPR10: 13949 | TPS10: 13950 | TPT10: 13951 | TPU10: 13952 | TPV10: 13953 | TPW10: 13954 | TPX10: =TPW10+1 -> 13955 | TPY10: 13956 | TPZ10: 13957 | TQA10: 13958 | TQB10: 13959 | TQC10: 13960 | TQD10: 13961 | TQE10: 13962 | TQF10: 13963 | TQG10: 13964 | TQH10: 13965 | TQI10: 13966 | TQJ10: 13967 | TQK10: 13968 | TQL10: 13969 | TQM10: 13970 | TQN10: 13971 | TQO10: 13972 | TQP10: 13973 | TQQ10: 13974 | TQR10: 13975 | TQS10: 13976 | TQT10: 13977 | TQU10: 13978 | TQV10: 13979 | TQW10: 13980 | TQX10: 13981 | TQY10: 13982 | TQZ10: 13983 | TRA10: 13984 | TRB10: 13985 | TRC10: 13986 | TRD10: 13987 | TRE10: 13988 | TRF10: 13989 | TRG10: 13990 | TRH10: 13991 | TRI10: 13992 | TRJ10: 13993 | TRK10: 13994 | TRL10: 13995 | TRM10: 13996 | TRN10: 13997 | TRO10: 13998 | TRP10: 13999 | TRQ10: 14000 | TRR10: 14001 | TRS10: 14002 | TRT10: 14003 | TRU10: 14004 | TRV10: 14005 | TRW10: 14006 | TRX10: 14007 | TRY10: 14008 | TRZ10: 14009 | TSA10: 14010 | TSB10: 14011 | TSC10: 14012 | TSD10: 14013 | TSE10: 14014 | TSF10: 14015 | TSG10: 14016 | TSH10: 14017 | TSI10: 14018 | TSJ10: =TSI10+1 -> 14019 | TSK10: 14020 | TSL10: 14021 | TSM10: 14022 | TSN10: 14023 | TSO10: 14024 | TSP10: 14025 | TSQ10: 14026 | TSR10: 14027 | TSS10: 14028 | TST10: 14029 | TSU10: 14030 | TSV10: 14031 | TSW10: 14032 | TSX10: 14033 | TSY10: 14034 | TSZ10: 14035 | TTA10: 14036 | TTB10: 14037 | TTC10: 14038 | TTD10: 14039 | TTE10: 14040 | TTF10: 14041 | TTG10: 14042 | TTH10: 14043 | TTI10: 14044 | TTJ10: 14045 | TTK10: 14046 | TTL10: 14047 | TTM10: 14048 | TTN10: 14049 | TTO10: 14050 | TTP10: 14051 | TTQ10: 14052 | TTR10: 14053 | TTS10: 14054 | TTT10: 14055 | TTU10: 14056 | TTV10: 14057 | TTW10: 14058 | TTX10: 14059 | TTY10: 14060 | TTZ10: 14061 | TUA10: 14062 | TUB10: 14063 | TUC10: 14064 | TUD10: 14065 | TUE10: 14066 | TUF10: 14067 | TUG10: 14068 | TUH10: 14069 | TUI10: 14070 | TUJ10: 14071 | TUK10: 14072 | TUL10: 14073 | TUM10: 14074 | TUN10: 14075 | TUO10: 14076 | TUP10: 14077 | TUQ10: 14078 | TUR10: 14079 | TUS10: 14080 | TUT10: 14081 | TUU10: 14082 | TUV10: =TUU10+1 -> 14083 | TUW10: 14084 | TUX10: 14085 | TUY10: 14086 | TUZ10: 14087 | TVA10: 14088 | TVB10: 14089 | TVC10: 14090 | TVD10: 14091 | TVE10: 14092 | TVF10: 14093 | TVG10: 14094 | TVH10: 14095 | TVI10: 14096 | TVJ10: 14097 | TVK10: 14098 | TVL10: 14099 | TVM10: 14100 | TVN10: 14101 | TVO10: 14102 | TVP10: 14103 | TVQ10: 14104 | TVR10: 14105 | TVS10: 14106 | TVT10: 14107 | TVU10: 14108 | TVV10: 14109 | TVW10: 14110 | TVX10: 14111 | TVY10: 14112 | TVZ10: 14113 | TWA10: 14114 | TWB10: 14115 | TWC10: 14116 | TWD10: 14117 | TWE10: 14118 | TWF10: 14119 | TWG10: 14120 | TWH10: 14121 | TWI10: 14122 | TWJ10: 14123 | TWK10: 14124 | TWL10: 14125 | TWM10: 14126 | TWN10: 14127 | TWO10: 14128 | TWP10: 14129 | TWQ10: 14130 | TWR10: 14131 | TWS10: 14132 | TWT10: 14133 | TWU10: 14134 | TWV10: 14135 | TWW10: 14136 | TWX10: 14137 | TWY10: 14138 | TWZ10: 14139 | TXA10: 14140 | TXB10: 14141 | TXC10: 14142 | TXD10: 14143 | TXE10: 14144 | TXF10: 14145 | TXG10: 14146 | TXH10: =TXG10+1 -> 14147 | TXI10: 14148 | TXJ10: 14149 | TXK10: 14150 | TXL10: 14151 | TXM10: 14152 | TXN10: 14153 | TXO10: 14154 | TXP10: 14155 | TXQ10: 14156 | TXR10: 14157 | TXS10: 14158 | TXT10: 14159 | TXU10: 14160 | TXV10: 14161 | TXW10: 14162 | TXX10: 14163 | TXY10: 14164 | TXZ10: 14165 | TYA10: 14166 | TYB10: 14167 | TYC10: 14168 | TYD10: 14169 | TYE10: 14170 | TYF10: 14171 | TYG10: 14172 | TYH10: 14173 | TYI10: 14174 | TYJ10: 14175 | TYK10: 14176 | TYL10: 14177 | TYM10: 14178 | TYN10: 14179 | TYO10: 14180 | TYP10: 14181 | TYQ10: 14182 | TYR10: 14183 | TYS10: 14184 | TYT10: 14185 | TYU10: 14186 | TYV10: 14187 | TYW10: 14188 | TYX10: 14189 | TYY10: 14190 | TYZ10: 14191 | TZA10: 14192 | TZB10: 14193 | TZC10: 14194 | TZD10: 14195 | TZE10: 14196 | TZF10: 14197 | TZG10: 14198 | TZH10: 14199 | TZI10: 14200 | TZJ10: 14201 | TZK10: 14202 | TZL10: 14203 | TZM10: 14204 | TZN10: 14205 | TZO10: 14206 | TZP10: 14207 | TZQ10: 14208 | TZR10: 14209 | TZS10: 14210 | TZT10: =TZS10+1 -> 14211 | TZU10: 14212 | TZV10: 14213 | TZW10: 14214 | TZX10: 14215 | TZY10: 14216 | TZZ10: 14217 | UAA10: 14218 | UAB10: 14219 | UAC10: 14220 | UAD10: 14221 | UAE10: 14222 | UAF10: 14223 | UAG10: 14224 | UAH10: 14225 | UAI10: 14226 | UAJ10: 14227 | UAK10: 14228 | UAL10: 14229 | UAM10: 14230 | UAN10: 14231 | UAO10: 14232 | UAP10: 14233 | UAQ10: 14234 | UAR10: 14235 | UAS10: 14236 | UAT10: 14237 | UAU10: 14238 | UAV10: 14239 | UAW10: 14240 | UAX10: 14241 | UAY10: 14242 | UAZ10: 14243 | UBA10: 14244 | UBB10: 14245 | UBC10: 14246 | UBD10: 14247 | UBE10: 14248 | UBF10: 14249 | UBG10: 14250 | UBH10: 14251 | UBI10: 14252 | UBJ10: 14253 | UBK10: 14254 | UBL10: 14255 | UBM10: 14256 | UBN10: 14257 | UBO10: 14258 | UBP10: 14259 | UBQ10: 14260 | UBR10: 14261 | UBS10: 14262 | UBT10: 14263 | UBU10: 14264 | UBV10: 14265 | UBW10: 14266 | UBX10: 14267 | UBY10: 14268 | UBZ10: 14269 | UCA10: 14270 | UCB10: 14271 | UCC10: 14272 | UCD10: 14273 | UCE10: 14274 | UCF10: =UCE10+1 -> 14275 | UCG10: 14276 | UCH10: 14277 | UCI10: 14278 | UCJ10: 14279 | UCK10: 14280 | UCL10: 14281 | UCM10: 14282 | UCN10: 14283 | UCO10: 14284 | UCP10: 14285 | UCQ10: 14286 | UCR10: 14287 | UCS10: 14288 | UCT10: 14289 | UCU10: 14290 | UCV10: 14291 | UCW10: 14292 | UCX10: 14293 | UCY10: 14294 | UCZ10: 14295 | UDA10: 14296 | UDB10: 14297 | UDC10: 14298 | UDD10: 14299 | UDE10: 14300 | UDF10: 14301 | UDG10: 14302 | UDH10: 14303 | UDI10: 14304 | UDJ10: 14305 | UDK10: 14306 | UDL10: 14307 | UDM10: 14308 | UDN10: 14309 | UDO10: 14310 | UDP10: 14311 | UDQ10: 14312 | UDR10: 14313 | UDS10: 14314 | UDT10: 14315 | UDU10: 14316 | UDV10: 14317 | UDW10: 14318 | UDX10: 14319 | UDY10: 14320 | UDZ10: 14321 | UEA10: 14322 | UEB10: 14323 | UEC10: 14324 | UED10: 14325 | UEE10: 14326 | UEF10: 14327 | UEG10: 14328 | UEH10: 14329 | UEI10: 14330 | UEJ10: 14331 | UEK10: 14332 | UEL10: 14333 | UEM10: 14334 | UEN10: 14335 | UEO10: 14336 | UEP10: 14337 | UEQ10: 14338 | UER10: =UEQ10+1 -> 14339 | UES10: 14340 | UET10: 14341 | UEU10: 14342 | UEV10: 14343 | UEW10: 14344 | UEX10: 14345 | UEY10: 14346 | UEZ10: 14347 | UFA10: 14348 | UFB10: 14349 | UFC10: 14350 | UFD10: 14351 | UFE10: 14352 | UFF10: 14353 | UFG10: 14354 | UFH10: 14355 | UFI10: 14356 | UFJ10: 14357 | UFK10: 14358 | UFL10: 14359 | UFM10: 14360 | UFN10: 14361 | UFO10: 14362 | UFP10: 14363 | UFQ10: 14364 | UFR10: 14365 | UFS10: 14366 | UFT10: 14367 | UFU10: 14368 | UFV10: 14369 | UFW10: 14370 | UFX10: 14371 | UFY10: 14372 | UFZ10: 14373 | UGA10: 14374 | UGB10: 14375 | UGC10: 14376 | UGD10: 14377 | UGE10: 14378 | UGF10: 14379 | UGG10: 14380 | UGH10: 14381 | UGI10: 14382 | UGJ10: 14383 | UGK10: 14384 | UGL10: 14385 | UGM10: 14386 | UGN10: 14387 | UGO10: 14388 | UGP10: 14389 | UGQ10: 14390 | UGR10: 14391 | UGS10: 14392 | UGT10: 14393 | UGU10: 14394 | UGV10: 14395 | UGW10: 14396 | UGX10: 14397 | UGY10: 14398 | UGZ10: 14399 | UHA10: 14400 | UHB10: 14401 | UHC10: 14402 | UHD10: =UHC10+1 -> 14403 | UHE10: 14404 | UHF10: 14405 | UHG10: 14406 | UHH10: 14407 | UHI10: 14408 | UHJ10: 14409 | UHK10: 14410 | UHL10: 14411 | UHM10: 14412 | UHN10: 14413 | UHO10: 14414 | UHP10: 14415 | UHQ10: 14416 | UHR10: 14417 | UHS10: 14418 | UHT10: 14419 | UHU10: 14420 | UHV10: 14421 | UHW10: 14422 | UHX10: 14423 | UHY10: 14424 | UHZ10: 14425 | UIA10: 14426 | UIB10: 14427 | UIC10: 14428 | UID10: 14429 | UIE10: 14430 | UIF10: 14431 | UIG10: 14432 | UIH10: 14433 | UII10: 14434 | UIJ10: 14435 | UIK10: 14436 | UIL10: 14437 | UIM10: 14438 | UIN10: 14439 | UIO10: 14440 | UIP10: 14441 | UIQ10: 14442 | UIR10: 14443 | UIS10: 14444 | UIT10: 14445 | UIU10: 14446 | UIV10: 14447 | UIW10: 14448 | UIX10: 14449 | UIY10: 14450 | UIZ10: 14451 | UJA10: 14452 | UJB10: 14453 | UJC10: 14454 | UJD10: 14455 | UJE10: 14456 | UJF10: 14457 | UJG10: 14458 | UJH10: 14459 | UJI10: 14460 | UJJ10: 14461 | UJK10: 14462 | UJL10: 14463 | UJM10: 14464 | UJN10: 14465 | UJO10: 14466 | UJP10: =UJO10+1 -> 14467 | UJQ10: 14468 | UJR10: 14469 | UJS10: 14470 | UJT10: 14471 | UJU10: 14472 | UJV10: 14473 | UJW10: 14474 | UJX10: 14475 | UJY10: 14476 | UJZ10: 14477 | UKA10: 14478 | UKB10: 14479 | UKC10: 14480 | UKD10: 14481 | UKE10: 14482 | UKF10: 14483 | UKG10: 14484 | UKH10: 14485 | UKI10: 14486 | UKJ10: 14487 | UKK10: 14488 | UKL10: 14489 | UKM10: 14490 | UKN10: 14491 | UKO10: 14492 | UKP10: 14493 | UKQ10: 14494 | UKR10: 14495 | UKS10: 14496 | UKT10: 14497 | UKU10: 14498 | UKV10: 14499 | UKW10: 14500 | UKX10: 14501 | UKY10: 14502 | UKZ10: 14503 | ULA10: 14504 | ULB10: 14505 | ULC10: 14506 | ULD10: 14507 | ULE10: 14508 | ULF10: 14509 | ULG10: 14510 | ULH10: 14511 | ULI10: 14512 | ULJ10: 14513 | ULK10: 14514 | ULL10: 14515 | ULM10: 14516 | ULN10: 14517 | ULO10: 14518 | ULP10: 14519 | ULQ10: 14520 | ULR10: 14521 | ULS10: 14522 | ULT10: 14523 | ULU10: 14524 | ULV10: 14525 | ULW10: 14526 | ULX10: 14527 | ULY10: 14528 | ULZ10: 14529 | UMA10: 14530 | UMB10: =UMA10+1 -> 14531 | UMC10: 14532 | UMD10: 14533 | UME10: 14534 | UMF10: 14535 | UMG10: 14536 | UMH10: 14537 | UMI10: 14538 | UMJ10: 14539 | UMK10: 14540 | UML10: 14541 | UMM10: 14542 | UMN10: 14543 | UMO10: 14544 | UMP10: 14545 | UMQ10: 14546 | UMR10: 14547 | UMS10: 14548 | UMT10: 14549 | UMU10: 14550 | UMV10: 14551 | UMW10: 14552 | UMX10: 14553 | UMY10: 14554 | UMZ10: 14555 | UNA10: 14556 | UNB10: 14557 | UNC10: 14558 | UND10: 14559 | UNE10: 14560 | UNF10: 14561 | UNG10: 14562 | UNH10: 14563 | UNI10: 14564 | UNJ10: 14565 | UNK10: 14566 | UNL10: 14567 | UNM10: 14568 | UNN10: 14569 | UNO10: 14570 | UNP10: 14571 | UNQ10: 14572 | UNR10: 14573 | UNS10: 14574 | UNT10: 14575 | UNU10: 14576 | UNV10: 14577 | UNW10: 14578 | UNX10: 14579 | UNY10: 14580 | UNZ10: 14581 | UOA10: 14582 | UOB10: 14583 | UOC10: 14584 | UOD10: 14585 | UOE10: 14586 | UOF10: 14587 | UOG10: 14588 | UOH10: 14589 | UOI10: 14590 | UOJ10: 14591 | UOK10: 14592 | UOL10: 14593 | UOM10: 14594 | UON10: =UOM10+1 -> 14595 | UOO10: 14596 | UOP10: 14597 | UOQ10: 14598 | UOR10: 14599 | UOS10: 14600 | UOT10: 14601 | UOU10: 14602 | UOV10: 14603 | UOW10: 14604 | UOX10: 14605 | UOY10: 14606 | UOZ10: 14607 | UPA10: 14608 | UPB10: 14609 | UPC10: 14610 | UPD10: 14611 | UPE10: 14612 | UPF10: 14613 | UPG10: 14614 | UPH10: 14615 | UPI10: 14616 | UPJ10: 14617 | UPK10: 14618 | UPL10: 14619 | UPM10: 14620 | UPN10: 14621 | UPO10: 14622 | UPP10: 14623 | UPQ10: 14624 | UPR10: 14625 | UPS10: 14626 | UPT10: 14627 | UPU10: 14628 | UPV10: 14629 | UPW10: 14630 | UPX10: 14631 | UPY10: 14632 | UPZ10: 14633 | UQA10: 14634 | UQB10: 14635 | UQC10: 14636 | UQD10: 14637 | UQE10: 14638 | UQF10: 14639 | UQG10: 14640 | UQH10: 14641 | UQI10: 14642 | UQJ10: 14643 | UQK10: 14644 | UQL10: 14645 | UQM10: 14646 | UQN10: 14647 | UQO10: 14648 | UQP10: 14649 | UQQ10: 14650 | UQR10: 14651 | UQS10: 14652 | UQT10: 14653 | UQU10: 14654 | UQV10: 14655 | UQW10: 14656 | UQX10: 14657 | UQY10: 14658 | UQZ10: =UQY10+1 -> 14659 | URA10: 14660 | URB10: 14661 | URC10: 14662 | URD10: 14663 | URE10: 14664 | URF10: 14665 | URG10: 14666 | URH10: 14667 | URI10: 14668 | URJ10: 14669 | URK10: 14670 | URL10: 14671 | URM10: 14672 | URN10: 14673 | URO10: 14674 | URP10: 14675 | URQ10: 14676 | URR10: 14677 | URS10: 14678 | URT10: 14679 | URU10: 14680 | URV10: 14681 | URW10: 14682 | URX10: 14683 | URY10: 14684 | URZ10: 14685 | USA10: 14686 | USB10: 14687 | USC10: 14688 | USD10: 14689 | USE10: 14690 | USF10: 14691 | USG10: 14692 | USH10: 14693 | USI10: 14694 | USJ10: 14695 | USK10: 14696 | USL10: 14697 | USM10: 14698 | USN10: 14699 | USO10: 14700 | USP10: 14701 | USQ10: 14702 | USR10: 14703 | USS10: 14704 | UST10: 14705 | USU10: 14706 | USV10: 14707 | USW10: 14708 | USX10: 14709 | USY10: 14710 | USZ10: 14711 | UTA10: 14712 | UTB10: 14713 | UTC10: 14714 | UTD10: 14715 | UTE10: 14716 | UTF10: 14717 | UTG10: 14718 | UTH10: 14719 | UTI10: 14720 | UTJ10: 14721 | UTK10: 14722 | UTL10: =UTK10+1 -> 14723 | UTM10: 14724 | UTN10: 14725 | UTO10: 14726 | UTP10: 14727 | UTQ10: 14728 | UTR10: 14729 | UTS10: 14730 | UTT10: 14731 | UTU10: 14732 | UTV10: 14733 | UTW10: 14734 | UTX10: 14735 | UTY10: 14736 | UTZ10: 14737 | UUA10: 14738 | UUB10: 14739 | UUC10: 14740 | UUD10: 14741 | UUE10: 14742 | UUF10: 14743 | UUG10: 14744 | UUH10: 14745 | UUI10: 14746 | UUJ10: 14747 | UUK10: 14748 | UUL10: 14749 | UUM10: 14750 | UUN10: 14751 | UUO10: 14752 | UUP10: 14753 | UUQ10: 14754 | UUR10: 14755 | UUS10: 14756 | UUT10: 14757 | UUU10: 14758 | UUV10: 14759 | UUW10: 14760 | UUX10: 14761 | UUY10: 14762 | UUZ10: 14763 | UVA10: 14764 | UVB10: 14765 | UVC10: 14766 | UVD10: 14767 | UVE10: 14768 | UVF10: 14769 | UVG10: 14770 | UVH10: 14771 | UVI10: 14772 | UVJ10: 14773 | UVK10: 14774 | UVL10: 14775 | UVM10: 14776 | UVN10: 14777 | UVO10: 14778 | UVP10: 14779 | UVQ10: 14780 | UVR10: 14781 | UVS10: 14782 | UVT10: 14783 | UVU10: 14784 | UVV10: 14785 | UVW10: 14786 | UVX10: =UVW10+1 -> 14787 | UVY10: 14788 | UVZ10: 14789 | UWA10: 14790 | UWB10: 14791 | UWC10: 14792 | UWD10: 14793 | UWE10: 14794 | UWF10: 14795 | UWG10: 14796 | UWH10: 14797 | UWI10: 14798 | UWJ10: 14799 | UWK10: 14800 | UWL10: 14801 | UWM10: 14802 | UWN10: 14803 | UWO10: 14804 | UWP10: 14805 | UWQ10: 14806 | UWR10: 14807 | UWS10: 14808 | UWT10: 14809 | UWU10: 14810 | UWV10: 14811 | UWW10: 14812 | UWX10: 14813 | UWY10: 14814 | UWZ10: 14815 | UXA10: 14816 | UXB10: 14817 | UXC10: 14818 | UXD10: 14819 | UXE10: 14820 | UXF10: 14821 | UXG10: 14822 | UXH10: 14823 | UXI10: 14824 | UXJ10: 14825 | UXK10: 14826 | UXL10: 14827 | UXM10: 14828 | UXN10: 14829 | UXO10: 14830 | UXP10: 14831 | UXQ10: 14832 | UXR10: 14833 | UXS10: 14834 | UXT10: 14835 | UXU10: 14836 | UXV10: 14837 | UXW10: 14838 | UXX10: 14839 | UXY10: 14840 | UXZ10: 14841 | UYA10: 14842 | UYB10: 14843 | UYC10: 14844 | UYD10: 14845 | UYE10: 14846 | UYF10: 14847 | UYG10: 14848 | UYH10: 14849 | UYI10: 14850 | UYJ10: =UYI10+1 -> 14851 | UYK10: 14852 | UYL10: 14853 | UYM10: 14854 | UYN10: 14855 | UYO10: 14856 | UYP10: 14857 | UYQ10: 14858 | UYR10: 14859 | UYS10: 14860 | UYT10: 14861 | UYU10: 14862 | UYV10: 14863 | UYW10: 14864 | UYX10: 14865 | UYY10: 14866 | UYZ10: 14867 | UZA10: 14868 | UZB10: 14869 | UZC10: 14870 | UZD10: 14871 | UZE10: 14872 | UZF10: 14873 | UZG10: 14874 | UZH10: 14875 | UZI10: 14876 | UZJ10: 14877 | UZK10: 14878 | UZL10: 14879 | UZM10: 14880 | UZN10: 14881 | UZO10: 14882 | UZP10: 14883 | UZQ10: 14884 | UZR10: 14885 | UZS10: 14886 | UZT10: 14887 | UZU10: 14888 | UZV10: 14889 | UZW10: 14890 | UZX10: 14891 | UZY10: 14892 | UZZ10: 14893 | VAA10: 14894 | VAB10: 14895 | VAC10: 14896 | VAD10: 14897 | VAE10: 14898 | VAF10: 14899 | VAG10: 14900 | VAH10: 14901 | VAI10: 14902 | VAJ10: 14903 | VAK10: 14904 | VAL10: 14905 | VAM10: 14906 | VAN10: 14907 | VAO10: 14908 | VAP10: 14909 | VAQ10: 14910 | VAR10: 14911 | VAS10: 14912 | VAT10: 14913 | VAU10: 14914 | VAV10: =VAU10+1 -> 14915 | VAW10: 14916 | VAX10: 14917 | VAY10: 14918 | VAZ10: 14919 | VBA10: 14920 | VBB10: 14921 | VBC10: 14922 | VBD10: 14923 | VBE10: 14924 | VBF10: 14925 | VBG10: 14926 | VBH10: 14927 | VBI10: 14928 | VBJ10: 14929 | VBK10: 14930 | VBL10: 14931 | VBM10: 14932 | VBN10: 14933 | VBO10: 14934 | VBP10: 14935 | VBQ10: 14936 | VBR10: 14937 | VBS10: 14938 | VBT10: 14939 | VBU10: 14940 | VBV10: 14941 | VBW10: 14942 | VBX10: 14943 | VBY10: 14944 | VBZ10: 14945 | VCA10: 14946 | VCB10: 14947 | VCC10: 14948 | VCD10: 14949 | VCE10: 14950 | VCF10: 14951 | VCG10: 14952 | VCH10: 14953 | VCI10: 14954 | VCJ10: 14955 | VCK10: 14956 | VCL10: 14957 | VCM10: 14958 | VCN10: 14959 | VCO10: 14960 | VCP10: 14961 | VCQ10: 14962 | VCR10: 14963 | VCS10: 14964 | VCT10: 14965 | VCU10: 14966 | VCV10: 14967 | VCW10: 14968 | VCX10: 14969 | VCY10: 14970 | VCZ10: 14971 | VDA10: 14972 | VDB10: 14973 | VDC10: 14974 | VDD10: 14975 | VDE10: 14976 | VDF10: 14977 | VDG10: 14978 | VDH10: =VDG10+1 -> 14979 | VDI10: 14980 | VDJ10: 14981 | VDK10: 14982 | VDL10: 14983 | VDM10: 14984 | VDN10: 14985 | VDO10: 14986 | VDP10: 14987 | VDQ10: 14988 | VDR10: 14989 | VDS10: 14990 | VDT10: 14991 | VDU10: 14992 | VDV10: 14993 | VDW10: 14994 | VDX10: 14995 | VDY10: 14996 | VDZ10: 14997 | VEA10: 14998 | VEB10: 14999 | VEC10: 15000 | VED10: 15001 | VEE10: 15002 | VEF10: 15003 | VEG10: 15004 | VEH10: 15005 | VEI10: 15006 | VEJ10: 15007 | VEK10: 15008 | VEL10: 15009 | VEM10: 15010 | VEN10: 15011 | VEO10: 15012 | VEP10: 15013 | VEQ10: 15014 | VER10: 15015 | VES10: 15016 | VET10: 15017 | VEU10: 15018 | VEV10: 15019 | VEW10: 15020 | VEX10: 15021 | VEY10: 15022 | VEZ10: 15023 | VFA10: 15024 | VFB10: 15025 | VFC10: 15026 | VFD10: 15027 | VFE10: 15028 | VFF10: 15029 | VFG10: 15030 | VFH10: 15031 | VFI10: 15032 | VFJ10: 15033 | VFK10: 15034 | VFL10: 15035 | VFM10: 15036 | VFN10: 15037 | VFO10: 15038 | VFP10: 15039 | VFQ10: 15040 | VFR10: 15041 | VFS10: 15042 | VFT10: =VFS10+1 -> 15043 | VFU10: 15044 | VFV10: 15045 | VFW10: 15046 | VFX10: 15047 | VFY10: 15048 | VFZ10: 15049 | VGA10: 15050 | VGB10: 15051 | VGC10: 15052 | VGD10: 15053 | VGE10: 15054 | VGF10: 15055 | VGG10: 15056 | VGH10: 15057 | VGI10: 15058 | VGJ10: 15059 | VGK10: 15060 | VGL10: 15061 | VGM10: 15062 | VGN10: 15063 | VGO10: 15064 | VGP10: 15065 | VGQ10: 15066 | VGR10: 15067 | VGS10: 15068 | VGT10: 15069 | VGU10: 15070 | VGV10: 15071 | VGW10: 15072 | VGX10: 15073 | VGY10: 15074 | VGZ10: 15075 | VHA10: 15076 | VHB10: 15077 | VHC10: 15078 | VHD10: 15079 | VHE10: 15080 | VHF10: 15081 | VHG10: 15082 | VHH10: 15083 | VHI10: 15084 | VHJ10: 15085 | VHK10: 15086 | VHL10: 15087 | VHM10: 15088 | VHN10: 15089 | VHO10: 15090 | VHP10: 15091 | VHQ10: 15092 | VHR10: 15093 | VHS10: 15094 | VHT10: 15095 | VHU10: 15096 | VHV10: 15097 | VHW10: 15098 | VHX10: 15099 | VHY10: 15100 | VHZ10: 15101 | VIA10: 15102 | VIB10: 15103 | VIC10: 15104 | VID10: 15105 | VIE10: 15106 | VIF10: =VIE10+1 -> 15107 | VIG10: 15108 | VIH10: 15109 | VII10: 15110 | VIJ10: 15111 | VIK10: 15112 | VIL10: 15113 | VIM10: 15114 | VIN10: 15115 | VIO10: 15116 | VIP10: 15117 | VIQ10: 15118 | VIR10: 15119 | VIS10: 15120 | VIT10: 15121 | VIU10: 15122 | VIV10: 15123 | VIW10: 15124 | VIX10: 15125 | VIY10: 15126 | VIZ10: 15127 | VJA10: 15128 | VJB10: 15129 | VJC10: 15130 | VJD10: 15131 | VJE10: 15132 | VJF10: 15133 | VJG10: 15134 | VJH10: 15135 | VJI10: 15136 | VJJ10: 15137 | VJK10: 15138 | VJL10: 15139 | VJM10: 15140 | VJN10: 15141 | VJO10: 15142 | VJP10: 15143 | VJQ10: 15144 | VJR10: 15145 | VJS10: 15146 | VJT10: 15147 | VJU10: 15148 | VJV10: 15149 | VJW10: 15150 | VJX10: 15151 | VJY10: 15152 | VJZ10: 15153 | VKA10: 15154 | VKB10: 15155 | VKC10: 15156 | VKD10: 15157 | VKE10: 15158 | VKF10: 15159 | VKG10: 15160 | VKH10: 15161 | VKI10: 15162 | VKJ10: 15163 | VKK10: 15164 | VKL10: 15165 | VKM10: 15166 | VKN10: 15167 | VKO10: 15168 | VKP10: 15169 | VKQ10: 15170 | VKR10: =VKQ10+1 -> 15171 | VKS10: 15172 | VKT10: 15173 | VKU10: 15174 | VKV10: 15175 | VKW10: 15176 | VKX10: 15177 | VKY10: 15178 | VKZ10: 15179 | VLA10: 15180 | VLB10: 15181 | VLC10: 15182 | VLD10: 15183 | VLE10: 15184 | VLF10: 15185 | VLG10: 15186 | VLH10: 15187 | VLI10: 15188 | VLJ10: 15189 | VLK10: 15190 | VLL10: 15191 | VLM10: 15192 | VLN10: 15193 | VLO10: 15194 | VLP10: 15195 | VLQ10: 15196 | VLR10: 15197 | VLS10: 15198 | VLT10: 15199 | VLU10: 15200 | VLV10: 15201 | VLW10: 15202 | VLX10: 15203 | VLY10: 15204 | VLZ10: 15205 | VMA10: 15206 | VMB10: 15207 | VMC10: 15208 | VMD10: 15209 | VME10: 15210 | VMF10: 15211 | VMG10: 15212 | VMH10: 15213 | VMI10: 15214 | VMJ10: 15215 | VMK10: 15216 | VML10: 15217 | VMM10: 15218 | VMN10: 15219 | VMO10: 15220 | VMP10: 15221 | VMQ10: 15222 | VMR10: 15223 | VMS10: 15224 | VMT10: 15225 | VMU10: 15226 | VMV10: 15227 | VMW10: 15228 | VMX10: 15229 | VMY10: 15230 | VMZ10: 15231 | VNA10: 15232 | VNB10: 15233 | VNC10: 15234 | VND10: =VNC10+1 -> 15235 | VNE10: 15236 | VNF10: 15237 | VNG10: 15238 | VNH10: 15239 | VNI10: 15240 | VNJ10: 15241 | VNK10: 15242 | VNL10: 15243 | VNM10: 15244 | VNN10: 15245 | VNO10: 15246 | VNP10: 15247 | VNQ10: 15248 | VNR10: 15249 | VNS10: 15250 | VNT10: 15251 | VNU10: 15252 | VNV10: 15253 | VNW10: 15254 | VNX10: 15255 | VNY10: 15256 | VNZ10: 15257 | VOA10: 15258 | VOB10: 15259 | VOC10: 15260 | VOD10: 15261 | VOE10: 15262 | VOF10: 15263 | VOG10: 15264 | VOH10: 15265 | VOI10: 15266 | VOJ10: 15267 | VOK10: 15268 | VOL10: 15269 | VOM10: 15270 | VON10: 15271 | VOO10: 15272 | VOP10: 15273 | VOQ10: 15274 | VOR10: 15275 | VOS10: 15276 | VOT10: 15277 | VOU10: 15278 | VOV10: 15279 | VOW10: 15280 | VOX10: 15281 | VOY10: 15282 | VOZ10: 15283 | VPA10: 15284 | VPB10: 15285 | VPC10: 15286 | VPD10: 15287 | VPE10: 15288 | VPF10: 15289 | VPG10: 15290 | VPH10: 15291 | VPI10: 15292 | VPJ10: 15293 | VPK10: 15294 | VPL10: 15295 | VPM10: 15296 | VPN10: 15297 | VPO10: 15298 | VPP10: =VPO10+1 -> 15299 | VPQ10: 15300 | VPR10: 15301 | VPS10: 15302 | VPT10: 15303 | VPU10: 15304 | VPV10: 15305 | VPW10: 15306 | VPX10: 15307 | VPY10: 15308 | VPZ10: 15309 | VQA10: 15310 | VQB10: 15311 | VQC10: 15312 | VQD10: 15313 | VQE10: 15314 | VQF10: 15315 | VQG10: 15316 | VQH10: 15317 | VQI10: 15318 | VQJ10: 15319 | VQK10: 15320 | VQL10: 15321 | VQM10: 15322 | VQN10: 15323 | VQO10: 15324 | VQP10: 15325 | VQQ10: 15326 | VQR10: 15327 | VQS10: 15328 | VQT10: 15329 | VQU10: 15330 | VQV10: 15331 | VQW10: 15332 | VQX10: 15333 | VQY10: 15334 | VQZ10: 15335 | VRA10: 15336 | VRB10: 15337 | VRC10: 15338 | VRD10: 15339 | VRE10: 15340 | VRF10: 15341 | VRG10: 15342 | VRH10: 15343 | VRI10: 15344 | VRJ10: 15345 | VRK10: 15346 | VRL10: 15347 | VRM10: 15348 | VRN10: 15349 | VRO10: 15350 | VRP10: 15351 | VRQ10: 15352 | VRR10: 15353 | VRS10: 15354 | VRT10: 15355 | VRU10: 15356 | VRV10: 15357 | VRW10: 15358 | VRX10: 15359 | VRY10: 15360 | VRZ10: 15361 | VSA10: 15362 | VSB10: =VSA10+1 -> 15363 | VSC10: 15364 | VSD10: 15365 | VSE10: 15366 | VSF10: 15367 | VSG10: 15368 | VSH10: 15369 | VSI10: 15370 | VSJ10: 15371 | VSK10: 15372 | VSL10: 15373 | VSM10: 15374 | VSN10: 15375 | VSO10: 15376 | VSP10: 15377 | VSQ10: 15378 | VSR10: 15379 | VSS10: 15380 | VST10: 15381 | VSU10: 15382 | VSV10: 15383 | VSW10: 15384 | VSX10: 15385 | VSY10: 15386 | VSZ10: 15387 | VTA10: 15388 | VTB10: 15389 | VTC10: 15390 | VTD10: 15391 | VTE10: 15392 | VTF10: 15393 | VTG10: 15394 | VTH10: 15395 | VTI10: 15396 | VTJ10: 15397 | VTK10: 15398 | VTL10: 15399 | VTM10: 15400 | VTN10: 15401 | VTO10: 15402 | VTP10: 15403 | VTQ10: 15404 | VTR10: 15405 | VTS10: 15406 | VTT10: 15407 | VTU10: 15408 | VTV10: 15409 | VTW10: 15410 | VTX10: 15411 | VTY10: 15412 | VTZ10: 15413 | VUA10: 15414 | VUB10: 15415 | VUC10: 15416 | VUD10: 15417 | VUE10: 15418 | VUF10: 15419 | VUG10: 15420 | VUH10: 15421 | VUI10: 15422 | VUJ10: 15423 | VUK10: 15424 | VUL10: 15425 | VUM10: 15426 | VUN10: =VUM10+1 -> 15427 | VUO10: 15428 | VUP10: 15429 | VUQ10: 15430 | VUR10: 15431 | VUS10: 15432 | VUT10: 15433 | VUU10: 15434 | VUV10: 15435 | VUW10: 15436 | VUX10: 15437 | VUY10: 15438 | VUZ10: 15439 | VVA10: 15440 | VVB10: 15441 | VVC10: 15442 | VVD10: 15443 | VVE10: 15444 | VVF10: 15445 | VVG10: 15446 | VVH10: 15447 | VVI10: 15448 | VVJ10: 15449 | VVK10: 15450 | VVL10: 15451 | VVM10: 15452 | VVN10: 15453 | VVO10: 15454 | VVP10: 15455 | VVQ10: 15456 | VVR10: 15457 | VVS10: 15458 | VVT10: 15459 | VVU10: 15460 | VVV10: 15461 | VVW10: 15462 | VVX10: 15463 | VVY10: 15464 | VVZ10: 15465 | VWA10: 15466 | VWB10: 15467 | VWC10: 15468 | VWD10: 15469 | VWE10: 15470 | VWF10: 15471 | VWG10: 15472 | VWH10: 15473 | VWI10: 15474 | VWJ10: 15475 | VWK10: 15476 | VWL10: 15477 | VWM10: 15478 | VWN10: 15479 | VWO10: 15480 | VWP10: 15481 | VWQ10: 15482 | VWR10: 15483 | VWS10: 15484 | VWT10: 15485 | VWU10: 15486 | VWV10: 15487 | VWW10: 15488 | VWX10: 15489 | VWY10: 15490 | VWZ10: =VWY10+1 -> 15491 | VXA10: 15492 | VXB10: 15493 | VXC10: 15494 | VXD10: 15495 | VXE10: 15496 | VXF10: 15497 | VXG10: 15498 | VXH10: 15499 | VXI10: 15500 | VXJ10: 15501 | VXK10: 15502 | VXL10: 15503 | VXM10: 15504 | VXN10: 15505 | VXO10: 15506 | VXP10: 15507 | VXQ10: 15508 | VXR10: 15509 | VXS10: 15510 | VXT10: 15511 | VXU10: 15512 | VXV10: 15513 | VXW10: 15514 | VXX10: 15515 | VXY10: 15516 | VXZ10: 15517 | VYA10: 15518 | VYB10: 15519 | VYC10: 15520 | VYD10: 15521 | VYE10: 15522 | VYF10: 15523 | VYG10: 15524 | VYH10: 15525 | VYI10: 15526 | VYJ10: 15527 | VYK10: 15528 | VYL10: 15529 | VYM10: 15530 | VYN10: 15531 | VYO10: 15532 | VYP10: 15533 | VYQ10: 15534 | VYR10: 15535 | VYS10: 15536 | VYT10: 15537 | VYU10: 15538 | VYV10: 15539 | VYW10: 15540 | VYX10: 15541 | VYY10: 15542 | VYZ10: 15543 | VZA10: 15544 | VZB10: 15545 | VZC10: 15546 | VZD10: 15547 | VZE10: 15548 | VZF10: 15549 | VZG10: 15550 | VZH10: 15551 | VZI10: 15552 | VZJ10: 15553 | VZK10: 15554 | VZL10: =VZK10+1 -> 15555 | VZM10: 15556 | VZN10: 15557 | VZO10: 15558 | VZP10: 15559 | VZQ10: 15560 | VZR10: 15561 | VZS10: 15562 | VZT10: 15563 | VZU10: 15564 | VZV10: 15565 | VZW10: 15566 | VZX10: 15567 | VZY10: 15568 | VZZ10: 15569 | WAA10: 15570 | WAB10: 15571 | WAC10: 15572 | WAD10: 15573 | WAE10: 15574 | WAF10: 15575 | WAG10: 15576 | WAH10: 15577 | WAI10: 15578 | WAJ10: 15579 | WAK10: 15580 | WAL10: 15581 | WAM10: 15582 | WAN10: 15583 | WAO10: 15584 | WAP10: 15585 | WAQ10: 15586 | WAR10: 15587 | WAS10: 15588 | WAT10: 15589 | WAU10: 15590 | WAV10: 15591 | WAW10: 15592 | WAX10: 15593 | WAY10: 15594 | WAZ10: 15595 | WBA10: 15596 | WBB10: 15597 | WBC10: 15598 | WBD10: 15599 | WBE10: 15600 | WBF10: 15601 | WBG10: 15602 | WBH10: 15603 | WBI10: 15604 | WBJ10: 15605 | WBK10: 15606 | WBL10: 15607 | WBM10: 15608 | WBN10: 15609 | WBO10: 15610 | WBP10: 15611 | WBQ10: 15612 | WBR10: 15613 | WBS10: 15614 | WBT10: 15615 | WBU10: 15616 | WBV10: 15617 | WBW10: 15618 | WBX10: =WBW10+1 -> 15619 | WBY10: 15620 | WBZ10: 15621 | WCA10: 15622 | WCB10: 15623 | WCC10: 15624 | WCD10: 15625 | WCE10: 15626 | WCF10: 15627 | WCG10: 15628 | WCH10: 15629 | WCI10: 15630 | WCJ10: 15631 | WCK10: 15632 | WCL10: 15633 | WCM10: 15634 | WCN10: 15635 | WCO10: 15636 | WCP10: 15637 | WCQ10: 15638 | WCR10: 15639 | WCS10: 15640 | WCT10: 15641 | WCU10: 15642 | WCV10: 15643 | WCW10: 15644 | WCX10: 15645 | WCY10: 15646 | WCZ10: 15647 | WDA10: 15648 | WDB10: 15649 | WDC10: 15650 | WDD10: 15651 | WDE10: 15652 | WDF10: 15653 | WDG10: 15654 | WDH10: 15655 | WDI10: 15656 | WDJ10: 15657 | WDK10: 15658 | WDL10: 15659 | WDM10: 15660 | WDN10: 15661 | WDO10: 15662 | WDP10: 15663 | WDQ10: 15664 | WDR10: 15665 | WDS10: 15666 | WDT10: 15667 | WDU10: 15668 | WDV10: 15669 | WDW10: 15670 | WDX10: 15671 | WDY10: 15672 | WDZ10: 15673 | WEA10: 15674 | WEB10: 15675 | WEC10: 15676 | WED10: 15677 | WEE10: 15678 | WEF10: 15679 | WEG10: 15680 | WEH10: 15681 | WEI10: 15682 | WEJ10: =WEI10+1 -> 15683 | WEK10: 15684 | WEL10: 15685 | WEM10: 15686 | WEN10: 15687 | WEO10: 15688 | WEP10: 15689 | WEQ10: 15690 | WER10: 15691 | WES10: 15692 | WET10: 15693 | WEU10: 15694 | WEV10: 15695 | WEW10: 15696 | WEX10: 15697 | WEY10: 15698 | WEZ10: 15699 | WFA10: 15700 | WFB10: 15701 | WFC10: 15702 | WFD10: 15703 | WFE10: 15704 | WFF10: 15705 | WFG10: 15706 | WFH10: 15707 | WFI10: 15708 | WFJ10: 15709 | WFK10: 15710 | WFL10: 15711 | WFM10: 15712 | WFN10: 15713 | WFO10: 15714 | WFP10: 15715 | WFQ10: 15716 | WFR10: 15717 | WFS10: 15718 | WFT10: 15719 | WFU10: 15720 | WFV10: 15721 | WFW10: 15722 | WFX10: 15723 | WFY10: 15724 | WFZ10: 15725 | WGA10: 15726 | WGB10: 15727 | WGC10: 15728 | WGD10: 15729 | WGE10: 15730 | WGF10: 15731 | WGG10: 15732 | WGH10: 15733 | WGI10: 15734 | WGJ10: 15735 | WGK10: 15736 | WGL10: 15737 | WGM10: 15738 | WGN10: 15739 | WGO10: 15740 | WGP10: 15741 | WGQ10: 15742 | WGR10: 15743 | WGS10: 15744 | WGT10: 15745 | WGU10: 15746 | WGV10: =WGU10+1 -> 15747 | WGW10: 15748 | WGX10: 15749 | WGY10: 15750 | WGZ10: 15751 | WHA10: 15752 | WHB10: 15753 | WHC10: 15754 | WHD10: 15755 | WHE10: 15756 | WHF10: 15757 | WHG10: 15758 | WHH10: 15759 | WHI10: 15760 | WHJ10: 15761 | WHK10: 15762 | WHL10: 15763 | WHM10: 15764 | WHN10: 15765 | WHO10: 15766 | WHP10: 15767 | WHQ10: 15768 | WHR10: 15769 | WHS10: 15770 | WHT10: 15771 | WHU10: 15772 | WHV10: 15773 | WHW10: 15774 | WHX10: 15775 | WHY10: 15776 | WHZ10: 15777 | WIA10: 15778 | WIB10: 15779 | WIC10: 15780 | WID10: 15781 | WIE10: 15782 | WIF10: 15783 | WIG10: 15784 | WIH10: 15785 | WII10: 15786 | WIJ10: 15787 | WIK10: 15788 | WIL10: 15789 | WIM10: 15790 | WIN10: 15791 | WIO10: 15792 | WIP10: 15793 | WIQ10: 15794 | WIR10: 15795 | WIS10: 15796 | WIT10: 15797 | WIU10: 15798 | WIV10: 15799 | WIW10: 15800 | WIX10: 15801 | WIY10: 15802 | WIZ10: 15803 | WJA10: 15804 | WJB10: 15805 | WJC10: 15806 | WJD10: 15807 | WJE10: 15808 | WJF10: 15809 | WJG10: 15810 | WJH10: =WJG10+1 -> 15811 | WJI10: 15812 | WJJ10: 15813 | WJK10: 15814 | WJL10: 15815 | WJM10: 15816 | WJN10: 15817 | WJO10: 15818 | WJP10: 15819 | WJQ10: 15820 | WJR10: 15821 | WJS10: 15822 | WJT10: 15823 | WJU10: 15824 | WJV10: 15825 | WJW10: 15826 | WJX10: 15827 | WJY10: 15828 | WJZ10: 15829 | WKA10: 15830 | WKB10: 15831 | WKC10: 15832 | WKD10: 15833 | WKE10: 15834 | WKF10: 15835 | WKG10: 15836 | WKH10: 15837 | WKI10: 15838 | WKJ10: 15839 | WKK10: 15840 | WKL10: 15841 | WKM10: 15842 | WKN10: 15843 | WKO10: 15844 | WKP10: 15845 | WKQ10: 15846 | WKR10: 15847 | WKS10: 15848 | WKT10: 15849 | WKU10: 15850 | WKV10: 15851 | WKW10: 15852 | WKX10: 15853 | WKY10: 15854 | WKZ10: 15855 | WLA10: 15856 | WLB10: 15857 | WLC10: 15858 | WLD10: 15859 | WLE10: 15860 | WLF10: 15861 | WLG10: 15862 | WLH10: 15863 | WLI10: 15864 | WLJ10: 15865 | WLK10: 15866 | WLL10: 15867 | WLM10: 15868 | WLN10: 15869 | WLO10: 15870 | WLP10: 15871 | WLQ10: 15872 | WLR10: 15873 | WLS10: 15874 | WLT10: =WLS10+1 -> 15875 | WLU10: 15876 | WLV10: 15877 | WLW10: 15878 | WLX10: 15879 | WLY10: 15880 | WLZ10: 15881 | WMA10: 15882 | WMB10: 15883 | WMC10: 15884 | WMD10: 15885 | WME10: 15886 | WMF10: 15887 | WMG10: 15888 | WMH10: 15889 | WMI10: 15890 | WMJ10: 15891 | WMK10: 15892 | WML10: 15893 | WMM10: 15894 | WMN10: 15895 | WMO10: 15896 | WMP10: 15897 | WMQ10: 15898 | WMR10: 15899 | WMS10: 15900 | WMT10: 15901 | WMU10: 15902 | WMV10: 15903 | WMW10: 15904 | WMX10: 15905 | WMY10: 15906 | WMZ10: 15907 | WNA10: 15908 | WNB10: 15909 | WNC10: 15910 | WND10: 15911 | WNE10: 15912 | WNF10: 15913 | WNG10: 15914 | WNH10: 15915 | WNI10: 15916 | WNJ10: 15917 | WNK10: 15918 | WNL10: 15919 | WNM10: 15920 | WNN10: 15921 | WNO10: 15922 | WNP10: 15923 | WNQ10: 15924 | WNR10: 15925 | WNS10: 15926 | WNT10: 15927 | WNU10: 15928 | WNV10: 15929 | WNW10: 15930 | WNX10: 15931 | WNY10: 15932 | WNZ10: 15933 | WOA10: 15934 | WOB10: 15935 | WOC10: 15936 | WOD10: 15937 | WOE10: 15938 | WOF10: =WOE10+1 -> 15939 | WOG10: 15940 | WOH10: 15941 | WOI10: 15942 | WOJ10: 15943 | WOK10: 15944 | WOL10: 15945 | WOM10: 15946 | WON10: 15947 | WOO10: 15948 | WOP10: 15949 | WOQ10: 15950 | WOR10: 15951 | WOS10: 15952 | WOT10: 15953 | WOU10: 15954 | WOV10: 15955 | WOW10: 15956 | WOX10: 15957 | WOY10: 15958 | WOZ10: 15959 | WPA10: 15960 | WPB10: 15961 | WPC10: 15962 | WPD10: 15963 | WPE10: 15964 | WPF10: 15965 | WPG10: 15966 | WPH10: 15967 | WPI10: 15968 | WPJ10: 15969 | WPK10: 15970 | WPL10: 15971 | WPM10: 15972 | WPN10: 15973 | WPO10: 15974 | WPP10: 15975 | WPQ10: 15976 | WPR10: 15977 | WPS10: 15978 | WPT10: 15979 | WPU10: 15980 | WPV10: 15981 | WPW10: 15982 | WPX10: 15983 | WPY10: 15984 | WPZ10: 15985 | WQA10: 15986 | WQB10: 15987 | WQC10: 15988 | WQD10: 15989 | WQE10: 15990 | WQF10: 15991 | WQG10: 15992 | WQH10: 15993 | WQI10: 15994 | WQJ10: 15995 | WQK10: 15996 | WQL10: 15997 | WQM10: 15998 | WQN10: 15999 | WQO10: 16000 | WQP10: 16001 | WQQ10: 16002 | WQR10: =WQQ10+1 -> 16003 | WQS10: 16004 | WQT10: 16005 | WQU10: 16006 | WQV10: 16007 | WQW10: 16008 | WQX10: 16009 | WQY10: 16010 | WQZ10: 16011 | WRA10: 16012 | WRB10: 16013 | WRC10: 16014 | WRD10: 16015 | WRE10: 16016 | WRF10: 16017 | WRG10: 16018 | WRH10: 16019 | WRI10: 16020 | WRJ10: 16021 | WRK10: 16022 | WRL10: 16023 | WRM10: 16024 | WRN10: 16025 | WRO10: 16026 | WRP10: 16027 | WRQ10: 16028 | WRR10: 16029 | WRS10: 16030 | WRT10: 16031 | WRU10: 16032 | WRV10: 16033 | WRW10: 16034 | WRX10: 16035 | WRY10: 16036 | WRZ10: 16037 | WSA10: 16038 | WSB10: 16039 | WSC10: 16040 | WSD10: 16041 | WSE10: 16042 | WSF10: 16043 | WSG10: 16044 | WSH10: 16045 | WSI10: 16046 | WSJ10: 16047 | WSK10: 16048 | WSL10: 16049 | WSM10: 16050 | WSN10: 16051 | WSO10: 16052 | WSP10: 16053 | WSQ10: 16054 | WSR10: 16055 | WSS10: 16056 | WST10: 16057 | WSU10: 16058 | WSV10: 16059 | WSW10: 16060 | WSX10: 16061 | WSY10: 16062 | WSZ10: 16063 | WTA10: 16064 | WTB10: 16065 | WTC10: 16066 | WTD10: =WTC10+1 -> 16067 | WTE10: 16068 | WTF10: 16069 | WTG10: 16070 | WTH10: 16071 | WTI10: 16072 | WTJ10: 16073 | WTK10: 16074 | WTL10: 16075 | WTM10: 16076 | WTN10: 16077 | WTO10: 16078 | WTP10: 16079 | WTQ10: 16080 | WTR10: 16081 | WTS10: 16082 | WTT10: 16083 | WTU10: 16084 | WTV10: 16085 | WTW10: 16086 | WTX10: 16087 | WTY10: 16088 | WTZ10: 16089 | WUA10: 16090 | WUB10: 16091 | WUC10: 16092 | WUD10: 16093 | WUE10: 16094 | WUF10: 16095 | WUG10: 16096 | WUH10: 16097 | WUI10: 16098 | WUJ10: 16099 | WUK10: 16100 | WUL10: 16101 | WUM10: 16102 | WUN10: 16103 | WUO10: 16104 | WUP10: 16105 | WUQ10: 16106 | WUR10: 16107 | WUS10: 16108 | WUT10: 16109 | WUU10: 16110 | WUV10: 16111 | WUW10: 16112 | WUX10: 16113 | WUY10: 16114 | WUZ10: 16115 | WVA10: 16116 | WVB10: 16117 | WVC10: 16118 | WVD10: 16119 | WVE10: 16120 | WVF10: 16121 | WVG10: 16122 | WVH10: 16123 | WVI10: 16124 | WVJ10: 16125 | WVK10: 16126 | WVL10: 16127 | WVM10: 16128 | WVN10: 16129 | WVO10: 16130 | WVP10: =WVO10+1 -> 16131 | WVQ10: 16132 | WVR10: 16133 | WVS10: 16134 | WVT10: 16135 | WVU10: 16136 | WVV10: 16137 | WVW10: 16138 | WVX10: 16139 | WVY10: 16140 | WVZ10: 16141 | WWA10: 16142 | WWB10: 16143 | WWC10: 16144 | WWD10: 16145 | WWE10: 16146 | WWF10: 16147 | WWG10: 16148 | WWH10: 16149 | WWI10: 16150 | WWJ10: 16151 | WWK10: 16152 | WWL10: 16153 | WWM10: 16154 | WWN10: 16155 | WWO10: 16156 | WWP10: 16157 | WWQ10: 16158 | WWR10: 16159 | WWS10: 16160 | WWT10: 16161 | WWU10: 16162 | WWV10: 16163 | WWW10: 16164 | WWX10: 16165 | WWY10: 16166 | WWZ10: 16167 | WXA10: 16168 | WXB10: 16169 | WXC10: 16170 | WXD10: 16171 | WXE10: 16172 | WXF10: 16173 | WXG10: 16174 | WXH10: 16175 | WXI10: 16176 | WXJ10: 16177 | WXK10: 16178 | WXL10: 16179 | WXM10: 16180 | WXN10: 16181 | WXO10: 16182 | WXP10: 16183 | WXQ10: 16184 | WXR10: 16185 | WXS10: 16186 | WXT10: 16187 | WXU10: 16188 | WXV10: 16189 | WXW10: 16190 | WXX10: 16191 | WXY10: 16192 | WXZ10: 16193 | WYA10: 16194 | WYB10: =WYA10+1 -> 16195 | WYC10: 16196 | WYD10: 16197 | WYE10: 16198 | WYF10: 16199 | WYG10: 16200 | WYH10: 16201 | WYI10: 16202 | WYJ10: 16203 | WYK10: 16204 | WYL10: 16205 | WYM10: 16206 | WYN10: 16207 | WYO10: 16208 | WYP10: 16209 | WYQ10: 16210 | WYR10: 16211 | WYS10: 16212 | WYT10: 16213 | WYU10: 16214 | WYV10: 16215 | WYW10: 16216 | WYX10: 16217 | WYY10: 16218 | WYZ10: 16219 | WZA10: 16220 | WZB10: 16221 | WZC10: 16222 | WZD10: 16223 | WZE10: 16224 | WZF10: 16225 | WZG10: 16226 | WZH10: 16227 | WZI10: 16228 | WZJ10: 16229 | WZK10: 16230 | WZL10: 16231 | WZM10: 16232 | WZN10: 16233 | WZO10: 16234 | WZP10: 16235 | WZQ10: 16236 | WZR10: 16237 | WZS10: 16238 | WZT10: 16239 | WZU10: 16240 | WZV10: 16241 | WZW10: 16242 | WZX10: 16243 | WZY10: 16244 | WZZ10: 16245 | XAA10: 16246 | XAB10: 16247 | XAC10: 16248 | XAD10: 16249 | XAE10: 16250 | XAF10: 16251 | XAG10: 16252 | XAH10: 16253 | XAI10: 16254 | XAJ10: 16255 | XAK10: 16256 | XAL10: 16257 | XAM10: 16258 | XAN10: =XAM10+1 -> 16259 | XAO10: 16260 | XAP10: 16261 | XAQ10: 16262 | XAR10: 16263 | XAS10: 16264 | XAT10: 16265 | XAU10: 16266 | XAV10: 16267 | XAW10: 16268 | XAX10: 16269 | XAY10: 16270 | XAZ10: 16271 | XBA10: 16272 | XBB10: 16273 | XBC10: 16274 | XBD10: 16275 | XBE10: 16276 | XBF10: 16277 | XBG10: 16278 | XBH10: 16279 | XBI10: 16280 | XBJ10: 16281 | XBK10: 16282 | XBL10: 16283 | XBM10: 16284 | XBN10: 16285 | XBO10: 16286 | XBP10: 16287 | XBQ10: 16288 | XBR10: 16289 | XBS10: 16290 | XBT10: 16291 | XBU10: 16292 | XBV10: 16293 | XBW10: 16294 | XBX10: 16295 | XBY10: 16296 | XBZ10: 16297 | XCA10: 16298 | XCB10: 16299 | XCC10: 16300 | XCD10: 16301 | XCE10: 16302 | XCF10: 16303 | XCG10: 16304 | XCH10: 16305 | XCI10: 16306 | XCJ10: 16307 | XCK10: 16308 | XCL10: 16309 | XCM10: 16310 | XCN10: 16311 | XCO10: 16312 | XCP10: 16313 | XCQ10: 16314 | XCR10: 16315 | XCS10: 16316 | XCT10: 16317 | XCU10: 16318 | XCV10: 16319 | XCW10: 16320 | XCX10: 16321 | XCY10: 16322 | XCZ10: =XCY10+1 -> 16323 | XDA10: 16324 | XDB10: 16325 | XDC10: 16326 | XDD10: 16327 | XDE10: 16328 | XDF10: 16329 | XDG10: 16330 | XDH10: 16331 | XDI10: 16332 | XDJ10: 16333 | XDK10: 16334 | XDL10: 16335 | XDM10: 16336 | XDN10: 16337 | XDO10: 16338 | XDP10: 16339 | XDQ10: 16340 | XDR10: 16341 | XDS10: 16342 | XDT10: 16343 | XDU10: 16344 | XDV10: 16345 | XDW10: 16346 | XDX10: 16347 | XDY10: 16348 | XDZ10: 16349 | XEA10: 16350 | XEB10: 16351 | XEC10: 16352 | XED10: 16353 | XEE10: 16354 | XEF10: 16355 | XEG10: 16356 | XEH10: 16357 | XEI10: 16358 | XEJ10: 16359 | XEK10: 16360 | XEL10: 16361 | XEM10: 16362 | XEN10: 16363 | XEO10: 16364 | XEP10: 16365 | XEQ10: 16366 | XER10: 16367 | XES10: 16368 | XET10: 16369 | XEU10: 16370 | XEV10: 16371 | XEW10: 16372 | XEX10: 16373 | XEY10: 16374 | XEZ10: 16375 | XFA10: 16376 | XFB10: 16377 | XFC10: 16378 | XFD10: 16379
A11: Line # | B11: Description
A12: 1a | B12: Street Address
A13: 1b | B13: Zip Code
A14: 1c | B14: Block
A15: 1d | B15: Lot
... 18 more rows

Sheet Subtenants
A1: Commercial Rent Tax - Quarterly (CRT) - Finance Supplemental Spreadsheet
A2: Instructions: Please enter the complete subtenant information for each of your premises. Each line must be accurately completed and filled out in order. Your deduction will be disallowed if inaccurate information is submitted, or if any columns or rows are skipped. When entering your information, make sure that each premises number on line 4 matches the premises numbers that you filled out on the previous page.
B3: Premises Number
A4: Line # | B4: Description
A5: 4a | B5: SUBTENANT'S Name
A6: 4b | B6: Employer Identification Number (EIN) for partnerships or corporations
A7: 4c | B7: Social Security Number (SSN) for individuals
A8: 4d | B8: Rent received from SUBTENANT (if more than one subtenant, see instructions)

Sheet Small Business Tax Credit
A1: Commercial Rent Tax - Quarterly (CRT) - Finance Supplemental Spreadsheet
A2: SMALL BUSINESS TAX CREDIT WORKSHEET
A3: A | B3: Is your "total income" as defined by Ad. Code Section 11-704.4(a) less than $10,000,000?
B4: If your answer to Question A is NO, you are not eligible for this credit.
A5: B | B5: Is your "Base Rent Before Rent Reduction" for any premises at least $62,500 but less than $137,500?
B6: If the answer to this Question is NO for any of the premises, you are not eligible for this credit for those premise whose Base Rent Before Reduction is either less than $62,500 or equal to or greater than $137,500.
A7: INCOME FACTOR CALCULATION - Complete either lines 1a and 1b OR lines 2a and 2b | C7: =IF(C9=1,1,IF(C12>0,2,0)) -> 0
... 5 more rows
